Trans No.,Service Area Categorisation,Service Division Categorisation,Responsible Unit,Unit Code,Expenses Type,Expenses Sub Type,Expense Code,Narrative,Amount,Invoice Date,Cap/Rev,Supplier Name
1,Central Services,Corporate Mangmt not separated,Chief Exec's Office,A01001,Supplies & Services           ,Grants and Subscriptions      ,DJ04,Subscriptions                           ,"31,306.00",26/04/2016,R,LONDON COUNCILS               
2,Central Services,Corporate Mangmt not separated,Chief Exec's Office,A01001,Supplies & Services           ,Grants and Subscriptions      ,DJ04,Subscriptions                           ,"15,000.00",29/04/2016,R,LONDON FIRE BRIGADE           
3,Central Services,SupS Chief Execs,Local Involvement Network,A01039,Third Party Payments          ,Private Contractors           ,EH10,Contract Payments                       ,"10,423.75",06/05/2016,R,MERTON VOLUNTARY SERV COUNCIL 
4,Central Services,SupS Chief Execs,Local Involvement Network,A01039,Third Party Payments          ,Private Contractors           ,EH10,Contract Payments                       ,"10,423.75",15/04/2016,R,MERTON VOLUNTARY SERV COUNCIL 
5,Central Services,SupS Chief Execs,Local Involvement Network,A01039,Third Party Payments          ,Private Contractors           ,EH10,Contract Payments                       ,"1,104.00",30/04/2016,R,VOICEABILITY                  
6,Central Services,SupS Chief Execs,NON-STATUTORY MARKETING & COMM,A02019,Supplies & Services           ,Services                      ,DF35,Graphic Design                          ,"1,620.00",30/03/2016,R,DOMINO 4 LIMITED              
7,Central Services,SupS Chief Execs,NON-STATUTORY MARKETING & COMM,A02019,Supplies & Services           ,Services                      ,DF35,Graphic Design                          ,"6,550.00",11/05/2016,R,THE BIG IDEA (MARK BUCKINGHAM)
8,Central Services,SupS Chief Execs,NON-STATUTORY MARKETING & COMM,A02019,Supplies & Services           ,Grants and Subscriptions      ,DJ04,Subscriptions                           ,"11,164.00",13/04/2016,R,PANACEA SOFTWARE LTD          
9,Central Services,SupS Chief Execs,Democratic Services,A02023,Supplies & Services           ,Clothing Unfrms Laundry       ,DC02,Clothing & Uniforms                     ,"1,343.40",03/05/2016,R,TOYE KENNING & SPENCER LTD    
10,Central Services,SupS Chief Execs,Democratic Services,A02023,Supplies & Services           ,Expenses                      ,DH78,Outgoing Mayor (April-May),655.83,12/05/2016,R,SOUTH THAMES COLLEGE          
11,Central Services,SupS Chief Execs,Democratic Services,A02023,Supplies & Services           ,Expenses                      ,DH79,INCOMING MAYOR (MAY-MARCH)              ,"2,160.00",18/05/2016,R,GOSTO FINO PORTUGAL PATISSERIE
12,Central Services,SupS Chief Execs,Democratic Services,A02023,Supplies & Services           ,Expenses                      ,DH79,INCOMING MAYOR (MAY-MARCH)              ,603.90,19/05/2016,R,MAJESTIC WINE WAREHOUSE       
13,Central Services,SupS Chief Execs,Democratic Services,A02023,Supplies & Services           ,Grants and Subscriptions      ,DJ04,Subscriptions                           ,"2,100.00",20/05/2016,R,INFORMATION COMMISSIONER      
14,CS -Oth Operating Inc & Expend,T/A Corporate Services,Prting Jobs - Internal,A03040,Supplies & Services           ,Prntng Stnry Gen Off Exp      ,DE05,Micro-filming                           ,502.78,29/04/2016,R,MISL LTD                      
15,CS -Oth Operating Inc & Expend,T/A Corporate Services,Prting Jobs - Internal,A03040,Supplies & Services           ,Prntng Stnry Gen Off Exp      ,DE05,Micro-filming                           ,532.75,06/05/2016,R,MISL LTD                      
16,CS -Oth Operating Inc & Expend,T/A Corporate Services,Prting Jobs - Internal,A03040,Supplies & Services           ,Prntng Stnry Gen Off Exp      ,DE05,Micro-filming                           ,604.31,31/03/2016,R,MISL LTD                      
17,CS -Oth Operating Inc & Expend,T/A Corporate Services,Prting Jobs - Internal,A03040,Supplies & Services           ,Prntng Stnry Gen Off Exp      ,DE05,Micro-filming                           ,606.68,06/05/2016,R,MISL LTD                      
18,CS -Oth Operating Inc & Expend,T/A Corporate Services,Prting Jobs - Internal,A03040,Supplies & Services           ,Prntng Stnry Gen Off Exp      ,DE05,Micro-filming                           ,665.06,06/05/2016,R,MISL LTD                      
19,CS -Oth Operating Inc & Expend,T/A Corporate Services,Prting Jobs - Internal,A03040,Supplies & Services           ,Prntng Stnry Gen Off Exp      ,DE05,Micro-filming                           ,668.47,28/04/2016,R,MISL LTD                      
20,CS -Oth Operating Inc & Expend,T/A Corporate Services,Prting Jobs - Internal,A03040,Supplies & Services           ,Prntng Stnry Gen Off Exp      ,DE05,Micro-filming                           ,777.00,01/04/2016,R,MISL LTD                      
21,CS -Oth Operating Inc & Expend,T/A Corporate Services,Prting Jobs - Internal,A03040,Supplies & Services           ,Prntng Stnry Gen Off Exp      ,DE05,Micro-filming                           ,984.02,29/04/2016,R,MISL LTD                      
22,CS -Oth Operating Inc & Expend,T/A Corporate Services,Prting Jobs - Internal,A03040,Supplies & Services           ,Prntng Stnry Gen Off Exp      ,DE05,Micro-filming                           ,"1,880.00",10/04/2016,R,MISL LTD                      
23,CS -Oth Operating Inc & Expend,T/A Corporate Services,Prting Jobs - Internal,A03040,Supplies & Services           ,Prntng Stnry Gen Off Exp      ,DE05,Micro-filming                           ,"1,880.00",26/04/2016,R,MISL LTD                      
24,CS -Oth Operating Inc & Expend,T/A Corporate Services,Prting Jobs - Internal,A03040,Supplies & Services           ,Prntng Stnry Gen Off Exp      ,DE05,Micro-filming                           ,"2,016.84",29/04/2016,R,MISL LTD                      
25,CS -Oth Operating Inc & Expend,T/A Corporate Services,Prting Jobs - Internal,A03040,Supplies & Services           ,Prntng Stnry Gen Off Exp      ,DE05,Micro-filming                           ,"18,782.93",29/03/2016,R,MISL LTD                      
26,CS -Oth Operating Inc & Expend,T/A Corporate Services,Prting Jobs - Internal,A03040,Supplies & Services           ,Prntng Stnry Gen Off Exp      ,DE05,Micro-filming                           ,"19,223.00",31/03/2016,R,MISL LTD                      
27,CS -Oth Operating Inc & Expend,T/A Corporate Services,Prtng Jobs - Ext Agncy,A03041,Supplies & Services           ,Prntng Stnry Gen Off Exp      ,DE01,External Printing                       ,700.00,12/05/2016,R,CUSTOMISED GRAPHICS PRINT LTD 
28,CS -Oth Operating Inc & Expend,T/A Corporate Services,Prtng Jobs - Ext Agncy,A03041,Supplies & Services           ,Prntng Stnry Gen Off Exp      ,DE01,External Printing                       ,568.00,18/05/2016,R,LIMETREE OFFSET LTD           
29,CS -Oth Operating Inc & Expend,T/A Corporate Services,PrintUnit-HighVolPhtcopying,A03042,Supplies & Services           ,Comms and Computing           ,DG04,Postage - General                       ,983.25,06/05/2016,R,ENCORE PACKAGING SOLUTION     
30,Central Services,SupS Comm and Member Services,COMMUNITY ENGAGAMENT,A04057,Supplies & Services           ,Services                      ,DF32,Customer Survey                         ,"4,850.00",28/04/2016,R,PEOPLE MATTERS NETWORK        
31,Central Services,SupS Comm and Member Services,COMMERICIAL SERVICES,A04085,Employees                     ,Direct Employee Expenses      ,AA17,Agency Staff & Casual Paymts            ,"1,054.50",28/04/2016,R,HAYS SPECIALIST RECRUITM'T LTD
32,Central Services,SupS Comm and Member Services,COMMERICIAL SERVICES,A04085,Employees                     ,Direct Employee Expenses      ,AA17,Agency Staff & Casual Paymts            ,"1,795.50",29/04/2016,R,HAYS SPECIALIST RECRUITM'T LTD
33,Central Services,SupS Comm and Member Services,COMMERICIAL SERVICES,A04085,Employees                     ,Indirect Employee Expenses    ,AB02,Recruitment Adverts                     ,799.00,16/05/2016,R,BEST JOB SITES LIMITED        
34,Highways & Transport Services,On-street parking,Blue Badge Service,A04088,Supplies & Services           ,Services                      ,DF14,Doctors and Other Fees                  ,600.00,22/04/2016,R,LLOYDS TSB COMMERCIAL FINANCE 
35,Highways & Transport Services,On-street parking,Blue Badge Service,A04088,Supplies & Services           ,Comms and Computing           ,DG15,Network Maintenance                     ,840.56,04/05/2016,R,NORTHGATE PUBLIC SERVICES (UK)
36,Central Services,SupS Health & Safety,Learning and Development,B06146,Employees                     ,Indirect Employee Expenses    ,AB57,EXTERNAL TRAINING COSTS                 ,"1,220.00",19/05/2016,R,BTFI LIMITED                  
37,Central Services,SupS Health & Safety,Learning and Development,B06146,Employees                     ,Indirect Employee Expenses    ,AB57,EXTERNAL TRAINING COSTS                 ,"1,220.00",29/02/2016,R,BTFI LIMITED                  
38,Central Services,SupS Health & Safety,Learning and Development,B06146,Employees                     ,Indirect Employee Expenses    ,AB57,EXTERNAL TRAINING COSTS                 ,"3,750.00",29/02/2016,R,CIPFA                         
39,Central Services,SupS Health & Safety,Learning and Development,B06146,Employees                     ,Indirect Employee Expenses    ,AB57,EXTERNAL TRAINING COSTS                 ,"2,030.00",01/04/2016,R,ERNST & YOUNG LLP             
40,Central Services,SupS Health & Safety,Learning and Development,B06146,Employees                     ,Indirect Employee Expenses    ,AB57,EXTERNAL TRAINING COSTS                 ,"2,950.00",22/05/2016,R,EXPERIA SOLUTIONS LIMITED     
41,Central Services,SupS Health & Safety,Learning and Development,B06146,Employees                     ,Indirect Employee Expenses    ,AB57,EXTERNAL TRAINING COSTS                 ,740.00,18/04/2016,R,GOVNET COMMUNICATIONS         
42,Central Services,SupS Health & Safety,Learning and Development,B06146,Employees                     ,Indirect Employee Expenses    ,AB57,EXTERNAL TRAINING COSTS                 ,830.00,05/05/2016,R,MAYBO LTD                     
43,Central Services,SupS Health & Safety,Learning and Development,B06146,Employees                     ,Indirect Employee Expenses    ,AB57,EXTERNAL TRAINING COSTS                 ,650.00,22/02/2016,R,MEDI AID(UK) LTD              
44,Central Services,SupS Health & Safety,Learning and Development,B06146,Employees                     ,Indirect Employee Expenses    ,AB57,EXTERNAL TRAINING COSTS                 ,975.00,13/03/2016,R,MEDI AID(UK) LTD              
45,Central Services,SupS Health & Safety,Learning and Development,B06146,Employees                     ,Indirect Employee Expenses    ,AB57,EXTERNAL TRAINING COSTS                 ,550.00,29/04/2016,R,MSH TRAINING & CONSULTANCY LTD
46,Central Services,SupS Health & Safety,Learning and Development,B06146,Employees                     ,Indirect Employee Expenses    ,AB57,EXTERNAL TRAINING COSTS                 ,550.00,29/04/2016,R,MSH TRAINING & CONSULTANCY LTD
47,,,Laptops for Other Staff,CC018EB,Vehicles Plant Equipment and Machinery,,D3,Equipment                               ,558.00,01/04/2016,C,EVERYTHING EVERYWHERE         
48,,,Parks Bin Finance Lease                 ,CE003EA,Vehicles Plant Equipment and Machinery,,D3,Equipment                               ,"27,300.00",28/03/2016,C,MACQUARIE EQUIP FINANCE (UK)LT
49,,,Disabled Facilities Grant DCLG          ,CE004RA,Other Capital Expenditure,,E1,Grants                                  ,"2,160.00",17/05/2016,C,ASCENDIT LIFTS LTD            
50,,,Disabled Facilities Grant DCLG          ,CE004RA,Other Capital Expenditure,,E1,Grants                                  ,559.30,17/05/2016,C,CBS ADAPTATION                
51,,,Disabled Facilities Grant DCLG          ,CE004RA,Other Capital Expenditure,,E1,Grants                                  ,"2,053.87",20/05/2016,C,CBS ADAPTATION                
52,,,Disabled Facilities Grant DCLG          ,CE004RA,Other Capital Expenditure,,E1,Grants                                  ,"3,540.86",09/05/2016,C,CBS ADAPTATION                
53,,,Disabled Facilities Grant DCLG          ,CE004RA,Other Capital Expenditure,,E1,Grants                                  ,"2,278.26",17/05/2016,C,STAYING FIRST                 
54,,,Disabled Facilities Grant DCLG          ,CE004RA,Other Capital Expenditure,,E1,Grants                                  ,"1,626.00",13/05/2016,C,TLC STAIRLIFTS                
55,,,Disabled Facilities Grant DCLG          ,CE004RA,Other Capital Expenditure,,E1,Grants                                  ,"5,862.00",14/05/2016,C,W C EVANS & SONS LTD          
56,,,Parks Investment                        ,CE013SA,New Construction Conversion and Renovation,,B4,Contractor - Site works                 ,"9,895.00",26/04/2016,C,REDDINGTON GROUNDWORKS LTD    
57,,,TFL Projected Slippage                  ,CE026SA,New Construction Conversion and Renovation,,B4,Contractor - Site works                 ,"8,089.64",26/05/2016,C,FM CONWAY LTD                 
58,,,TFL Projected Slippage                  ,CE026SA,New Construction Conversion and Renovation,,B4,Contractor - Site works                 ,"8,667.41",26/05/2016,C,FM CONWAY LTD                 
59,,,TFL Projected Slippage                  ,CE026SA,New Construction Conversion and Renovation,,B6,Other Costs - Site works                ,"1,124.00",19/04/2016,C,UK POWER NETWORKS (OPERATIONS)
60,,,TFL Projected Slippage                  ,CE026SA,New Construction Conversion and Renovation,,B6,Other Costs - Site works                ,"1,124.00",11/04/2016,C,UK POWER NETWORKS (OPERATIONS)
61,,,Repairs to Footways                     ,CE029FA,New Construction Conversion and Renovation,,B4,Contractor - Site works                 ,"22,265.93",26/05/2016,C,FM CONWAY LTD                 
62,,,Morden Leisure Centre                   ,CE045AA,New Construction Conversion and Renovation,,B1,Consultants Fees D&S Structure          ,"4,033.00",29/04/2016,C,GARDINER & THEOBALD LLP       
63,,,Morden Leisure Centre                   ,CE045AA,New Construction Conversion and Renovation,,B1,Consultants Fees D&S Structure          ,680.00,03/03/2016,C,GT ARCHITECTS LTD             
64,,,Morden Leisure Centre                   ,CE045AA,New Construction Conversion and Renovation,,B1,Consultants Fees D&S Structure          ,"1,370.00",29/04/2016,C,OOBE LTD                      
65,,,Morden Leisure Centre                   ,CE045AA,New Construction Conversion and Renovation,,B1,Consultants Fees D&S Structure          ,"1,000.00",29/04/2016,C,SWEETT (UK) LIMITED           
66,,,Morden Leisure Centre                   ,CE045AA,New Construction Conversion and Renovation,,B1,Consultants Fees D&S Structure          ,"3,500.00",30/04/2016,C,SWEETT (UK) LIMITED           
67,,,Morden Leisure Centre                   ,CE045AA,New Construction Conversion and Renovation,,B2,Site Surveys D&S Structure              ,"1,030.00",14/04/2016,C,GPM ECOLOGY                   
68,,,Industrial Estate Investment,CE059FA,New Construction Conversion and Renovation,,B4,Contractor - Site works                 ,"82,327.00",23/05/2016,C,KIARA DECORATING CONTRACTORS  
69,,,Town Centre Investment                  ,CE061FB,New Construction Conversion and Renovation,,B4,Contractor - Site works                 ,"1,163.20",18/05/2016,C,KIER INTEGRATED SERVICES LTD  
70,,,Rediscover Mitcham                      ,CE061FG,New Construction Conversion and Renovation,,B3,Other Expenses D&S Structure            ,898.00,06/01/2016,C,PRESTIGE SIGNS                
71,,,B591b Shop Front Improvement,CE066FG,Other Capital Expenditure,,E1,Grants                                  ,"2,900.00",03/03/2016,C,DESIGNED BY GOOD PEOPLE       
72,,,Street Lighting Replacement Pr          ,CE068FA,New Construction Conversion and Renovation,,B4,Contractor - Site works                 ,529.33,26/04/2016,C,KIER INTEGRATED SERVICES LTD  
73,,,Street Lighting Replacement Pr          ,CE068FA,New Construction Conversion and Renovation,,B4,Contractor - Site works                 ,"1,058.66",29/04/2016,C,KIER INTEGRATED SERVICES LTD  
74,,,Street Lighting Replacement Pr          ,CE068FA,New Construction Conversion and Renovation,,B4,Contractor - Site works                 ,"1,101.96",29/04/2016,C,KIER INTEGRATED SERVICES LTD  
75,,,Street Lighting Replacement Pr          ,CE068FA,New Construction Conversion and Renovation,,B4,Contractor - Site works                 ,"1,256.43",18/05/2016,C,KIER INTEGRATED SERVICES LTD  
76,,,Street Lighting Replacement Pr          ,CE068FA,New Construction Conversion and Renovation,,B4,Contractor - Site works                 ,"1,378.22",29/04/2016,C,KIER INTEGRATED SERVICES LTD  
77,,,Street Lighting Replacement Pr          ,CE068FA,New Construction Conversion and Renovation,,B4,Contractor - Site works                 ,"3,501.97",18/05/2016,C,KIER INTEGRATED SERVICES LTD  
78,,,Street Lighting Replacement Pr          ,CE068FA,New Construction Conversion and Renovation,,B4,Contractor - Site works                 ,"5,013.75",28/04/2016,C,KIER INTEGRATED SERVICES LTD  
79,,,Street Lighting Replacement Pr          ,CE068FA,New Construction Conversion and Renovation,,B4,Contractor - Site works                 ,"5,894.36",18/05/2016,C,KIER INTEGRATED SERVICES LTD  
80,,,Street Lighting Replacement Pr          ,CE068FA,New Construction Conversion and Renovation,,B4,Contractor - Site works                 ,"10,218.62",18/05/2016,C,KIER INTEGRATED SERVICES LTD  
81,,,Street Lighting Replacement Pr          ,CE068FA,New Construction Conversion and Renovation,,B4,Contractor - Site works                 ,"14,105.64",18/05/2016,C,KIER INTEGRATED SERVICES LTD  
82,,,Street Lighting Replacement Pr          ,CE068FA,New Construction Conversion and Renovation,,B4,Contractor - Site works                 ,"14,603.16",29/04/2016,C,KIER INTEGRATED SERVICES LTD  
83,,,Street Lighting Replacement Pr          ,CE068FA,New Construction Conversion and Renovation,,B6,Other Costs - Site works                ,642.00,21/04/2016,C,UK POWER NETWORKS (OPERATIONS)
84,,,Street Lighting Replacement Pr          ,CE068FA,New Construction Conversion and Renovation,,B6,Other Costs - Site works                ,642.00,19/04/2016,C,UK POWER NETWORKS (OPERATIONS)
85,,,Street Lighting Replacement Pr          ,CE068FA,New Construction Conversion and Renovation,,B6,Other Costs - Site works                ,642.00,13/04/2016,C,UK POWER NETWORKS (OPERATIONS)
86,,,Street Lighting Replacement Pr          ,CE068FA,New Construction Conversion and Renovation,,B6,Other Costs - Site works                ,720.00,18/05/2016,C,UK POWER NETWORKS (OPERATIONS)
87,,,Street Lighting Replacement Pr          ,CE068FA,New Construction Conversion and Renovation,,B6,Other Costs - Site works                ,927.00,06/05/2016,C,UK POWER NETWORKS (OPERATIONS)
88,,,Street Lighting Replacement Pr          ,CE068FA,New Construction Conversion and Renovation,,B6,Other Costs - Site works                ,"1,294.00",20/04/2016,C,UK POWER NETWORKS (OPERATIONS)
89,,,Street Lighting Replacement Pr          ,CE068FA,New Construction Conversion and Renovation,,B6,Other Costs - Site works                ,"1,926.00",04/05/2016,C,UK POWER NETWORKS (OPERATIONS)
90,,,Street Lighting Replacement Pr          ,CE068FA,New Construction Conversion and Renovation,,B6,Other Costs - Site works                ,"3,852.00",06/05/2016,C,UK POWER NETWORKS (OPERATIONS)
91,,,Street Lighting Replacement Pr          ,CE068FA,New Construction Conversion and Renovation,,B6,Other Costs - Site works                ,"4,496.00",13/05/2016,C,UK POWER NETWORKS (OPERATIONS)
92,,,Replacement of Fleet Vehicles           ,CE082EA,Vehicles Plant Equipment and Machinery,,D1,Vehicles                                ,"11,871.90",25/04/2016,C,COMMERCIAL SERV'S TRADING LTD 
93,,,Replacement of Fleet Vehicles           ,CE082EA,Vehicles Plant Equipment and Machinery,,D1,Vehicles                                ,"11,871.90",25/04/2016,C,COMMERCIAL SERV'S TRADING LTD 
94,,,Replacement of Fleet Vehicles           ,CE082EA,Vehicles Plant Equipment and Machinery,,D1,Vehicles                                ,"11,871.90",25/04/2016,C,COMMERCIAL SERV'S TRADING LTD 
95,,,Traffic Schemes                         ,CE142FA,New Construction Conversion and Renovation,,B4,Contractor - Site works                 ,"1,409.24",05/05/2016,C,FM CONWAY LTD                 
96,,,Traffic Schemes                         ,CE142FA,New Construction Conversion and Renovation,,B4,Contractor - Site works                 ,"1,646.57",26/05/2016,C,FM CONWAY LTD                 
97,,,Traffic Schemes                         ,CE142FA,Vehicles Plant Equipment and Machinery,,D4,Specialist furniture                    ,"14,000.00",06/05/2016,C,ZEBRITE LTD                   
98,,,Repair and Maintenance                  ,CF004SA,New Construction Conversion and Renovation,,B4,Contractor - Site works                 ,"20,943.75",19/05/2016,C,SALTASH ENTERPRISES LTD       
99,,,Hillcross School Expansion              ,CS020AC,New Construction Conversion and Renovation,,B4,Contractor - Site works                 ,"1,912.00",29/04/2016,C,MOY CONSTRUCTION CO LTD       
100,,,Dundonald expansion                     ,CS031AC,New Construction Conversion and Renovation,,B1,Consultants Fees D&S Structure          ,812.50,05/05/2016,C,AREA LANDSCAPE ARCHITECTS     
101,,,Dundonald expansion                     ,CS031AC,New Construction Conversion and Renovation,,B1,Consultants Fees D&S Structure          ,"1,500.00",30/04/2016,C,SYNERGY CPC LLP               
102,,,Schs Cap Maint & Accessibility          ,CS080SD,New Construction Conversion and Renovation,,B4,Contractor - Site works                 ,"1,873.00",29/04/2016,C,MOY CONSTRUCTION CO LTD       
103,,,New School 6fe,CS085SF,New Construction Conversion and Renovation,,B1,Consultants Fees D&S Structure          ,"31,728.13",29/04/2016,C,HAZLE MCCORMACK YOUNG LLP     
104,,,Harris Merton 2fe                       ,CS085SG,New Construction Conversion and Renovation,,B1,Consultants Fees D&S Structure          ,"1,292.00",29/04/2016,C,SUMMERS INMAN                 
105,,,Perseid                                 ,CS092AA,New Construction Conversion and Renovation,,B5,Suppliers - Site works                  ,"3,900.00",10/05/2016,C,REDACTED
106,,,IT Equipment                            ,CT006EA,Vehicles Plant Equipment and Machinery,,D3,Equipment                               ,"5,920.00",12/04/2016,C,SPECIALIST COMPUTER CENT. PLC 
107,,,IT Equipment                            ,CT006EA,Other Capital Expenditure,,E3,Miscellaneous Capital Expendit          ,720.00,30/04/2016,C,NETWORK SOLUTIONS INC         
108,,,IT Equipment                            ,CT006EA,Other Capital Expenditure,,E3,Miscellaneous Capital Expendit          ,"7,620.00",28/04/2016,C,REDACTED
109,,,IT Equipment                            ,CT006EA,Other Capital Expenditure,,E3,Miscellaneous Capital Expendit          ,"3,250.00",29/04/2016,C,SOFTCAT LTD                   
110,,,Smartphones                             ,CT015EA,Vehicles Plant Equipment and Machinery,,D3,Equipment                               ,"1,236.00",06/04/2016,C,EVERYTHING EVERYWHERE         
111,,,Smartphones                             ,CT015EA,Vehicles Plant Equipment and Machinery,,D3,Equipment                               ,"2,094.00",03/03/2016,C,EVERYTHING EVERYWHERE         
112,,,Smartphones                             ,CT015EA,Vehicles Plant Equipment and Machinery,,D3,Equipment                               ,"2,443.00",03/03/2016,C,EVERYTHING EVERYWHERE         
113,,,Smartphones                             ,CT015EA,Vehicles Plant Equipment and Machinery,,D3,Equipment                               ,"2,511.00",24/03/2016,C,EVERYTHING EVERYWHERE         
114,,,Smartphones                             ,CT015EA,Vehicles Plant Equipment and Machinery,,D3,Equipment                               ,"4,017.00",06/04/2016,C,EVERYTHING EVERYWHERE         
115,,,Improving Information Systems           ,CT020NB,Vehicles Plant Equipment and Machinery,,D5,Software                                ,"2,970.00",31/03/2016,C,ADVANCED BUSINESS SOLUTIONS   
116,,,Improving Information Systems           ,CT020NB,Vehicles Plant Equipment and Machinery,,D5,Software                                ,"3,000.00",31/03/2016,C,ADVANCED BUSINESS SOLUTIONS   
117,,,Improving Information Systems           ,CT020NB,Vehicles Plant Equipment and Machinery,,D5,Software                                ,"5,000.00",26/04/2016,C,ADVANCED BUSINESS SOLUTIONS   
118,Central Services,Council tax collection,Local Taxation Services,E02100,Supplies & Services           ,Equip Furniture/Materials     ,DA09,Equip-Purchases                         ,"8,503.60",21/04/2016,R,REVEAL MEDIA LTD              
119,Central Services,Council tax collection,Local Taxation Services,E02100,Supplies & Services           ,Services                      ,DF11,Counsel's Fees                          ,"1,107.00",25/04/2016,R,WELBECK LAW LLP               
120,Central Services,Council tax collection,Local Taxation Services,E02100,Supplies & Services           ,Services                      ,DF11,Counsel's Fees                          ,"1,107.00",29/04/2016,R,WELBECK LAW LLP               
121,Central Services,Council tax collection,Local Taxation Services,E02100,Supplies & Services           ,Services                      ,DF11,Counsel's Fees                          ,"2,786.00",05/04/2016,R,WELBECK LAW LLP               
122,Central Services,Council tax collection,Local Taxation Services,E02100,Supplies & Services           ,Comms and Computing           ,DG09,Computer Purchases - Misc               ,631.69,18/05/2016,R,CIVICA UK LIMITED             
123,Central Services,Council tax collection,Local Taxation Services,E02100,Supplies & Services           ,Comms and Computing           ,DG09,Computer Purchases - Misc               ,"1,909.02",28/04/2016,R,CIVICA UK LIMITED             
124,Central Services,Council tax collection,Local Taxation Services,E02100,Supplies & Services           ,Comms and Computing           ,DG09,Computer Purchases - Misc               ,"2,321.38",28/04/2016,R,CIVICA UK LIMITED             
125,Central Services,Council tax collection,Local Taxation Services,E02100,Supplies & Services           ,Comms and Computing           ,DG09,Computer Purchases - Misc               ,"2,997.33",28/04/2016,R,CIVICA UK LIMITED             
126,Central Services,Council tax collection,Local Taxation Services,E02100,Supplies & Services           ,Comms and Computing           ,DG09,Computer Purchases - Misc               ,"3,607.63",28/04/2016,R,CIVICA UK LIMITED             
127,Central Services,Council tax collection,Local Taxation Services,E02100,Supplies & Services           ,Comms and Computing           ,DG09,Computer Purchases - Misc               ,"3,626.00",28/04/2016,R,CIVICA UK LIMITED             
128,Central Services,Council tax collection,Local Taxation Services,E02100,Supplies & Services           ,Comms and Computing           ,DG09,Computer Purchases - Misc               ,"5,000.00",28/04/2016,R,CIVICA UK LIMITED             
129,Central Services,Council tax collection,Local Taxation Services,E02100,Supplies & Services           ,Comms and Computing           ,DG09,Computer Purchases - Misc               ,590.00,24/03/2016,R,INFORM CPI LTD                
130,Central Services,Council tax collection,Local Taxation Services,E02100,Supplies & Services           ,Comms and Computing           ,DG09,Computer Purchases - Misc               ,"1,000.00",31/03/2016,R,INFORM CPI LTD                
131,Central Services,Council tax collection,Local Taxation Services,E02100,Supplies & Services           ,Comms and Computing           ,DG09,Computer Purchases - Misc               ,"1,200.00",05/05/2016,R,INFORM CPI LTD                
132,Central Services,Council tax collection,Sutton Shared Bailiffs Service          ,E02102,Third Party Payments          ,Other Local Authorities       ,EB01,Payments to OLAs                        ,"31,030.30",28/04/2016,R,LONDON BOROUGH OF SUTTON      
133,Housing Services,HB Administration,Benefits Administration,E02120,Supplies & Services           ,Comms and Computing           ,DG09,Computer Purchases - Misc               ,840.00,04/05/2016,R,CIVICA UK LIMITED             
134,Housing Services,HB Administration,Benefits Administration,E02120,Supplies & Services           ,Comms and Computing           ,DG09,Computer Purchases - Misc               ,"1,592.51",31/03/2016,R,CIVICA UK LIMITED             
135,Housing Services,HB Administration,Benefits Administration,E02120,Supplies & Services           ,Comms and Computing           ,DG09,Computer Purchases - Misc               ,"2,225.34",31/03/2016,R,CIVICA UK LIMITED             
136,Housing Services,HB Administration,Benefits Administration,E02120,Supplies & Services           ,Comms and Computing           ,DG09,Computer Purchases - Misc               ,"2,719.50",28/04/2016,R,CIVICA UK LIMITED             
137,Housing Services,HB Administration,Benefits Administration,E02120,Supplies & Services           ,Comms and Computing           ,DG09,Computer Purchases - Misc               ,"2,850.33",28/04/2016,R,CIVICA UK LIMITED             
138,Housing Services,HB Administration,Local Welfare Support,E02123,Transfer Payments             ,Housing Benefits              ,FA95,Other Payments                          ,"20,000.00",16/05/2016,R,POST OFFICE LTD               
139,Central Services,SupS Corporate Finance,TRANSACTIONS,E02139,Supplies & Services           ,Comms and Computing           ,DG50,Other IT Expenditure                    ,"7,425.00",28/04/2016,R,LONDON BOROUGH OF SUTTON      
140,Central Services,SupS Payroll,Payroll,E02140,Supplies & Services           ,Comms and Computing           ,DG02,Software Licences                       ,"4,440.00",01/04/2016,R,ACQUIRE SOLUTIONS INC         
141,Central Services,SupS Payroll,Payroll,E02140,Supplies & Services           ,Expenses                      ,DH14,Prizes and Awards                       ,750.00,19/05/2016,R,THE GIFT VOUCHER SHOP LTD     
142,Central Services,SupS Payroll,Payroll,E02140,Supplies & Services           ,Expenses                      ,DH14,Prizes and Awards                       ,750.00,22/04/2016,R,THE GIFT VOUCHER SHOP LTD     
143,Central Services,SupS Payroll,Payroll,E02140,Third Party Payments          ,Private Contractors           ,EH10,Contract Payments                       ,"1,000.00",09/05/2016,R,LONDON BOROUGH OF SUTTON      
144,Central Services,SupS Payroll,Payroll,E02140,Third Party Payments          ,Private Contractors           ,EH10,Contract Payments                       ,"1,250.00",09/05/2016,R,LONDON BOROUGH OF SUTTON      
145,Central Services,SupS Payroll,Payroll,E02140,Third Party Payments          ,Private Contractors           ,EH10,Contract Payments                       ,"12,331.77",23/05/2016,R,LONDON BOROUGH OF SUTTON      
146,Central Services,SupS Payroll,Trinity Project,E02141,Supplies & Services           ,Services                      ,DF03,Consultants                             ,"5,058.00",25/04/2016,R,LONDON BOROUGH OF SUTTON      
147,Central Services,SupS Facilities,Post Room,E02220,Supplies & Services           ,Comms and Computing           ,DG04,Postage - General                       ,"5,000.00",16/05/2016,R,NEOPOST FINANCE LIMITED       
148,Central Services,SupS Facilities,Post Room,E02220,Supplies & Services           ,Comms and Computing           ,DG04,Postage - General                       ,648.67,22/04/2016,R,NEOPOST LTD                   
149,Central Services,SupS Facilities,Security Services,E02221,Third Party Payments          ,Private Contractors           ,EH10,Contract Payments                       ,"2,121.40",01/05/2016,R,SIGHT & SOUND                 
150,Central Services,SupS Facilities,Security Services,E02221,Third Party Payments          ,Private Contractors           ,EH10,Contract Payments                       ,"2,124.50",01/05/2016,R,SIGHT & SOUND                 
151,Central Services,SupS Facilities,Security Services,E02221,Third Party Payments          ,Private Contractors           ,EH10,Contract Payments                       ,"2,141.20",01/05/2016,R,SIGHT & SOUND                 
152,Central Services,SupS Facilities,Security Services,E02221,Third Party Payments          ,Private Contractors           ,EH10,Contract Payments                       ,"2,549.30",01/05/2016,R,SIGHT & SOUND                 
153,Central Services,SupS Facilities,Civic Centre,E02222,Premises Related Expenditure  ,RepairsAlterations&MtceOfBldgs,BA79,Security of Premises                    ,577.70,01/05/2016,R,SIGHT & SOUND                 
154,Central Services,SupS Facilities,Civic Centre,E02222,Supplies & Services           ,Prntng Stnry Gen Off Exp      ,DE03,Stationery                              ,"1,047.22",29/04/2016,R,OFFICE DEPOT UK LTD           
155,Central Services,SupS Facilities,Facilities,E02231,Premises Related Expenditure  ,RepairsAlterations&MtceOfBldgs,BA02,ENERGY CONSERVATION                     ,"1,600.00",28/04/2016,R,KIER INTEGRATED SERVICES LTD  
156,Central Services,SupS Facilities,Corporate Services Buildings,E02240,Premises Related Expenditure  ,RepairsAlterations&MtceOfBldgs,BA01,DDM - General Building                  ,532.50,09/05/2016,R,SALTASH ENTERPRISES LTD       
157,Central Services,SupS Facilities,Corporate Services Buildings,E02240,Premises Related Expenditure  ,RepairsAlterations&MtceOfBldgs,BA01,DDM - General Building                  ,"1,142.08",27/04/2016,R,SALTASH ENTERPRISES LTD       
158,Central Services,SupS Facilities,Corporate Services Buildings,E02240,Premises Related Expenditure  ,RepairsAlterations&MtceOfBldgs,BA29,Build Maint Mgt Fees                    ,504.00,30/04/2016,R,EDE'S (U.K.) LTD              
159,Central Services,SupS Facilities,Corporate Services Buildings,E02240,Premises Related Expenditure  ,RepairsAlterations&MtceOfBldgs,BA29,Build Maint Mgt Fees                    ,798.00,09/03/2016,R,EDE'S (U.K.) LTD              
160,Central Services,SupS Facilities,Corporate Services Buildings,E02240,Premises Related Expenditure  ,RepairsAlterations&MtceOfBldgs,BA29,Build Maint Mgt Fees                    ,"1,383.30",09/03/2016,R,EDE'S (U.K.) LTD              
161,Central Services,SupS Facilities,Corporate Services Buildings,E02240,Premises Related Expenditure  ,Energy Costs                  ,BB03,Gas (incl. Butane)                      ,"4,973.00",10/05/2016,R,GAZPROM MARKETING&TRADING LTD 
162,Central Services,SupS Facilities,Corporate Services Buildings,E02240,Premises Related Expenditure  ,Water Services                ,BE01,Use of Water (Metered)                  ,531.94,21/04/2016,R,THAMES WATER UTILITIES LTD    
163,Childrens & Education Services,Strategic Management,PDC,E02254,Premises Related Expenditure  ,Energy Costs                  ,BB02,Electricity                             ,832.28,02/05/2016,R,SCOTTISH POWER                
164,Childrens & Education Services,Strategic Management,PDC,E02254,Premises Related Expenditure  ,Energy Costs                  ,BB03,Gas (incl. Butane)                      ,990.10,10/05/2016,R,GAZPROM MARKETING&TRADING LTD 
165,Childrens & Education Services,Strategic Management,PDC,E02254,Premises Related Expenditure  ,Cleaning and Domestic Supplies,BH03,Cleaning Services                       ,"2,618.80",30/04/2016,R,JULIUS RUTHERFOORD & CO LTD   
166,Childrens & Education Services,Strategic Management,CSF Buildings,E02256,Premises Related Expenditure  ,RepairsAlterations&MtceOfBldgs,BA01,DDM - General Building                  ,"2,567.00",04/05/2016,R,HYDRO-CLEANSING LTD           
167,Adult Social Care,OP 65 & Over Day Care,Pollards Hill Day Centre,E02270,Premises Related Expenditure  ,Cleaning and Domestic Supplies,BH01,Cleaning Materials                      ,504.00,10/05/2016,R,GREENHAM TRADING LTD          
168,Adult Social Care,OP 65 & Over Day Care,Pollards Hill Day Centre,E02270,Premises Related Expenditure  ,Cleaning and Domestic Supplies,BH03,Cleaning Services                       ,892.70,30/04/2016,R,BIRKIN CLEANING SERVICES LTD  
169,Adult Social Care,OP 65 & Over Day Care,Pollards Hill Day Centre,E02270,Premises Related Expenditure  ,Cleaning and Domestic Supplies,BH03,Cleaning Services                       ,"1,591.80",30/04/2016,R,BIRKIN CLEANING SERVICES LTD  
170,Adult Social Care,OP 65 & Over Day Care,Pollards Hill Day Centre,E02270,Premises Related Expenditure  ,Cleaning and Domestic Supplies,BH03,Cleaning Services                       ,"5,216.05",30/04/2016,R,BIRKIN CLEANING SERVICES LTD  
171,Adult Social Care,OP 65 & Over Day Care,Pollards Hill Day Centre,E02270,Supplies & Services           ,Equip Furniture/Materials     ,DA09,Equip-Purchases                         ,"1,995.00",24/05/2016,R,COMMERCIAL KITCHEN SERV (LDN) 
172,Adult Social Care,OP 65 & Over Day Care,Pollards Hill Day Centre,E02270,Third Party Payments          ,Private Contractors           ,EH02,Miscellaneous Hired Services            ,557.01,01/05/2016,R,OCS GROUP UK LTD T/A CANNON   
173,Adult Social Care,OP 65 & Over Day Care,Pollards Hill Day Centre,E02270,Third Party Payments          ,Private Contractors           ,EH02,Miscellaneous Hired Services            ,"1,910.30",15/04/2016,R,PHS GROUP                     
174,Central Services,SupS Facilities,CORPORATE ELECTRICITY RECHARGE,E02275,Premises Related Expenditure  ,Energy Costs                  ,BB02,Electricity                             ,"2,439.49",17/05/2016,R,SCOTTISH POWER                
175,Central Services,SupS Facilities,CORPORATE ELECTRICITY RECHARGE,E02275,Premises Related Expenditure  ,Energy Costs                  ,BB02,Electricity                             ,"28,576.17",17/05/2016,R,SCOTTISH POWER                
176,Cultural Env Reg&Plan Services,Parks & Open Spaces,E & R Buildings,E02344,Premises Related Expenditure  ,RepairsAlterations&MtceOfBldgs,BA01,DDM - General Building                  ,"1,061.23",24/05/2016,R,SALTASH ENTERPRISES LTD       
177,Central Services,SupS DOF,AD RESOURCES,E04061,Supplies & Services           ,Services                      ,DF03,Consultants                             ,"9,660.00",01/05/2016,R,PUBLIC SECTOR CONSULTANTS     
178,Central Services,SupS DOF,AD RESOURCES,E04061,Supplies & Services           ,Services                      ,DF09,Miscellaneous Fees                      ,"6,000.00",29/03/2016,R,EVERSHEDS LLP                 
179,Central Services,SupS DOF,AD RESOURCES,E04061,Supplies & Services           ,Grants and Subscriptions      ,DJ04,Subscriptions                           ,800.00,26/02/2016,R,CIPFA BUSINESS LTD            
180,Central Services,SupS  Risk and Insurance,Insurance Premiums & Funding,E05161,Supplies & Services           ,Services                      ,DF74,Insurance Premiums                      ,"12,082.60",13/04/2016,R,JLT SPECIALTY LIMITED         
181,Central Services,SupS  Risk and Insurance,Insurance Premiums & Funding,E05161,Supplies & Services           ,Services                      ,DF74,Insurance Premiums                      ,"12,804.93",13/04/2016,R,JLT SPECIALTY LIMITED         
182,Central Services,SupS  Risk and Insurance,Insurance Premiums & Funding,E05161,Supplies & Services           ,Services                      ,DF74,Insurance Premiums                      ,"13,592.39",13/04/2016,R,JLT SPECIALTY LIMITED         
183,Central Services,SupS  Risk and Insurance,Insurance Premiums & Funding,E05161,Supplies & Services           ,Services                      ,DF74,Insurance Premiums                      ,"22,995.00",13/04/2016,R,JLT SPECIALTY LIMITED         
184,Central Services,SupS  Risk and Insurance,Insurance Premiums & Funding,E05161,Supplies & Services           ,Services                      ,DF74,Insurance Premiums                      ,"83,636.10",13/04/2016,R,JLT SPECIALTY LIMITED         
185,Central Services,SupS  Risk and Insurance,Insurance Premiums & Funding,E05161,Supplies & Services           ,Services                      ,DF74,Insurance Premiums                      ,"243,302.63",13/04/2016,R,JLT SPECIALTY LIMITED         
186,Central Services,SupS Corporate Finance,Corporate Accountancy,E06209,Supplies & Services           ,Services                      ,DF58,Audit Fee                               ,"46,185.00",26/04/2016,R,ERNST & YOUNG LLP             
187,Central Services,SupS Strategic Finance,Treasury & Insurance,E06222,Employees                     ,Direct Employee Expenses      ,AA17,Agency Staff & Casual Paymts            ,"2,260.00",18/05/2016,R,REDACTED
188,Central Services,SupS Strategic Finance,Treasury & Insurance,E06222,Employees                     ,Direct Employee Expenses      ,AA17,Agency Staff & Casual Paymts            ,"1,808.00",11/05/2016,R,HAYS SPECIALIST RECRUITM'T LTD
189,Central Services,SupS Strategic Finance,Treasury & Insurance,E06222,Employees                     ,Direct Employee Expenses      ,AA17,Agency Staff & Casual Paymts            ,"2,260.00",05/05/2016,R,HAYS SPECIALIST RECRUITM'T LTD
190,Central Services,SupS Strategic Finance,Treasury & Insurance,E06222,Employees                     ,Direct Employee Expenses      ,AA17,Agency Staff & Casual Paymts            ,"2,260.00",21/04/2016,R,HAYS SPECIALIST RECRUITM'T LTD
191,Central Services,SupS Strategic Finance,Treasury & Insurance,E06222,Employees                     ,Direct Employee Expenses      ,AA17,Agency Staff & Casual Paymts            ,"2,260.00",28/04/2016,R,HAYS SPECIALIST RECRUITM'T LTD
192,Central Services,Conducting elections,Election Expenses,E10284,Premises Related Expenditure  ,RepairsAlterations&MtceOfBldgs,BA29,Build Maint Mgt Fees                    ,810.00,06/05/2016,R,MORTON FAIRVIEW ELEC SERVICES 
193,Central Services,Conducting elections,Election Expenses,E10284,Supplies & Services           ,Equip Furniture/Materials     ,DA03,Hire of Equipment                       ,795.50,19/05/2016,R,STITCHES MARQUEES             
194,Central Services,Conducting elections,Election Expenses,E10284,Supplies & Services           ,Comms and Computing           ,DG04,Postage - General                       ,"3,292.87",23/03/2016,R,FINANCIAL DATA MANAGEMENT PLC 
195,Central Services,Conducting elections,Election Expenses,E10284,Supplies & Services           ,Comms and Computing           ,DG04,Postage - General                       ,"1,801.35",16/05/2016,R,ROYAL MAIL GROUP LTD          
196,Central Services,Conducting elections,Election Expenses,E10284,Supplies & Services           ,Comms and Computing           ,DG04,Postage - General                       ,"2,948.40",09/05/2016,R,ROYAL MAIL GROUP LTD          
197,Central Services,SupS Legal,Shared Legal Service,E10288,Supplies & Services           ,Prntng Stnry Gen Off Exp      ,DE30,General Office Expense                  ,989.03,30/04/2016,R,RESTORE PLC                   
198,Central Services,SupS Legal,Shared Legal Service,E10288,Supplies & Services           ,Comms and Computing           ,DG04,Postage - General                       ,"1,208.00",28/04/2016,R,NEOPOST FINANCE LIMITED       
199,Central Services,SupS Legal,Shared Legal Service,E10288,Supplies & Services           ,Grants and Subscriptions      ,DJ04,Subscriptions                           ,750.00,27/04/2016,R,LLG ENTERPRISES LIMITED       
200,Central Services,SupS Legal,Richmond Legal,E10289,Supplies & Services           ,Services                      ,DF11,Counsel's Fees                          ,858.75,06/05/2016,R,REDACTED
201,Central Services,SupS Legal,Richmond Legal,E10289,Supplies & Services           ,Services                      ,DF11,Counsel's Fees                          ,"3,750.00",16/05/2016,R,REDACTED
202,Central Services,SupS Legal,Richmond Legal,E10289,Supplies & Services           ,Services                      ,DF95,Services from Provider                  ,"2,573.00",29/03/2016,R,REDACTED
203,Central Services,SupS Legal,Kingston Legal                          ,E10292,Supplies & Services           ,Services                      ,DF11,Counsel's Fees                          ,800.00,04/05/2016,R,REDACTED
204,Central Services,SupS Legal,Kingston Legal                          ,E10292,Supplies & Services           ,Services                      ,DF11,Counsel's Fees                          ,"1,250.00",26/04/2016,R,REDACTED
205,Central Services,SupS Legal,Kingston Legal                          ,E10292,Supplies & Services           ,Services                      ,DF11,Counsel's Fees                          ,"2,795.00",27/04/2016,R,REDACTED
206,Central Services,SupS Legal,Sutton Legal                            ,E10293,Supplies & Services           ,Services                      ,DF11,Counsel's Fees                          ,500.00,27/04/2016,R,REDACTED
207,Central Services,SupS Legal,Sutton Legal                            ,E10293,Supplies & Services           ,Services                      ,DF11,Counsel's Fees                          ,520.00,22/04/2016,R,REDACTED
208,Central Services,SupS Legal,Sutton Legal                            ,E10293,Supplies & Services           ,Services                      ,DF11,Counsel's Fees                          ,600.00,14/04/2016,R,REDACTED
209,Central Services,SupS Legal,Sutton Legal                            ,E10293,Supplies & Services           ,Services                      ,DF11,Counsel's Fees                          ,637.50,19/04/2016,R,REDACTED
210,Central Services,SupS Legal,Sutton Legal                            ,E10293,Supplies & Services           ,Services                      ,DF11,Counsel's Fees                          ,725.00,06/05/2016,R,REDACTED
211,Central Services,SupS Legal,Sutton Legal                            ,E10293,Supplies & Services           ,Services                      ,DF11,Counsel's Fees                          ,840.00,12/05/2016,R,REDACTED
212,Central Services,SupS Legal,Sutton Legal                            ,E10293,Supplies & Services           ,Services                      ,DF11,Counsel's Fees                          ,962.50,22/04/2016,R,REDACTED
213,Central Services,SupS Legal,Sutton Legal                            ,E10293,Supplies & Services           ,Services                      ,DF11,Counsel's Fees                          ,"1,035.00",16/05/2016,R,REDACTED
214,Central Services,SupS Legal,Sutton Legal                            ,E10293,Supplies & Services           ,Services                      ,DF11,Counsel's Fees                          ,"1,250.00",13/04/2016,R,REDACTED
215,Central Services,SupS Legal,Sutton Legal                            ,E10293,Supplies & Services           ,Services                      ,DF11,Counsel's Fees                          ,"1,500.00",17/05/2016,R,REDACTED
216,Central Services,SupS Legal,Sutton Legal                            ,E10293,Supplies & Services           ,Services                      ,DF11,Counsel's Fees                          ,"1,920.00",19/05/2016,R,REDACTED
217,Central Services,SupS Legal,Sutton Legal                            ,E10293,Supplies & Services           ,Services                      ,DF11,Counsel's Fees                          ,"4,000.00",16/05/2016,R,REDACTED
218,Central Services,SupS Legal,Sutton Legal                            ,E10293,Supplies & Services           ,Services                      ,DF11,Counsel's Fees                          ,"4,995.00",19/05/2016,R,REDACTED
219,Central Services,SupS Legal,Sutton Legal                            ,E10293,Supplies & Services           ,Services                      ,DF11,Counsel's Fees                          ,"5,100.00",25/04/2016,R,REDACTED
220,Central Services,SupS Legal,Sutton Legal                            ,E10293,Supplies & Services           ,Services                      ,DF14,Doctors and Other Fees                  ,"3,800.00",21/04/2016,R,CORAL COMMUNITY ASSESSMENTS   
221,Central Services,SupS Legal,Sutton Legal                            ,E10293,Supplies & Services           ,Services                      ,DF14,Doctors and Other Fees                  ,522.00,05/05/2016,R,EXPERT IN MIND                
222,Central Services,SupS Legal,Sutton Legal                            ,E10293,Supplies & Services           ,Services                      ,DF14,Doctors and Other Fees                  ,594.00,05/05/2016,R,EXPERT IN MIND                
223,Central Services,SupS Legal,Sutton Legal                            ,E10293,Supplies & Services           ,Services                      ,DF14,Doctors and Other Fees                  ,"2,723.80",31/03/2016,R,NATIO RESOURCING LTD          
224,Central Services,SupS Legal,Sutton Legal                            ,E10293,Supplies & Services           ,Services                      ,DF14,Doctors and Other Fees                  ,540.00,09/03/2016,R,REDACTED
225,Central Services,SupS Legal,Sutton Legal                            ,E10293,Supplies & Services           ,Services                      ,DF95,Services from Provider                  ,845.00,11/04/2016,R,MASTERS LEGAL COSTS SERV'S LLP
226,Central Services,SupS Legal,Sutton Legal                            ,E10293,Supplies & Services           ,Services                      ,DF95,Services from Provider                  ,"3,000.00",30/03/2016,R,REDACTED
227,Central Services,SupS Legal,Achieving for Children (AFC),E10295,Supplies & Services           ,Services                      ,DF11,Counsel's Fees                          ,510.00,22/04/2016,R,REDACTED
228,Central Services,SupS Legal,Achieving for Children (AFC),E10295,Supplies & Services           ,Services                      ,DF11,Counsel's Fees                          ,555.00,29/03/2016,R,REDACTED
229,Central Services,SupS Legal,Achieving for Children (AFC),E10295,Supplies & Services           ,Services                      ,DF11,Counsel's Fees                          ,"1,000.00",07/05/2016,R,REDACTED
230,Central Services,SupS Legal,Achieving for Children (AFC),E10295,Supplies & Services           ,Services                      ,DF11,Counsel's Fees                          ,"1,050.00",10/05/2016,R,REDACTED
231,Central Services,SupS Legal,Achieving for Children (AFC),E10295,Supplies & Services           ,Services                      ,DF11,Counsel's Fees                          ,"2,012.00",06/05/2016,R,REDACTED
232,Central Services,SupS Legal,Achieving for Children (AFC),E10295,Supplies & Services           ,Services                      ,DF11,Counsel's Fees                          ,"3,120.00",19/04/2016,R,REDACTED
233,Central Services,SupS Legal,Achieving for Children (AFC),E10295,Supplies & Services           ,Services                      ,DF14,Doctors and Other Fees                  ,"2,714.40",26/04/2016,R,PARENTING PROFILES ASSOCIATES 
234,Central Services,SupS Legal,Achieving for Children (AFC),E10295,Supplies & Services           ,Services                      ,DF95,Services from Provider                  ,"4,170.00",31/03/2016,R,SHARPE PRITCHARD SOLICITORS   
235,Central Services,SupS IT,Social Care Info System (SCI)           ,E14357,Employees                     ,Direct Employee Expenses      ,AA17,Agency Staff & Casual Paymts            ,"1,403.52",24/04/2016,R,HAMPTON'S RESOURCING          
236,Central Services,SupS IT,Social Care Info System (SCI)           ,E14357,Employees                     ,Direct Employee Expenses      ,AA17,Agency Staff & Casual Paymts            ,"1,403.52",01/05/2016,R,HAMPTON'S RESOURCING          
237,Central Services,SupS IT,Social Care Info System (SCI)           ,E14357,Employees                     ,Direct Employee Expenses      ,AA17,Agency Staff & Casual Paymts            ,"1,403.52",08/05/2016,R,HAMPTON'S RESOURCING          
238,Central Services,SupS IT,Social Care Info System (SCI)           ,E14357,Employees                     ,Direct Employee Expenses      ,AA17,Agency Staff & Casual Paymts            ,925.00,06/05/2016,R,NUMBER 10 INTERIM LTD         
239,Central Services,SupS IT,Social Care Info System (SCI)           ,E14357,Employees                     ,Direct Employee Expenses      ,AA17,Agency Staff & Casual Paymts            ,"2,000.00",10/05/2016,R,NUMBER 10 INTERIM LTD         
240,Central Services,SupS IT,Social Care Info System (SCI)           ,E14357,Employees                     ,Direct Employee Expenses      ,AA17,Agency Staff & Casual Paymts            ,"2,100.00",04/05/2016,R,NUMBER 10 INTERIM LTD         
241,Central Services,SupS IT,Social Care Info System (SCI)           ,E14357,Employees                     ,Direct Employee Expenses      ,AA17,Agency Staff & Casual Paymts            ,"2,500.00",13/04/2016,R,NUMBER 10 INTERIM LTD         
242,Central Services,SupS IT,Social Care Info System (SCI)           ,E14357,Employees                     ,Direct Employee Expenses      ,AA17,Agency Staff & Casual Paymts            ,"2,575.00",06/05/2016,R,NUMBER 10 INTERIM LTD         
243,Central Services,SupS IT,Social Care Info System (SCI)           ,E14357,Employees                     ,Direct Employee Expenses      ,AA17,Agency Staff & Casual Paymts            ,"7,500.00",06/05/2016,R,NUMBER 10 INTERIM LTD         
244,Central Services,SupS IT,Social Care Info System (SCI)           ,E14357,Employees                     ,Direct Employee Expenses      ,AA17,Agency Staff & Casual Paymts            ,920.00,02/03/2016,R,REDACTED
245,Central Services,SupS IT,Social Care Info System (SCI)           ,E14357,Employees                     ,Direct Employee Expenses      ,AA17,Agency Staff & Casual Paymts            ,"1,840.00",18/04/2016,R,REDACTED
246,Central Services,SupS IT,Social Care Info System (SCI)           ,E14357,Employees                     ,Direct Employee Expenses      ,AA17,Agency Staff & Casual Paymts            ,"5,060.00",18/04/2016,R,REDACTED
247,Central Services,SupS IT,Social Care Info System (SCI)           ,E14357,Employees                     ,Direct Employee Expenses      ,AA17,Agency Staff & Casual Paymts            ,"7,541.52",04/05/2016,R,REDACTED
248,Central Services,SupS IT,BI IT Projects,E14360,Employees                     ,Direct Employee Expenses      ,AA17,Agency Staff & Casual Paymts            ,"2,240.00",11/05/2016,R,REDACTED
249,Central Services,SupS IT,BI IT Projects,E14360,Employees                     ,Direct Employee Expenses      ,AA17,Agency Staff & Casual Paymts            ,"2,800.00",27/04/2016,R,REDACTED
250,Central Services,SupS IT,BI IT Projects,E14360,Employees                     ,Direct Employee Expenses      ,AA17,Agency Staff & Casual Paymts            ,"2,800.00",04/05/2016,R,REDACTED
251,CS -Oth Operating Inc & Expend,SupS Codes No Longer Used,No longer used,E14362,Transfer Payments             ,Housing Benefits              ,FA50,Burial and Cremation                    ,"1,272.00",20/04/2016,R,F.W. PAINE                    
252,CS -Oth Operating Inc & Expend,SupS Codes No Longer Used,No longer used,E14362,Transfer Payments             ,Housing Benefits              ,FA50,Burial and Cremation                    ,"1,555.00",20/04/2016,R,F.W. PAINE                    
253,Central Services,SupS IT,AD I&T,E14363,Supplies & Services           ,Comms and Computing           ,DG57,Licences Microsoft Select               ,"21,115.48",24/05/2016,R,CIVICA SERVICES LTD           
254,Central Services,SupS IT,Systems & Projects,E14366,Supplies & Services           ,Services                      ,DF03,Consultants                             ,"4,984.00",08/04/2016,R,MARCUS DONALD PEOPLE LTD      
255,Central Services,SupS IT,Systems & Projects,E14366,Supplies & Services           ,Comms and Computing           ,DG50,Other IT Expenditure                    ,"2,030.30",28/04/2016,R,SPECIALIST COMPUTER CENT. PLC 
256,Central Services,SupS IT,Operations & Telecomms,E14367,Supplies & Services           ,Comms and Computing           ,DG15,Network Maintenance                     ,"3,072.00",03/03/2016,R,BTS                           
257,Central Services,SupS IT,Operations & Telecomms,E14367,Supplies & Services           ,Comms and Computing           ,DG15,Network Maintenance                     ,611.00,03/05/2016,R,CISILION LTD                  
258,Central Services,SupS IT,Operations & Telecomms,E14367,Supplies & Services           ,Comms and Computing           ,DG15,Network Maintenance                     ,"1,327.50",03/05/2016,R,CISILION LTD                  
259,Central Services,SupS IT,Operations & Telecomms,E14367,Supplies & Services           ,Comms and Computing           ,DG15,Network Maintenance                     ,"3,360.00",30/04/2016,R,ESYNERGY SOLUTIONS LTD        
260,Central Services,SupS IT,Operations & Telecomms,E14367,Supplies & Services           ,Comms and Computing           ,DG15,Network Maintenance                     ,"1,000.00",11/05/2016,R,LONDON GRID LTD               
261,Central Services,SupS IT,Operations & Telecomms,E14367,Supplies & Services           ,Comms and Computing           ,DG15,Network Maintenance                     ,"1,800.00",11/05/2016,R,LONDON GRID LTD               
262,Central Services,SupS IT,Operations & Telecomms,E14367,Supplies & Services           ,Comms and Computing           ,DG15,Network Maintenance                     ,"4,500.00",11/05/2016,R,LONDON GRID LTD               
263,Central Services,SupS IT,Operations & Telecomms,E14367,Supplies & Services           ,Comms and Computing           ,DG15,Network Maintenance                     ,"7,500.00",11/05/2016,R,LONDON GRID LTD               
264,Central Services,SupS IT,Operations & Telecomms,E14367,Supplies & Services           ,Comms and Computing           ,DG15,Network Maintenance                     ,"8,295.00",11/05/2016,R,LONDON GRID LTD               
265,Central Services,SupS IT,Operations & Telecomms,E14367,Supplies & Services           ,Comms and Computing           ,DG15,Network Maintenance                     ,"19,905.00",11/05/2016,R,LONDON GRID LTD               
266,Central Services,SupS IT,Operations & Telecomms,E14367,Supplies & Services           ,Comms and Computing           ,DG15,Network Maintenance                     ,"30,321.00",11/05/2016,R,LONDON GRID LTD               
267,Central Services,SupS IT,Operations & Telecomms,E14367,Supplies & Services           ,Comms and Computing           ,DG54,Corporate Telephones                    ,"2,910.79",02/05/2016,R,COLT TELECOMMUNICATIONS       
268,Central Services,SupS IT,Operations & Telecomms,E14367,Supplies & Services           ,Comms and Computing           ,DG54,Corporate Telephones                    ,"1,119.42",29/04/2016,R,O2 (UK) LIMITED               
269,Central Services,SupS IT,Operations & Telecomms,E14367,Supplies & Services           ,Comms and Computing           ,DG54,Corporate Telephones                    ,"9,330.90",17/04/2016,R,ORANGE P'MENT PRO'SING AIRTIME
270,Central Services,SupS IT,Operations & Telecomms,E14367,Supplies & Services           ,Comms and Computing           ,DG54,Corporate Telephones                    ,"10,483.07",17/05/2016,R,ORANGE P'MENT PRO'SING AIRTIME
271,Central Services,SupS IT,Operations & Telecomms,E14367,Supplies & Services           ,Comms and Computing           ,DG54,Corporate Telephones                    ,752.25,26/04/2016,R,VIRGIN MEDIA PAYMENTS LTD     
272,Central Services,SupS IT,Operations & Telecomms,E14367,Supplies & Services           ,Comms and Computing           ,DG63,Software Licences - Data                ,"1,142.50",25/04/2016,R,TROJAN CONSULTANTS LIMITED    
273,Central Services,SupS IT,Distributed Services,E14368,Supplies & Services           ,Comms and Computing           ,DG15,Network Maintenance                     ,"2,878.13",31/03/2016,R,CIVICA UK LIMITED             
274,Central Services,SupS IT,Distributed Services,E14368,Supplies & Services           ,Comms and Computing           ,DG63,Software Licences - Data                ,525.00,24/05/2016,R,HORNBILL SERVICE MGMENT LTD   
275,Central Services,SupS IT,Distributed Services,E14368,Supplies & Services           ,Comms and Computing           ,DG63,Software Licences - Data                ,525.00,24/05/2016,R,HORNBILL SERVICE MGMENT LTD   
276,Central Services,SupS IT,Distributed Services,E14368,Supplies & Services           ,Comms and Computing           ,DG63,Software Licences - Data                ,875.00,24/05/2016,R,HORNBILL SERVICE MGMENT LTD   
277,Central Services,SupS IT,Distributed Services,E14368,Supplies & Services           ,Comms and Computing           ,DG63,Software Licences - Data                ,875.00,24/05/2016,R,HORNBILL SERVICE MGMENT LTD   
278,Central Services,SupS IT,Distributed Services,E14368,Supplies & Services           ,Comms and Computing           ,DG63,Software Licences - Data                ,"8,202.60",24/05/2016,R,HORNBILL SERVICE MGMENT LTD   
279,Central Services,SupS IT,Corp Saving-IT Consolidation,E14370,Premises Related Expenditure  ,RepairsAlterations&MtceOfBldgs,BA01,DDM - General Building                  ,"2,808.98",04/03/2016,R,SALTASH ENTERPRISES LTD       
280,Central Services,SupS IT,Corp Saving-IT Consolidation,E14370,Premises Related Expenditure  ,RepairsAlterations&MtceOfBldgs,BA01,DDM - General Building                  ,"8,992.00",04/03/2016,R,SALTASH ENTERPRISES LTD       
281,Central Services,SupS IT,No longer used,E14371,Employees                     ,Direct Employee Expenses      ,AA17,Agency Staff & Casual Paymts            ,"1,619.00",22/04/2016,R,HAYS SPECIALIST RECRUITM'T LTD
282,Central Services,SupS IT,No longer used,E14371,Employees                     ,Direct Employee Expenses      ,AA17,Agency Staff & Casual Paymts            ,"1,711.00",22/04/2016,R,HAYS SPECIALIST RECRUITM'T LTD
283,Central Services,SupS IT,No longer used,E14371,Employees                     ,Direct Employee Expenses      ,AA17,Agency Staff & Casual Paymts            ,"2,664.00",11/05/2016,R,HAYS SPECIALIST RECRUITM'T LTD
284,Central Services,SupS IT,No longer used,E14371,Employees                     ,Direct Employee Expenses      ,AA17,Agency Staff & Casual Paymts            ,"3,330.00",11/05/2016,R,HAYS SPECIALIST RECRUITM'T LTD
285,Central Services,SupS IT,No longer used,E14371,Employees                     ,Direct Employee Expenses      ,AA17,Agency Staff & Casual Paymts            ,"3,330.00",11/05/2016,R,HAYS SPECIALIST RECRUITM'T LTD
286,Central Services,SupS IT,No longer used,E14371,Employees                     ,Direct Employee Expenses      ,AA17,Agency Staff & Casual Paymts            ,"3,330.00",22/04/2016,R,HAYS SPECIALIST RECRUITM'T LTD
287,Central Services,SupS IT,No longer used,E14371,Employees                     ,Direct Employee Expenses      ,AA17,Agency Staff & Casual Paymts            ,"12,600.00",06/05/2016,R,MILESTONES COMMUNICATIONS LTD 
288,Highways & Transport Services,Repair prin/oth rds not split,Walk Sheets,G00127,Third Party Payments          ,Private Contractors           ,EH56,Carriageway/Fway Maint                  ,"3,488.48",26/05/2016,R,FM CONWAY LTD                 
289,Highways & Transport Services,Repair prin/oth rds not split,Walk Sheets,G00127,Third Party Payments          ,Private Contractors           ,EH56,Carriageway/Fway Maint                  ,"19,207.53",05/05/2016,R,FM CONWAY LTD                 
290,Highways & Transport Services,Repair prin/oth rds not split,Walk Sheets,G00127,Third Party Payments          ,Private Contractors           ,EH56,Carriageway/Fway Maint                  ,"20,246.05",05/05/2016,R,FM CONWAY LTD                 
291,Highways & Transport Services,Repair prin/oth rds not split,Walk Sheets,G00127,Third Party Payments          ,Private Contractors           ,EH56,Carriageway/Fway Maint                  ,"1,294.00",16/03/2016,R,FURNITUBES INTERNATIONAL LTD  
292,Highways & Transport Services,Hwys/Rds (struct) not split,"Br., H'ways & Struct",G00128,Supplies & Services           ,Grants and Subscriptions      ,DJ04,Subscriptions                           ,"1,401.00",05/05/2016,R,LONDON BRIDGES ENG. GROUP     
293,Highways & Transport Services,Saf mtc prin/oth rds not split,Traffic Signs.,G00160,Premises Related Expenditure  ,Energy Costs                  ,BB02,Electricity                             ,"49,570.56",03/05/2016,R,SCOTTISH POWER                
294,Highways & Transport Services,Saf mtc prin/oth rds not split,Traffic Signs.,G00160,Third Party Payments          ,Private Contractors           ,EH01,Miscellaneous Agency Services           ,"5,012.69",05/05/2016,R,FM CONWAY LTD                 
295,Highways & Transport Services,Saf mtc prin/oth rds not split,Traffic Signs.,G00160,Third Party Payments          ,Private Contractors           ,EH01,Miscellaneous Agency Services           ,668.54,29/04/2016,R,KIER INTEGRATED SERVICES LTD  
296,Highways & Transport Services,Saf mtc prin/oth rds not split,Traffic Signs.,G00160,Third Party Payments          ,Private Contractors           ,EH01,Miscellaneous Agency Services           ,785.97,18/05/2016,R,KIER INTEGRATED SERVICES LTD  
297,Highways & Transport Services,Saf mtc prin/oth rds not split,Traffic Signs.,G00160,Third Party Payments          ,Private Contractors           ,EH01,Miscellaneous Agency Services           ,795.95,26/04/2016,R,KIER INTEGRATED SERVICES LTD  
298,Highways & Transport Services,Saf mtc prin/oth rds not split,Traffic Signals .,G00170,Third Party Payments          ,Other Agencies                ,EJ57,Traffic Signals Control Unit            ,"72,476.07",12/05/2016,R,TRANSPORT FOR LONDON          
299,Highways & Transport Services,Construction Projects,TRAF & HWYS CAPITAL PROJECTS,G00210,Supplies & Services           ,Comms and Computing           ,DG07,Computer Software                       ,595.00,20/04/2016,R,KEYSOFT SOLUTIONS             
300,Highways & Transport Services,Construction Projects,TRAF & HWYS CAPITAL PROJECTS,G00210,Supplies & Services           ,Comms and Computing           ,DG07,Computer Software                       ,595.00,20/04/2016,R,KEYSOFT SOLUTIONS             
301,Highways & Transport Services,Construction Projects,TRAF & HWYS CAPITAL PROJECTS,G00210,Supplies & Services           ,Comms and Computing           ,DG07,Computer Software                       ,"1,050.00",20/04/2016,R,KEYSOFT SOLUTIONS             
302,Highways & Transport Services,Construction Projects,TRAF & HWYS CAPITAL PROJECTS,G00210,Supplies & Services           ,Comms and Computing           ,DG07,Computer Software                       ,"1,050.00",20/04/2016,R,KEYSOFT SOLUTIONS             
303,Highways & Transport Services,Transport Plg/Policy/Strategy,CPZ implementation & Consultat,G00211,Third Party Payments          ,Private Contractors           ,EH56,Carriageway/Fway Maint                  ,653.05,05/05/2016,R,FM CONWAY LTD                 
304,Highways & Transport Services,Street Lighting.,Street Lighting .,G00260,Third Party Payments          ,Private Contractors           ,EH01,Miscellaneous Agency Services           ,"1,272.41",18/05/2016,R,KIER INTEGRATED SERVICES LTD  
305,Highways & Transport Services,Street Lighting.,Street Lighting .,G00260,Third Party Payments          ,Private Contractors           ,EH01,Miscellaneous Agency Services           ,"1,546.54",29/04/2016,R,KIER INTEGRATED SERVICES LTD  
306,Highways & Transport Services,Street Lighting.,Street Lighting .,G00260,Third Party Payments          ,Private Contractors           ,EH01,Miscellaneous Agency Services           ,"1,572.17",28/04/2016,R,KIER INTEGRATED SERVICES LTD  
307,Highways & Transport Services,Street Lighting.,Street Lighting .,G00260,Third Party Payments          ,Private Contractors           ,EH01,Miscellaneous Agency Services           ,"3,162.39",28/04/2016,R,KIER INTEGRATED SERVICES LTD  
308,Highways & Transport Services,Street Lighting.,Street Lighting .,G00260,Third Party Payments          ,Private Contractors           ,EH01,Miscellaneous Agency Services           ,"13,182.00",28/04/2016,R,KIER INTEGRATED SERVICES LTD  
309,Highways & Transport Services,Street Lighting.,Street Lighting .,G00260,Third Party Payments          ,Private Contractors           ,EH01,Miscellaneous Agency Services           ,526.00,11/04/2016,R,UK POWER NETWORKS (OPERATIONS)
310,Highways & Transport Services,Street Lighting.,Street Lighting .,G00260,Third Party Payments          ,Private Contractors           ,EH01,Miscellaneous Agency Services           ,642.00,19/04/2016,R,UK POWER NETWORKS (OPERATIONS)
311,Highways & Transport Services,Street Lighting.,Street Lighting .,G00260,Third Party Payments          ,Private Contractors           ,EH01,Miscellaneous Agency Services           ,642.00,11/04/2016,R,UK POWER NETWORKS (OPERATIONS)
312,Highways & Transport Services,Street Lighting.,Street Lighting .,G00260,Third Party Payments          ,Private Contractors           ,EH01,Miscellaneous Agency Services           ,734.00,11/04/2016,R,UK POWER NETWORKS (OPERATIONS)
313,Highways & Transport Services,Off-street parking,Car Parks (Unloc),G00291,Premises Related Expenditure  ,RepairsAlterations&MtceOfBldgs,BA06,REPAIRS & MAINTENANCE GENERAL           ,"3,115.22",05/05/2016,R,FM CONWAY LTD                 
314,Highways & Transport Services,Off-street parking,Car Parks (Unloc),G00291,Third Party Payments          ,Private Contractors           ,EH02,Miscellaneous Hired Services            ,"3,666.00",30/04/2016,R,COBALT TELEPHONE TECHNOLOGIES 
315,Highways & Transport Services,Off-street parking,St. Georges Car Park WEST M/S,G00302,Premises Related Expenditure  ,Rents                         ,BC01,Miscellaneous Rents                     ,924.29,03/05/2016,R,REDACTED
316,Highways & Transport Services,On-street parking,On Street Parking.,G00311,Premises Related Expenditure  ,RepairsAlterations&MtceOfBldgs,BA06,REPAIRS & MAINTENANCE GENERAL           ,"2,653.43",05/05/2016,R,FM CONWAY LTD                 
317,Highways & Transport Services,Parking Enforcement not split,Operational Running Costs,G00331,Supplies & Services           ,Equip Furniture/Materials     ,DA09,Equip-Purchases                         ,"3,760.00",13/05/2016,R,PARKEON LTD                   
318,Highways & Transport Services,Parking Enforcement not split,Operational Running Costs,G00331,Supplies & Services           ,Equip Furniture/Materials     ,DA09,Equip-Purchases                         ,"3,890.00",17/05/2016,R,PARKEON LTD                   
319,Highways & Transport Services,Parking Enforcement not split,Operational Running Costs,G00331,Supplies & Services           ,Prntng Stnry Gen Off Exp      ,DE01,External Printing                       ,"2,179.20",18/05/2016,R,LIBERTY PRINTERS (AR RF REDDIN
320,Highways & Transport Services,Parking Enforcement not split,Operational Running Costs,G00331,Supplies & Services           ,Prntng Stnry Gen Off Exp      ,DE01,External Printing                       ,"1,608.00",28/04/2016,R,NAGELS UK LTD                 
321,Highways & Transport Services,Parking Enforcement not split,Operational Running Costs,G00331,Supplies & Services           ,Comms and Computing           ,DG61,Computer Servs Special                  ,"29,750.00",03/05/2016,R,BARBOUR LOGIC LTD             
322,Highways & Transport Services,Hwys/Rds (struct) not split,Footpath Crossings.,G00390,Third Party Payments          ,Private Contractors           ,EH56,Carriageway/Fway Maint                  ,775.40,26/05/2016,R,FM CONWAY LTD                 
323,Highways & Transport Services,Hwys/Rds (struct) not split,Footpath Crossings.,G00390,Third Party Payments          ,Private Contractors           ,EH56,Carriageway/Fway Maint                  ,"3,561.77",26/05/2016,R,FM CONWAY LTD                 
324,Highways & Transport Services,Hwys/Rds (struct) not split,Footpath Crossings.,G00390,Third Party Payments          ,Private Contractors           ,EH56,Carriageway/Fway Maint                  ,"6,438.88",05/05/2016,R,FM CONWAY LTD                 
325,Highways & Transport Services,Hwys/Rds (struct) not split,Footpath Crossings.,G00390,Third Party Payments          ,Private Contractors           ,EH56,Carriageway/Fway Maint                  ,611.96,18/05/2016,R,KIER INTEGRATED SERVICES LTD  
326,Highways & Transport Services,Hwys/Rds (struct) not split,Footpath Crossings.,G00390,Third Party Payments          ,Private Contractors           ,EH56,Carriageway/Fway Maint                  ,650.00,18/05/2016,R,UK POWER NETWORKS (OPERATIONS)
327,Cultural Env Reg&Plan Services,Street Clean - Not highways,Street Cleansing (Inc. Gully),G00492,Transport Related Expenditure ,Direct Transport Costs        ,CA72,Vehicle Parts                           ,"1,425.00",27/04/2016,R,JOHNSTON SWEEPERS LIMITED     
328,Cultural Env Reg&Plan Services,Street Clean - Not highways,Street Cleansing (Inc. Gully),G00492,Supplies & Services           ,Equip Furniture/Materials     ,DA03,Hire of Equipment                       ,690.00,27/04/2016,R,COMCIR RADIO COMMUNICATIONS LT
329,Cultural Env Reg&Plan Services,Street Clean - Not highways,Street Cleansing (Inc. Gully),G00492,Supplies & Services           ,Equip Furniture/Materials     ,DA03,Hire of Equipment                       ,"1,390.00",27/04/2016,R,COMCIR RADIO COMMUNICATIONS LT
330,Cultural Env Reg&Plan Services,Street Clean - Not highways,Street Cleansing (Inc. Gully),G00492,Supplies & Services           ,Equip Furniture/Materials     ,DA31,Waste Sacks & Bags                      ,"3,024.38",19/05/2016,R,IMPERIAL POLYTHENE PRODUCTS LT
331,Cultural Env Reg&Plan Services,Street Clean - Not highways,Street Cleansing (Inc. Gully),G00492,Supplies & Services           ,Clothing Unfrms Laundry       ,DC02,Clothing & Uniforms                     ,843.50,13/05/2016,R,GREENHAM TRADING LTD          
332,Cultural Env Reg&Plan Services,Waste Disposal (not separated),Waste Disposal .,G00550,Third Party Payments          ,Private Contractors           ,EH66,Clinical Waste Disposal                 ,571.17,30/04/2016,R,S.GRUNDON (WASTE) LTD.        
333,Cultural Env Reg&Plan Services,Waste Disposal (not separated),Waste Disposal .,G00550,Third Party Payments          ,Other Agencies                ,EJ50,LWRA Hazardous Waste Disposal           ,"3,313.68",06/05/2016,R,CITY OF LONDON CORPORATION    
334,Cultural Env Reg&Plan Services,Civic Amenity Sites,Garth Road Site,G00580,Third Party Payments          ,Private Contractors           ,EH18,SLWP C3 Food Waste Gate Fees            ,"7,364.55",28/04/2016,R,KINGSTON CORPORATION          
335,Cultural Env Reg&Plan Services,Civic Amenity Sites,Garth Road Site,G00580,Third Party Payments          ,Private Contractors           ,EH61,Green Waste Disposal                    ,"2,930.37",28/04/2016,R,KINGSTON CORPORATION          
336,Cultural Env Reg&Plan Services,Public Health,Dog Control.,G00620,Third Party Payments          ,Private Contractors           ,EH02,Miscellaneous Hired Services            ,"2,405.00",10/05/2016,R,NOAH'S ARK ENVIRONMENTAL SERV.
337,Cultural Env Reg&Plan Services,Recycling (Collection),Recycling Activities,G00640,Third Party Payments          ,Private Contractors           ,EH08,SLWP C1 Haulage Dry Recyclable          ,770.00,28/04/2016,R,KINGSTON CORPORATION          
338,Cultural Env Reg&Plan Services,Recycling (Collection),Garden Waste Service,G00647,Supplies & Services           ,Equip Furniture/Materials     ,DA32,Wheeled Bins                            ,"2,184.00",06/04/2016,R,CRAEMER UK LTD                
339,Cultural Env Reg&Plan Services,Recycling (Collection),Garden Waste Service,G00647,Third Party Payments          ,Private Contractors           ,EH61,Green Waste Disposal                    ,"4,014.19",28/04/2016,R,KINGSTON CORPORATION          
340,Cultural Env Reg&Plan Services,Recycling (Collection),Food Waste Service,G00648,Supplies & Services           ,Equip Furniture/Materials     ,DA32,Wheeled Bins                            ,850.00,29/04/2016,R,CRAEMER UK LTD                
341,Cultural Env Reg&Plan Services,Recycling (Collection),Food Waste Service,G00648,Supplies & Services           ,Clothing Unfrms Laundry       ,DC02,Clothing & Uniforms                     ,"1,011.60",06/05/2016,R,GREENHAM                      
342,Cultural Env Reg&Plan Services,Household Waste Collection,Refuse Collection (Operations),G00661,Transport Related Expenditure ,Direct Transport Costs        ,CA52,Reps Vehicles Ins Claims                ,750.00,25/04/2016,R,S.E.T.S SERVICES              
343,Cultural Env Reg&Plan Services,Household Waste Collection,Refuse Collection (Operations),G00661,Transport Related Expenditure ,Direct Transport Costs        ,CA52,Reps Vehicles Ins Claims                ,"1,500.00",25/05/2016,R,S.E.T.S SERVICES              
344,Cultural Env Reg&Plan Services,Trade Waste Collection,Commercial Waste Collection,G00665,Supplies & Services           ,Clothing Unfrms Laundry       ,DC02,Clothing & Uniforms                     ,869.64,10/05/2016,R,GREENHAM TRADING LTD          
345,Cultural Env Reg&Plan Services,Street Clean - Not highways,Waste Enforcement,G00680,Supplies & Services           ,Services                      ,DF30,Activities Programme                    ,940.00,30/03/2016,R,DANGEROUS THEATRE COMPANY     
346,Cultural Env Reg&Plan Services,Inspect/Enforce (Consumer P),Trading Standards,G00690,Supplies & Services           ,Services                      ,DF03,Consultants                             ,735.04,13/04/2016,R,LONDON BOROUGH OF SUTTON      
347,Cultural Env Reg&Plan Services,Inspect/Enforce (Consumer P),Trading Standards,G00690,Supplies & Services           ,Grants and Subscriptions      ,DJ04,Subscriptions                           ,"1,000.00",24/05/2016,R,TAMESIDE MBC                  
348,Cultural Env Reg&Plan Services,Food Safety,Health & Safety,G00697,Supplies & Services           ,Services                      ,DF11,Counsel's Fees                          ,"2,640.00",20/04/2016,R,REDACTED
349,Cultural Env Reg&Plan Services,Housing Standards,Housing/Env,G00730,Supplies & Services           ,Equip Furniture/Materials     ,DA09,Equip-Purchases                         ,"4,180.00",18/05/2016,R,ENVIRO TECHNOLOGY SERVICES PLC
350,Cultural Env Reg&Plan Services,Mgt & Support (Env),SLWP (rechargeable)                     ,G00905,Supplies & Services           ,Services                      ,DF03,Consultants                             ,"3,645.00",29/04/2016,R,BRAND NARRATIVE LIMITED       
351,Cultural Env Reg&Plan Services,Inspect/Enforce (Consumer P),Reg. Serv - Shared Mgnt Costs           ,G01000,Employees                     ,Indirect Employee Expenses    ,AB02,Recruitment Adverts                     ,"1,000.00",27/04/2016,R,CHARTERED INST.OF ENVIR.HEALTH
352,Central Services,Grants - Voluntary Groups,Vestry Hall,G19290,Employees                     ,Direct Employee Expenses      ,AA17,Agency Staff & Casual Paymts            ,"(5,347.61)",30/04/2016,R,REDACTED
353,Central Services,Grants - Voluntary Groups,Vestry Hall,G19290,Employees                     ,Direct Employee Expenses      ,AA17,Agency Staff & Casual Paymts            ,"1,089.90",24/05/2016,R,REDACTED
354,Central Services,Grants - Voluntary Groups,Vestry Hall,G19290,Employees                     ,Direct Employee Expenses      ,AA17,Agency Staff & Casual Paymts            ,"5,347.61",10/04/2016,R,REDACTED
355,Central Services,Grants - Voluntary Groups,Vestry Hall,G19290,Employees                     ,Direct Employee Expenses      ,AA17,Agency Staff & Casual Paymts            ,"5,565.40",30/04/2016,R,REDACTED
356,Central Services,Grants - Voluntary Groups,Vestry Hall,G19290,Premises Related Expenditure  ,Cleaning and Domestic Supplies,BH03,Cleaning Services                       ,"1,934.50",30/04/2016,R,BIRKIN CLEANING SERVICES LTD  
357,Central Services,Grants - Voluntary Groups,Vestry Hall,G19290,Supplies & Services           ,Prntng Stnry Gen Off Exp      ,DE22,Marketing                               ,"1,500.00",15/04/2016,R,NEWSQUEST MEDIA GROUP LTD     
358,Central Services,Grants - Voluntary Groups,Vestry Hall,G19290,Supplies & Services           ,Prntng Stnry Gen Off Exp      ,DE22,Marketing                               ,500.00,10/05/2016,R,REDACTED
359,Central Services,Grants - Voluntary Groups,Vestry Hall,G19290,Supplies & Services           ,Prntng Stnry Gen Off Exp      ,DE22,Marketing                               ,"2,000.00",10/05/2016,R,REDACTED
360,Highways & Transport Services,Transport Plg/Policy/Strategy,Transport Planning,H01070,Supplies & Services           ,Grants and Subscriptions      ,DJ04,Subscriptions                           ,"2,000.00",29/04/2016,R,URBAN DESIGN LONDON           
361,Highways & Transport Services,Safe routes inc schl x patrol,School & Road Safety TFL                ,H01083,Supplies & Services           ,Equip Furniture/Materials     ,DA04,Materials                               ,765.00,29/04/2016,R,BIKEWIZE MOTORCYCLE TRAINING  
362,Highways & Transport Services,Safe routes inc schl x patrol,School & Road Safety TFL                ,H01083,Supplies & Services           ,Equip Furniture/Materials     ,DA04,Materials                               ,"1,855.00",26/05/2016,R,FM CONWAY LTD                 
363,Cultural Env Reg&Plan Services,BC Regs & Other not split,Building Control,H01100,Supplies & Services           ,Prntng Stnry Gen Off Exp      ,DE05,Micro-filming                           ,"2,969.09",22/04/2016,R,SCANVIEW UK LIMITED           
364,Cultural Env Reg&Plan Services,DC Advice Apps & Reg not split,Development Control,H01130,Supplies & Services           ,Grants and Subscriptions      ,DJ04,Subscriptions                           ,"1,235.00",13/04/2016,R,HAYMARKET MEDIA GROUP LIMITED 
365,Cultural Env Reg&Plan Services,DC Advice Apps & Reg not split,Development Control,H01130,Customer and client receipts  ,Fees                          ,RB56,Application Fees X                      ,577.50,26/05/2016,R,REDACTED
366,Cultural Env Reg&Plan Services,Planning Policy not split,Spatial Policy,H01173,Supplies & Services           ,Services                      ,DF03,Consultants                             ,975.00,28/04/2016,R,URBAN ENTERPRISE NETWORK      
367,Cultural Env Reg&Plan Services,Planning Policy not split,Spatial Policy,H01173,Supplies & Services           ,Grants and Subscriptions      ,DJ04,Subscriptions                           ,500.00,26/04/2016,R,HERITAGE OF LONDON TRUST LTD  
368,Cultural Env Reg&Plan Services,Planning Policy not split,Spatial Policy,H01173,Supplies & Services           ,Grants and Subscriptions      ,DJ04,Subscriptions                           ,"2,000.00",29/04/2016,R,URBAN DESIGN LONDON           
369,Cultural Env Reg&Plan Services,Planning Policy not split,Spatial Policy,H01173,Third Party Payments          ,Other Local Authorities       ,EB01,Payments to OLAs                        ,"3,000.00",11/05/2016,R,ISLINGTON COUNCIL             
370,Cultural Env Reg&Plan Services,Economic Dev (Not separated),NHB-Morden Shopping Parades             ,H01190,Supplies & Services           ,Services                      ,DF03,Consultants                             ,975.00,08/05/2016,R,URBAN ENTERPRISE NETWORK      
371,Cultural Env Reg&Plan Services,Economic Dev (Not separated),NHB-Morden Shopping Parades             ,H01190,Supplies & Services           ,Services                      ,DF03,Consultants                             ,975.00,16/05/2016,R,URBAN ENTERPRISE NETWORK      
372,Cultural Env Reg&Plan Services,Economic Dev (Not separated),NHB-Morden Shopping Parades             ,H01190,Supplies & Services           ,Services                      ,DF03,Consultants                             ,"1,137.50",20/05/2016,R,URBAN ENTERPRISE NETWORK      
373,Cultural Env Reg&Plan Services,Economic Dev (Not separated),Capt Ambition-Suburban Opprt Z,H01231,Supplies & Services           ,Services                      ,DF02,Misc Advertising/Publicity              ,"9,950.00",30/03/2016,R,3FOX INTERNATIONAL            
374,Cultural Env Reg&Plan Services,Economic Dev (Not separated),Capt Ambition-Suburban Opprt Z,H01231,Third Party Payments          ,Private Contractors           ,EH10,Contract Payments                       ,"3,300.00",31/03/2016,R,PADDINGTON DEVELOPMENT TRUST  
375,CS -Oth Operating Inc & Expend,T/A Vehicle Maintenance etc,Transport-Contract Hire,J01374,Employees                     ,Direct Employee Expenses      ,AA17,Agency Staff & Casual Paymts            ,"10,962.00",17/05/2016,R,PENNA PLC                     
376,CS -Oth Operating Inc & Expend,T/A Vehicle Maintenance etc,Transport-Contract Hire,J01374,Transport Related Expenditure ,Direct Transport Costs        ,CA01,Petrol Derv & Oil                       ,564.58,30/04/2016,R,B P OIL UK LIMITED            
377,CS -Oth Operating Inc & Expend,T/A Vehicle Maintenance etc,Transport-Contract Hire,J01374,Transport Related Expenditure ,Direct Transport Costs        ,CA01,Petrol Derv & Oil                       ,"29,041.99",20/04/2016,R,EMO OILS LTD                  
378,CS -Oth Operating Inc & Expend,T/A Vehicle Maintenance etc,Transport-Contract Hire,J01374,Transport Related Expenditure ,Direct Transport Costs        ,CA01,Petrol Derv & Oil                       ,"29,393.00",10/05/2016,R,EMO OILS LTD                  
379,CS -Oth Operating Inc & Expend,T/A Vehicle Maintenance etc,Transport-Contract Hire,J01374,Transport Related Expenditure ,Contract Hire and Op Leasing  ,CC53,Plant Hire for MRCS                     ,960.00,30/04/2016,R,B&T PLANT HIRE LTD            
380,CS -Oth Operating Inc & Expend,T/A Vehicle Maintenance etc,Transport-Contract Hire,J01374,Transport Related Expenditure ,Contract Hire and Op Leasing  ,CC53,Plant Hire for MRCS                     ,610.00,19/04/2016,R,CALVERTON FINANCE LTD         
381,CS -Oth Operating Inc & Expend,T/A Vehicle Maintenance etc,Transport-Contract Hire,J01374,Transport Related Expenditure ,Contract Hire and Op Leasing  ,CC53,Plant Hire for MRCS                     ,610.00,12/04/2016,R,CALVERTON FINANCE LTD         
382,CS -Oth Operating Inc & Expend,T/A Vehicle Maintenance etc,Transport-Contract Hire,J01374,Transport Related Expenditure ,Contract Hire and Op Leasing  ,CC53,Plant Hire for MRCS                     ,990.00,09/05/2016,R,COLLETT TRANSPORT SERVICES    
383,CS -Oth Operating Inc & Expend,T/A Vehicle Maintenance etc,Transport-Contract Hire,J01374,Transport Related Expenditure ,Contract Hire and Op Leasing  ,CC53,Plant Hire for MRCS                     ,"1,020.00",09/05/2016,R,COLLETT TRANSPORT SERVICES    
384,CS -Oth Operating Inc & Expend,T/A Vehicle Maintenance etc,Transport-Contract Hire,J01374,Transport Related Expenditure ,Contract Hire and Op Leasing  ,CC53,Plant Hire for MRCS                     ,"3,465.00",30/04/2016,R,COLLETT TRANSPORT SERVICES    
385,CS -Oth Operating Inc & Expend,T/A Vehicle Maintenance etc,Transport-Contract Hire,J01374,Transport Related Expenditure ,Contract Hire and Op Leasing  ,CC53,Plant Hire for MRCS                     ,"3,570.00",30/04/2016,R,COLLETT TRANSPORT SERVICES    
386,CS -Oth Operating Inc & Expend,T/A Vehicle Maintenance etc,Transport-Contract Hire,J01374,Transport Related Expenditure ,Contract Hire and Op Leasing  ,CC53,Plant Hire for MRCS                     ,"3,215.80",28/04/2016,R,ECON ENGINEERING LTD          
387,CS -Oth Operating Inc & Expend,T/A Vehicle Maintenance etc,Transport-Contract Hire,J01374,Transport Related Expenditure ,Contract Hire and Op Leasing  ,CC53,Plant Hire for MRCS                     ,745.00,10/05/2016,R,GULLIVER'S TRUCK HIRE LTD.    
388,CS -Oth Operating Inc & Expend,T/A Vehicle Maintenance etc,Transport-Contract Hire,J01374,Transport Related Expenditure ,Contract Hire and Op Leasing  ,CC53,Plant Hire for MRCS                     ,745.00,04/05/2016,R,GULLIVER'S TRUCK HIRE LTD.    
389,CS -Oth Operating Inc & Expend,T/A Vehicle Maintenance etc,Transport-Contract Hire,J01374,Transport Related Expenditure ,Contract Hire and Op Leasing  ,CC53,Plant Hire for MRCS                     ,745.00,19/04/2016,R,GULLIVER'S TRUCK HIRE LTD.    
390,CS -Oth Operating Inc & Expend,T/A Vehicle Maintenance etc,Transport-Contract Hire,J01374,Transport Related Expenditure ,Contract Hire and Op Leasing  ,CC53,Plant Hire for MRCS                     ,745.00,25/04/2016,R,GULLIVER'S TRUCK HIRE LTD.    
391,CS -Oth Operating Inc & Expend,T/A Vehicle Maintenance etc,Transport-Contract Hire,J01374,Transport Related Expenditure ,Contract Hire and Op Leasing  ,CC53,Plant Hire for MRCS                     ,875.00,04/05/2016,R,GULLIVER'S TRUCK HIRE LTD.    
392,CS -Oth Operating Inc & Expend,T/A Vehicle Maintenance etc,Transport-Contract Hire,J01374,Transport Related Expenditure ,Contract Hire and Op Leasing  ,CC53,Plant Hire for MRCS                     ,875.00,19/04/2016,R,GULLIVER'S TRUCK HIRE LTD.    
393,CS -Oth Operating Inc & Expend,T/A Vehicle Maintenance etc,Transport-Contract Hire,J01374,Transport Related Expenditure ,Contract Hire and Op Leasing  ,CC53,Plant Hire for MRCS                     ,875.00,25/04/2016,R,GULLIVER'S TRUCK HIRE LTD.    
394,CS -Oth Operating Inc & Expend,T/A Vehicle Maintenance etc,Transport-Contract Hire,J01374,Transport Related Expenditure ,Contract Hire and Op Leasing  ,CC53,Plant Hire for MRCS                     ,989.42,12/05/2016,R,GULLIVER'S TRUCK HIRE LTD.    
395,CS -Oth Operating Inc & Expend,T/A Vehicle Maintenance etc,Transport-Contract Hire,J01374,Transport Related Expenditure ,Contract Hire and Op Leasing  ,CC53,Plant Hire for MRCS                     ,"4,255.40",07/05/2016,R,GULLIVER'S TRUCK HIRE LTD.    
396,CS -Oth Operating Inc & Expend,T/A Vehicle Maintenance etc,Transport-Contract Hire,J01374,Transport Related Expenditure ,Contract Hire and Op Leasing  ,CC53,Plant Hire for MRCS                     ,"1,119.87",18/04/2016,R,M6 VEHICLE HIRE               
397,CS -Oth Operating Inc & Expend,T/A Vehicle Maintenance etc,Transport-Contract Hire,J01374,Transport Related Expenditure ,Contract Hire and Op Leasing  ,CC53,Plant Hire for MRCS                     ,"2,856.00",30/04/2016,R,M6 VEHICLE HIRE               
398,CS -Oth Operating Inc & Expend,T/A Vehicle Maintenance etc,Transport-Contract Hire,J01374,Transport Related Expenditure ,Contract Hire and Op Leasing  ,CC53,Plant Hire for MRCS                     ,693.00,30/04/2016,R,REDACTED
399,CS -Oth Operating Inc & Expend,T/A Vehicle Maintenance etc,Transport-Contract Hire,J01374,Transport Related Expenditure ,Contract Hire and Op Leasing  ,CC53,Plant Hire for MRCS                     ,693.00,30/04/2016,R,REDACTED
400,CS -Oth Operating Inc & Expend,T/A Vehicle Maintenance etc,Transport-Contract Hire,J01374,Transport Related Expenditure ,Contract Hire and Op Leasing  ,CC53,Plant Hire for MRCS                     ,"1,365.00",30/04/2016,R,REDACTED
401,CS -Oth Operating Inc & Expend,T/A Vehicle Maintenance etc,Transport-Contract Hire,J01374,Transport Related Expenditure ,Contract Hire and Op Leasing  ,CC53,Plant Hire for MRCS                     ,"3,024.00",29/04/2016,R,RIVERSIDE TRUCK RENTAL LTD    
402,CS -Oth Operating Inc & Expend,T/A Vehicle Maintenance etc,Transport-Contract Hire,J01374,Transport Related Expenditure ,Contract Hire and Op Leasing  ,CC53,Plant Hire for MRCS                     ,"3,192.00",29/04/2016,R,RIVERSIDE TRUCK RENTAL LTD    
403,CS -Oth Operating Inc & Expend,T/A Vehicle Maintenance etc,Transport-Contract Hire,J01374,Transport Related Expenditure ,Contract Hire and Op Leasing  ,CC53,Plant Hire for MRCS                     ,"5,214.00",11/05/2016,R,STENNETTS LTD                 
404,CS -Oth Operating Inc & Expend,T/A Vehicle Maintenance etc,Transport-Contract Hire,J01374,Transport Related Expenditure ,Contract Hire and Op Leasing  ,CC56,Plant Hire for Leisure                  ,585.00,30/04/2016,R,REDACTED
405,CS -Oth Operating Inc & Expend,T/A Vehicle Maintenance etc,Transport-Contract Hire,J01374,Transport Related Expenditure ,Contract Hire and Op Leasing  ,CC56,Plant Hire for Leisure                  ,585.00,30/04/2016,R,REDACTED
406,CS -Oth Operating Inc & Expend,T/A Vehicle Maintenance etc,Transport-Contract Hire,J01374,Transport Related Expenditure ,Contract Hire and Op Leasing  ,CC56,Plant Hire for Leisure                  ,585.00,30/04/2016,R,REDACTED
407,CS -Oth Operating Inc & Expend,T/A Vehicle Maintenance etc,Transport-Contract Hire,J01374,Transport Related Expenditure ,Contract Hire and Op Leasing  ,CC56,Plant Hire for Leisure                  ,585.00,30/04/2016,R,REDACTED
408,CS -Oth Operating Inc & Expend,T/A Vehicle Maintenance etc,Transport-Contract Hire,J01374,Transport Related Expenditure ,Contract Hire and Op Leasing  ,CC57,Pland Hire for Housing                  ,786.30,16/05/2016,R,REDACTED
409,CS -Oth Operating Inc & Expend,T/A Vehicle Maintenance etc,Transport-Contract Hire,J01374,Transport Related Expenditure ,Contract Hire and Op Leasing  ,CC59,HIRING TRANSPORT OPERATIONS             ,"1,386.00",29/04/2016,R,ENTERPRISE RENT-A-CAR UK LTD  
410,CS -Oth Operating Inc & Expend,T/A Vehicle Maintenance etc,Transport-Contract Hire,J01374,Transport Related Expenditure ,Contract Hire and Op Leasing  ,CC59,HIRING TRANSPORT OPERATIONS             ,"1,386.00",29/04/2016,R,ENTERPRISE RENT-A-CAR UK LTD  
411,CS -Oth Operating Inc & Expend,T/A Vehicle Maintenance etc,Transport-Contract Hire,J01374,Transport Related Expenditure ,Contract Hire and Op Leasing  ,CC59,HIRING TRANSPORT OPERATIONS             ,"1,386.00",29/04/2016,R,ENTERPRISE RENT-A-CAR UK LTD  
412,CS -Oth Operating Inc & Expend,T/A Vehicle Maintenance etc,Transport-Contract Hire,J01374,Transport Related Expenditure ,Contract Hire and Op Leasing  ,CC59,HIRING TRANSPORT OPERATIONS             ,559.58,30/04/2016,R,REDACTED
413,CS -Oth Operating Inc & Expend,T/A Vehicle Maintenance etc,Transport-Contract Hire,J01374,Transport Related Expenditure ,Contract Hire and Op Leasing  ,CC59,HIRING TRANSPORT OPERATIONS             ,559.58,30/04/2016,R,REDACTED
414,CS -Oth Operating Inc & Expend,T/A Vehicle Maintenance etc,Transport-Contract Hire,J01374,Transport Related Expenditure ,Contract Hire and Op Leasing  ,CC59,HIRING TRANSPORT OPERATIONS             ,559.58,30/04/2016,R,REDACTED
415,CS -Oth Operating Inc & Expend,T/A Vehicle Maintenance etc,Transport-Contract Hire,J01374,Transport Related Expenditure ,Contract Hire and Op Leasing  ,CC59,HIRING TRANSPORT OPERATIONS             ,559.58,30/04/2016,R,REDACTED
416,CS -Oth Operating Inc & Expend,T/A Vehicle Maintenance etc,Transport-Contract Hire,J01374,Transport Related Expenditure ,Contract Hire and Op Leasing  ,CC64,CSF - SEN CABS (RK02)                   ,"1,140.00",30/04/2016,R,A STAR TRANSPORT LIMITED      
417,CS -Oth Operating Inc & Expend,T/A Vehicle Maintenance etc,Transport-Contract Hire,J01374,Transport Related Expenditure ,Contract Hire and Op Leasing  ,CC64,CSF - SEN CABS (RK02)                   ,"1,560.00",30/04/2016,R,A STAR TRANSPORT LIMITED      
418,CS -Oth Operating Inc & Expend,T/A Vehicle Maintenance etc,Transport-Contract Hire,J01374,Transport Related Expenditure ,Contract Hire and Op Leasing  ,CC64,CSF - SEN CABS (RK02)                   ,"1,344.00",30/04/2016,R,BARCLAYS ASSET & SALES FINANCE
419,CS -Oth Operating Inc & Expend,T/A Vehicle Maintenance etc,Transport-Contract Hire,J01374,Transport Related Expenditure ,Contract Hire and Op Leasing  ,CC64,CSF - SEN CABS (RK02)                   ,"1,440.00",30/04/2016,R,BARCLAYS ASSET & SALES FINANCE
420,CS -Oth Operating Inc & Expend,T/A Vehicle Maintenance etc,Transport-Contract Hire,J01374,Transport Related Expenditure ,Contract Hire and Op Leasing  ,CC64,CSF - SEN CABS (RK02)                   ,"1,440.00",30/04/2016,R,BARCLAYS ASSET & SALES FINANCE
421,CS -Oth Operating Inc & Expend,T/A Vehicle Maintenance etc,Transport-Contract Hire,J01374,Transport Related Expenditure ,Contract Hire and Op Leasing  ,CC64,CSF - SEN CABS (RK02)                   ,"1,540.00",30/04/2016,R,BARCLAYS ASSET & SALES FINANCE
422,CS -Oth Operating Inc & Expend,T/A Vehicle Maintenance etc,Transport-Contract Hire,J01374,Transport Related Expenditure ,Contract Hire and Op Leasing  ,CC64,CSF - SEN CABS (RK02)                   ,"1,820.00",30/04/2016,R,BARCLAYS ASSET & SALES FINANCE
423,CS -Oth Operating Inc & Expend,T/A Vehicle Maintenance etc,Transport-Contract Hire,J01374,Transport Related Expenditure ,Contract Hire and Op Leasing  ,CC64,CSF - SEN CABS (RK02)                   ,"2,128.00",30/04/2016,R,BARCLAYS ASSET & SALES FINANCE
424,CS -Oth Operating Inc & Expend,T/A Vehicle Maintenance etc,Transport-Contract Hire,J01374,Transport Related Expenditure ,Contract Hire and Op Leasing  ,CC64,CSF - SEN CABS (RK02)                   ,"2,250.00",30/04/2016,R,BARCLAYS ASSET & SALES FINANCE
425,CS -Oth Operating Inc & Expend,T/A Vehicle Maintenance etc,Transport-Contract Hire,J01374,Transport Related Expenditure ,Contract Hire and Op Leasing  ,CC64,CSF - SEN CABS (RK02)                   ,"2,380.00",30/04/2016,R,BARCLAYS ASSET & SALES FINANCE
426,CS -Oth Operating Inc & Expend,T/A Vehicle Maintenance etc,Transport-Contract Hire,J01374,Transport Related Expenditure ,Contract Hire and Op Leasing  ,CC64,CSF - SEN CABS (RK02)                   ,700.00,29/04/2016,R,BRUNSWICK CARS LTD            
427,CS -Oth Operating Inc & Expend,T/A Vehicle Maintenance etc,Transport-Contract Hire,J01374,Transport Related Expenditure ,Contract Hire and Op Leasing  ,CC64,CSF - SEN CABS (RK02)                   ,960.00,29/04/2016,R,BRUNSWICK CARS LTD            
428,CS -Oth Operating Inc & Expend,T/A Vehicle Maintenance etc,Transport-Contract Hire,J01374,Transport Related Expenditure ,Contract Hire and Op Leasing  ,CC64,CSF - SEN CABS (RK02)                   ,"1,008.00",29/04/2016,R,BRUNSWICK CARS LTD            
429,CS -Oth Operating Inc & Expend,T/A Vehicle Maintenance etc,Transport-Contract Hire,J01374,Transport Related Expenditure ,Contract Hire and Op Leasing  ,CC64,CSF - SEN CABS (RK02)                   ,"1,020.00",29/04/2016,R,BRUNSWICK CARS LTD            
430,CS -Oth Operating Inc & Expend,T/A Vehicle Maintenance etc,Transport-Contract Hire,J01374,Transport Related Expenditure ,Contract Hire and Op Leasing  ,CC64,CSF - SEN CABS (RK02)                   ,"1,078.00",29/04/2016,R,BRUNSWICK CARS LTD            
431,CS -Oth Operating Inc & Expend,T/A Vehicle Maintenance etc,Transport-Contract Hire,J01374,Transport Related Expenditure ,Contract Hire and Op Leasing  ,CC64,CSF - SEN CABS (RK02)                   ,"1,080.00",29/04/2016,R,BRUNSWICK CARS LTD            
432,CS -Oth Operating Inc & Expend,T/A Vehicle Maintenance etc,Transport-Contract Hire,J01374,Transport Related Expenditure ,Contract Hire and Op Leasing  ,CC64,CSF - SEN CABS (RK02)                   ,"1,110.00",29/04/2016,R,BRUNSWICK CARS LTD            
433,CS -Oth Operating Inc & Expend,T/A Vehicle Maintenance etc,Transport-Contract Hire,J01374,Transport Related Expenditure ,Contract Hire and Op Leasing  ,CC64,CSF - SEN CABS (RK02)                   ,"1,260.00",29/04/2016,R,BRUNSWICK CARS LTD            
434,CS -Oth Operating Inc & Expend,T/A Vehicle Maintenance etc,Transport-Contract Hire,J01374,Transport Related Expenditure ,Contract Hire and Op Leasing  ,CC64,CSF - SEN CABS (RK02)                   ,"1,302.00",29/04/2016,R,BRUNSWICK CARS LTD            
435,CS -Oth Operating Inc & Expend,T/A Vehicle Maintenance etc,Transport-Contract Hire,J01374,Transport Related Expenditure ,Contract Hire and Op Leasing  ,CC64,CSF - SEN CABS (RK02)                   ,"1,302.00",29/04/2016,R,BRUNSWICK CARS LTD            
436,CS -Oth Operating Inc & Expend,T/A Vehicle Maintenance etc,Transport-Contract Hire,J01374,Transport Related Expenditure ,Contract Hire and Op Leasing  ,CC64,CSF - SEN CABS (RK02)                   ,"1,344.00",29/04/2016,R,BRUNSWICK CARS LTD            
437,CS -Oth Operating Inc & Expend,T/A Vehicle Maintenance etc,Transport-Contract Hire,J01374,Transport Related Expenditure ,Contract Hire and Op Leasing  ,CC64,CSF - SEN CABS (RK02)                   ,"1,350.00",29/04/2016,R,BRUNSWICK CARS LTD            
438,CS -Oth Operating Inc & Expend,T/A Vehicle Maintenance etc,Transport-Contract Hire,J01374,Transport Related Expenditure ,Contract Hire and Op Leasing  ,CC64,CSF - SEN CABS (RK02)                   ,"1,470.00",29/04/2016,R,BRUNSWICK CARS LTD            
439,CS -Oth Operating Inc & Expend,T/A Vehicle Maintenance etc,Transport-Contract Hire,J01374,Transport Related Expenditure ,Contract Hire and Op Leasing  ,CC64,CSF - SEN CABS (RK02)                   ,"1,620.00",29/04/2016,R,BRUNSWICK CARS LTD            
440,CS -Oth Operating Inc & Expend,T/A Vehicle Maintenance etc,Transport-Contract Hire,J01374,Transport Related Expenditure ,Contract Hire and Op Leasing  ,CC64,CSF - SEN CABS (RK02)                   ,"1,624.00",29/04/2016,R,BRUNSWICK CARS LTD            
441,CS -Oth Operating Inc & Expend,T/A Vehicle Maintenance etc,Transport-Contract Hire,J01374,Transport Related Expenditure ,Contract Hire and Op Leasing  ,CC64,CSF - SEN CABS (RK02)                   ,"1,720.00",29/04/2016,R,BRUNSWICK CARS LTD            
442,CS -Oth Operating Inc & Expend,T/A Vehicle Maintenance etc,Transport-Contract Hire,J01374,Transport Related Expenditure ,Contract Hire and Op Leasing  ,CC64,CSF - SEN CABS (RK02)                   ,"1,740.00",29/04/2016,R,BRUNSWICK CARS LTD            
443,CS -Oth Operating Inc & Expend,T/A Vehicle Maintenance etc,Transport-Contract Hire,J01374,Transport Related Expenditure ,Contract Hire and Op Leasing  ,CC64,CSF - SEN CABS (RK02)                   ,"1,862.00",29/04/2016,R,BRUNSWICK CARS LTD            
444,CS -Oth Operating Inc & Expend,T/A Vehicle Maintenance etc,Transport-Contract Hire,J01374,Transport Related Expenditure ,Contract Hire and Op Leasing  ,CC64,CSF - SEN CABS (RK02)                   ,"2,085.00",29/04/2016,R,BRUNSWICK CARS LTD            
445,CS -Oth Operating Inc & Expend,T/A Vehicle Maintenance etc,Transport-Contract Hire,J01374,Transport Related Expenditure ,Contract Hire and Op Leasing  ,CC64,CSF - SEN CABS (RK02)                   ,"2,145.00",29/04/2016,R,BRUNSWICK CARS LTD            
446,CS -Oth Operating Inc & Expend,T/A Vehicle Maintenance etc,Transport-Contract Hire,J01374,Transport Related Expenditure ,Contract Hire and Op Leasing  ,CC64,CSF - SEN CABS (RK02)                   ,"2,580.00",29/04/2016,R,BRUNSWICK CARS LTD            
447,CS -Oth Operating Inc & Expend,T/A Vehicle Maintenance etc,Transport-Contract Hire,J01374,Transport Related Expenditure ,Contract Hire and Op Leasing  ,CC64,CSF - SEN CABS (RK02)                   ,"2,955.00",29/04/2016,R,BRUNSWICK CARS LTD            
448,CS -Oth Operating Inc & Expend,T/A Vehicle Maintenance etc,Transport-Contract Hire,J01374,Transport Related Expenditure ,Contract Hire and Op Leasing  ,CC64,CSF - SEN CABS (RK02)                   ,675.00,30/04/2016,R,CHEAM STATION CARS            
449,CS -Oth Operating Inc & Expend,T/A Vehicle Maintenance etc,Transport-Contract Hire,J01374,Transport Related Expenditure ,Contract Hire and Op Leasing  ,CC64,CSF - SEN CABS (RK02)                   ,840.00,30/04/2016,R,CHEAM STATION CARS            
450,CS -Oth Operating Inc & Expend,T/A Vehicle Maintenance etc,Transport-Contract Hire,J01374,Transport Related Expenditure ,Contract Hire and Op Leasing  ,CC64,CSF - SEN CABS (RK02)                   ,840.00,30/04/2016,R,CHEAM STATION CARS            
451,CS -Oth Operating Inc & Expend,T/A Vehicle Maintenance etc,Transport-Contract Hire,J01374,Transport Related Expenditure ,Contract Hire and Op Leasing  ,CC64,CSF - SEN CABS (RK02)                   ,840.00,30/04/2016,R,CHEAM STATION CARS            
452,CS -Oth Operating Inc & Expend,T/A Vehicle Maintenance etc,Transport-Contract Hire,J01374,Transport Related Expenditure ,Contract Hire and Op Leasing  ,CC64,CSF - SEN CABS (RK02)                   ,"1,352.00",30/04/2016,R,CHEAM STATION CARS            
453,CS -Oth Operating Inc & Expend,T/A Vehicle Maintenance etc,Transport-Contract Hire,J01374,Transport Related Expenditure ,Contract Hire and Op Leasing  ,CC64,CSF - SEN CABS (RK02)                   ,745.90,30/04/2016,R,KAT TRANSPORT LTD             
454,CS -Oth Operating Inc & Expend,T/A Vehicle Maintenance etc,Transport-Contract Hire,J01374,Transport Related Expenditure ,Contract Hire and Op Leasing  ,CC64,CSF - SEN CABS (RK02)                   ,972.00,30/04/2016,R,KAT TRANSPORT LTD             
455,CS -Oth Operating Inc & Expend,T/A Vehicle Maintenance etc,Transport-Contract Hire,J01374,Transport Related Expenditure ,Contract Hire and Op Leasing  ,CC64,CSF - SEN CABS (RK02)                   ,"1,184.22",30/04/2016,R,KAT TRANSPORT LTD             
456,CS -Oth Operating Inc & Expend,T/A Vehicle Maintenance etc,Transport-Contract Hire,J01374,Transport Related Expenditure ,Contract Hire and Op Leasing  ,CC64,CSF - SEN CABS (RK02)                   ,"1,198.12",30/04/2016,R,KAT TRANSPORT LTD             
457,CS -Oth Operating Inc & Expend,T/A Vehicle Maintenance etc,Transport-Contract Hire,J01374,Transport Related Expenditure ,Contract Hire and Op Leasing  ,CC64,CSF - SEN CABS (RK02)                   ,"1,199.52",30/04/2016,R,KAT TRANSPORT LTD             
458,CS -Oth Operating Inc & Expend,T/A Vehicle Maintenance etc,Transport-Contract Hire,J01374,Transport Related Expenditure ,Contract Hire and Op Leasing  ,CC64,CSF - SEN CABS (RK02)                   ,"1,258.60",30/04/2016,R,KAT TRANSPORT LTD             
459,CS -Oth Operating Inc & Expend,T/A Vehicle Maintenance etc,Transport-Contract Hire,J01374,Transport Related Expenditure ,Contract Hire and Op Leasing  ,CC64,CSF - SEN CABS (RK02)                   ,"1,310.12",30/04/2016,R,KAT TRANSPORT LTD             
460,CS -Oth Operating Inc & Expend,T/A Vehicle Maintenance etc,Transport-Contract Hire,J01374,Transport Related Expenditure ,Contract Hire and Op Leasing  ,CC64,CSF - SEN CABS (RK02)                   ,"1,349.46",30/04/2016,R,KAT TRANSPORT LTD             
461,CS -Oth Operating Inc & Expend,T/A Vehicle Maintenance etc,Transport-Contract Hire,J01374,Transport Related Expenditure ,Contract Hire and Op Leasing  ,CC64,CSF - SEN CABS (RK02)                   ,"1,350.00",30/04/2016,R,KAT TRANSPORT LTD             
462,CS -Oth Operating Inc & Expend,T/A Vehicle Maintenance etc,Transport-Contract Hire,J01374,Transport Related Expenditure ,Contract Hire and Op Leasing  ,CC64,CSF - SEN CABS (RK02)                   ,"1,372.00",30/04/2016,R,KAT TRANSPORT LTD             
463,CS -Oth Operating Inc & Expend,T/A Vehicle Maintenance etc,Transport-Contract Hire,J01374,Transport Related Expenditure ,Contract Hire and Op Leasing  ,CC64,CSF - SEN CABS (RK02)                   ,"1,398.60",30/04/2016,R,KAT TRANSPORT LTD             
464,CS -Oth Operating Inc & Expend,T/A Vehicle Maintenance etc,Transport-Contract Hire,J01374,Transport Related Expenditure ,Contract Hire and Op Leasing  ,CC64,CSF - SEN CABS (RK02)                   ,"1,400.00",30/04/2016,R,KAT TRANSPORT LTD             
465,CS -Oth Operating Inc & Expend,T/A Vehicle Maintenance etc,Transport-Contract Hire,J01374,Transport Related Expenditure ,Contract Hire and Op Leasing  ,CC64,CSF - SEN CABS (RK02)                   ,"1,454.70",30/04/2016,R,KAT TRANSPORT LTD             
466,CS -Oth Operating Inc & Expend,T/A Vehicle Maintenance etc,Transport-Contract Hire,J01374,Transport Related Expenditure ,Contract Hire and Op Leasing  ,CC64,CSF - SEN CABS (RK02)                   ,"1,464.12",30/04/2016,R,KAT TRANSPORT LTD             
467,CS -Oth Operating Inc & Expend,T/A Vehicle Maintenance etc,Transport-Contract Hire,J01374,Transport Related Expenditure ,Contract Hire and Op Leasing  ,CC64,CSF - SEN CABS (RK02)                   ,"1,649.40",30/04/2016,R,KAT TRANSPORT LTD             
468,CS -Oth Operating Inc & Expend,T/A Vehicle Maintenance etc,Transport-Contract Hire,J01374,Transport Related Expenditure ,Contract Hire and Op Leasing  ,CC64,CSF - SEN CABS (RK02)                   ,"1,652.00",30/04/2016,R,KAT TRANSPORT LTD             
469,CS -Oth Operating Inc & Expend,T/A Vehicle Maintenance etc,Transport-Contract Hire,J01374,Transport Related Expenditure ,Contract Hire and Op Leasing  ,CC64,CSF - SEN CABS (RK02)                   ,"1,678.50",30/04/2016,R,KAT TRANSPORT LTD             
470,CS -Oth Operating Inc & Expend,T/A Vehicle Maintenance etc,Transport-Contract Hire,J01374,Transport Related Expenditure ,Contract Hire and Op Leasing  ,CC64,CSF - SEN CABS (RK02)                   ,"1,702.50",30/04/2016,R,KAT TRANSPORT LTD             
471,CS -Oth Operating Inc & Expend,T/A Vehicle Maintenance etc,Transport-Contract Hire,J01374,Transport Related Expenditure ,Contract Hire and Op Leasing  ,CC64,CSF - SEN CABS (RK02)                   ,"1,763.70",30/04/2016,R,KAT TRANSPORT LTD             
472,CS -Oth Operating Inc & Expend,T/A Vehicle Maintenance etc,Transport-Contract Hire,J01374,Transport Related Expenditure ,Contract Hire and Op Leasing  ,CC64,CSF - SEN CABS (RK02)                   ,"1,796.70",30/04/2016,R,KAT TRANSPORT LTD             
473,CS -Oth Operating Inc & Expend,T/A Vehicle Maintenance etc,Transport-Contract Hire,J01374,Transport Related Expenditure ,Contract Hire and Op Leasing  ,CC64,CSF - SEN CABS (RK02)                   ,"1,819.48",30/04/2016,R,KAT TRANSPORT LTD             
474,CS -Oth Operating Inc & Expend,T/A Vehicle Maintenance etc,Transport-Contract Hire,J01374,Transport Related Expenditure ,Contract Hire and Op Leasing  ,CC64,CSF - SEN CABS (RK02)                   ,"1,828.50",30/04/2016,R,KAT TRANSPORT LTD             
475,CS -Oth Operating Inc & Expend,T/A Vehicle Maintenance etc,Transport-Contract Hire,J01374,Transport Related Expenditure ,Contract Hire and Op Leasing  ,CC64,CSF - SEN CABS (RK02)                   ,"1,889.40",30/04/2016,R,KAT TRANSPORT LTD             
476,CS -Oth Operating Inc & Expend,T/A Vehicle Maintenance etc,Transport-Contract Hire,J01374,Transport Related Expenditure ,Contract Hire and Op Leasing  ,CC64,CSF - SEN CABS (RK02)                   ,"1,900.92",30/04/2016,R,KAT TRANSPORT LTD             
477,CS -Oth Operating Inc & Expend,T/A Vehicle Maintenance etc,Transport-Contract Hire,J01374,Transport Related Expenditure ,Contract Hire and Op Leasing  ,CC64,CSF - SEN CABS (RK02)                   ,"2,072.00",30/04/2016,R,KAT TRANSPORT LTD             
478,CS -Oth Operating Inc & Expend,T/A Vehicle Maintenance etc,Transport-Contract Hire,J01374,Transport Related Expenditure ,Contract Hire and Op Leasing  ,CC64,CSF - SEN CABS (RK02)                   ,"2,155.72",30/04/2016,R,KAT TRANSPORT LTD             
479,CS -Oth Operating Inc & Expend,T/A Vehicle Maintenance etc,Transport-Contract Hire,J01374,Transport Related Expenditure ,Contract Hire and Op Leasing  ,CC64,CSF - SEN CABS (RK02)                   ,"2,209.74",30/04/2016,R,KAT TRANSPORT LTD             
480,CS -Oth Operating Inc & Expend,T/A Vehicle Maintenance etc,Transport-Contract Hire,J01374,Transport Related Expenditure ,Contract Hire and Op Leasing  ,CC64,CSF - SEN CABS (RK02)                   ,"2,248.50",30/04/2016,R,KAT TRANSPORT LTD             
481,CS -Oth Operating Inc & Expend,T/A Vehicle Maintenance etc,Transport-Contract Hire,J01374,Transport Related Expenditure ,Contract Hire and Op Leasing  ,CC64,CSF - SEN CABS (RK02)                   ,"2,262.12",30/04/2016,R,KAT TRANSPORT LTD             
482,CS -Oth Operating Inc & Expend,T/A Vehicle Maintenance etc,Transport-Contract Hire,J01374,Transport Related Expenditure ,Contract Hire and Op Leasing  ,CC64,CSF - SEN CABS (RK02)                   ,"2,364.48",30/04/2016,R,KAT TRANSPORT LTD             
483,CS -Oth Operating Inc & Expend,T/A Vehicle Maintenance etc,Transport-Contract Hire,J01374,Transport Related Expenditure ,Contract Hire and Op Leasing  ,CC64,CSF - SEN CABS (RK02)                   ,"2,687.70",30/04/2016,R,KAT TRANSPORT LTD             
484,CS -Oth Operating Inc & Expend,T/A Vehicle Maintenance etc,Transport-Contract Hire,J01374,Transport Related Expenditure ,Contract Hire and Op Leasing  ,CC64,CSF - SEN CABS (RK02)                   ,"1,344.00",30/04/2016,R,KENDALL CARS                  
485,CS -Oth Operating Inc & Expend,T/A Vehicle Maintenance etc,Transport-Contract Hire,J01374,Transport Related Expenditure ,Contract Hire and Op Leasing  ,CC64,CSF - SEN CABS (RK02)                   ,897.00,30/04/2016,R,PREMIER MINICAB SER.(SURBITON)
486,CS -Oth Operating Inc & Expend,T/A Vehicle Maintenance etc,Transport-Contract Hire,J01374,Transport Related Expenditure ,Contract Hire and Op Leasing  ,CC64,CSF - SEN CABS (RK02)                   ,"1,008.00",30/04/2016,R,PREMIER MINICAB SER.(SURBITON)
487,CS -Oth Operating Inc & Expend,T/A Vehicle Maintenance etc,Transport-Contract Hire,J01374,Transport Related Expenditure ,Contract Hire and Op Leasing  ,CC64,CSF - SEN CABS (RK02)                   ,"1,050.00",30/04/2016,R,PREMIER MINICAB SER.(SURBITON)
488,CS -Oth Operating Inc & Expend,T/A Vehicle Maintenance etc,Transport-Contract Hire,J01374,Transport Related Expenditure ,Contract Hire and Op Leasing  ,CC64,CSF - SEN CABS (RK02)                   ,"1,089.20",30/04/2016,R,PREMIER MINICAB SER.(SURBITON)
489,CS -Oth Operating Inc & Expend,T/A Vehicle Maintenance etc,Transport-Contract Hire,J01374,Transport Related Expenditure ,Contract Hire and Op Leasing  ,CC64,CSF - SEN CABS (RK02)                   ,"1,650.00",30/04/2016,R,PREMIER MINICAB SER.(SURBITON)
490,CS -Oth Operating Inc & Expend,T/A Vehicle Maintenance etc,Transport-Contract Hire,J01374,Transport Related Expenditure ,Contract Hire and Op Leasing  ,CC64,CSF - SEN CABS (RK02)                   ,"1,742.00",30/04/2016,R,PREMIER MINICAB SER.(SURBITON)
491,CS -Oth Operating Inc & Expend,T/A Vehicle Maintenance etc,Transport-Contract Hire,J01374,Transport Related Expenditure ,Contract Hire and Op Leasing  ,CC64,CSF - SEN CABS (RK02)                   ,"2,261.00",30/04/2016,R,PREMIER MINICAB SER.(SURBITON)
492,CS -Oth Operating Inc & Expend,T/A Vehicle Maintenance etc,Transport-Contract Hire,J01374,Transport Related Expenditure ,Contract Hire and Op Leasing  ,CC64,CSF - SEN CABS (RK02)                   ,780.00,29/04/2016,R,SILVERBURN FINANCE (UK) LTD   
493,CS -Oth Operating Inc & Expend,T/A Vehicle Maintenance etc,Transport-Contract Hire,J01374,Transport Related Expenditure ,Contract Hire and Op Leasing  ,CC64,CSF - SEN CABS (RK02)                   ,870.00,29/04/2016,R,SILVERBURN FINANCE (UK) LTD   
494,CS -Oth Operating Inc & Expend,T/A Vehicle Maintenance etc,Transport-Contract Hire,J01374,Transport Related Expenditure ,Contract Hire and Op Leasing  ,CC64,CSF - SEN CABS (RK02)                   ,"1,028.30",29/04/2016,R,SILVERBURN FINANCE (UK) LTD   
495,CS -Oth Operating Inc & Expend,T/A Vehicle Maintenance etc,Transport-Contract Hire,J01374,Transport Related Expenditure ,Contract Hire and Op Leasing  ,CC64,CSF - SEN CABS (RK02)                   ,"1,260.00",29/04/2016,R,SILVERBURN FINANCE (UK) LTD   
496,CS -Oth Operating Inc & Expend,T/A Vehicle Maintenance etc,Transport-Contract Hire,J01374,Transport Related Expenditure ,Contract Hire and Op Leasing  ,CC64,CSF - SEN CABS (RK02)                   ,"1,290.00",29/04/2016,R,SILVERBURN FINANCE (UK) LTD   
497,CS -Oth Operating Inc & Expend,T/A Vehicle Maintenance etc,Transport-Contract Hire,J01374,Transport Related Expenditure ,Contract Hire and Op Leasing  ,CC64,CSF - SEN CABS (RK02)                   ,"1,344.00",29/04/2016,R,SILVERBURN FINANCE (UK) LTD   
498,CS -Oth Operating Inc & Expend,T/A Vehicle Maintenance etc,Transport-Contract Hire,J01374,Transport Related Expenditure ,Contract Hire and Op Leasing  ,CC64,CSF - SEN CABS (RK02)                   ,"1,552.50",29/04/2016,R,SILVERBURN FINANCE (UK) LTD   
499,CS -Oth Operating Inc & Expend,T/A Vehicle Maintenance etc,Transport-Contract Hire,J01374,Transport Related Expenditure ,Contract Hire and Op Leasing  ,CC64,CSF - SEN CABS (RK02)                   ,"1,552.50",29/04/2016,R,SILVERBURN FINANCE (UK) LTD   
500,CS -Oth Operating Inc & Expend,T/A Vehicle Maintenance etc,Transport-Contract Hire,J01374,Transport Related Expenditure ,Contract Hire and Op Leasing  ,CC64,CSF - SEN CABS (RK02)                   ,"1,575.00",29/04/2016,R,SILVERBURN FINANCE (UK) LTD   
501,CS -Oth Operating Inc & Expend,T/A Vehicle Maintenance etc,Transport-Contract Hire,J01374,Transport Related Expenditure ,Contract Hire and Op Leasing  ,CC64,CSF - SEN CABS (RK02)                   ,"1,580.50",29/04/2016,R,SILVERBURN FINANCE (UK) LTD   
502,CS -Oth Operating Inc & Expend,T/A Vehicle Maintenance etc,Transport-Contract Hire,J01374,Transport Related Expenditure ,Contract Hire and Op Leasing  ,CC64,CSF - SEN CABS (RK02)                   ,"1,695.00",29/04/2016,R,SILVERBURN FINANCE (UK) LTD   
503,CS -Oth Operating Inc & Expend,T/A Vehicle Maintenance etc,Transport-Contract Hire,J01374,Transport Related Expenditure ,Contract Hire and Op Leasing  ,CC64,CSF - SEN CABS (RK02)                   ,"1,770.00",29/04/2016,R,SILVERBURN FINANCE (UK) LTD   
504,CS -Oth Operating Inc & Expend,T/A Vehicle Maintenance etc,Transport-Contract Hire,J01374,Transport Related Expenditure ,Contract Hire and Op Leasing  ,CC64,CSF - SEN CABS (RK02)                   ,"1,820.00",29/04/2016,R,SILVERBURN FINANCE (UK) LTD   
505,CS -Oth Operating Inc & Expend,T/A Vehicle Maintenance etc,Transport-Contract Hire,J01374,Transport Related Expenditure ,Contract Hire and Op Leasing  ,CC64,CSF - SEN CABS (RK02)                   ,"1,875.00",29/04/2016,R,SILVERBURN FINANCE (UK) LTD   
506,CS -Oth Operating Inc & Expend,T/A Vehicle Maintenance etc,Transport-Contract Hire,J01374,Transport Related Expenditure ,Contract Hire and Op Leasing  ,CC64,CSF - SEN CABS (RK02)                   ,"2,070.00",29/04/2016,R,SILVERBURN FINANCE (UK) LTD   
507,CS -Oth Operating Inc & Expend,T/A Vehicle Maintenance etc,Transport-Contract Hire,J01374,Transport Related Expenditure ,Contract Hire and Op Leasing  ,CC64,CSF - SEN CABS (RK02)                   ,540.00,30/04/2016,R,SNA TRANSPORT LTD             
508,CS -Oth Operating Inc & Expend,T/A Vehicle Maintenance etc,Transport-Contract Hire,J01374,Transport Related Expenditure ,Contract Hire and Op Leasing  ,CC64,CSF - SEN CABS (RK02)                   ,980.00,30/04/2016,R,SNA TRANSPORT LTD             
509,CS -Oth Operating Inc & Expend,T/A Vehicle Maintenance etc,Transport-Contract Hire,J01374,Transport Related Expenditure ,Contract Hire and Op Leasing  ,CC64,CSF - SEN CABS (RK02)                   ,"1,050.00",30/04/2016,R,SNA TRANSPORT LTD             
510,CS -Oth Operating Inc & Expend,T/A Vehicle Maintenance etc,Transport-Contract Hire,J01374,Transport Related Expenditure ,Contract Hire and Op Leasing  ,CC64,CSF - SEN CABS (RK02)                   ,"1,106.00",30/04/2016,R,SNA TRANSPORT LTD             
511,CS -Oth Operating Inc & Expend,T/A Vehicle Maintenance etc,Transport-Contract Hire,J01374,Transport Related Expenditure ,Contract Hire and Op Leasing  ,CC64,CSF - SEN CABS (RK02)                   ,"1,106.00",30/04/2016,R,SNA TRANSPORT LTD             
512,CS -Oth Operating Inc & Expend,T/A Vehicle Maintenance etc,Transport-Contract Hire,J01374,Transport Related Expenditure ,Contract Hire and Op Leasing  ,CC64,CSF - SEN CABS (RK02)                   ,"1,196.80",30/04/2016,R,SNA TRANSPORT LTD             
513,CS -Oth Operating Inc & Expend,T/A Vehicle Maintenance etc,Transport-Contract Hire,J01374,Transport Related Expenditure ,Contract Hire and Op Leasing  ,CC64,CSF - SEN CABS (RK02)                   ,"1,198.80",30/04/2016,R,SNA TRANSPORT LTD             
514,CS -Oth Operating Inc & Expend,T/A Vehicle Maintenance etc,Transport-Contract Hire,J01374,Transport Related Expenditure ,Contract Hire and Op Leasing  ,CC64,CSF - SEN CABS (RK02)                   ,"1,208.25",30/04/2016,R,SNA TRANSPORT LTD             
515,CS -Oth Operating Inc & Expend,T/A Vehicle Maintenance etc,Transport-Contract Hire,J01374,Transport Related Expenditure ,Contract Hire and Op Leasing  ,CC64,CSF - SEN CABS (RK02)                   ,"1,215.00",30/04/2016,R,SNA TRANSPORT LTD             
516,CS -Oth Operating Inc & Expend,T/A Vehicle Maintenance etc,Transport-Contract Hire,J01374,Transport Related Expenditure ,Contract Hire and Op Leasing  ,CC64,CSF - SEN CABS (RK02)                   ,"1,223.60",30/04/2016,R,SNA TRANSPORT LTD             
517,CS -Oth Operating Inc & Expend,T/A Vehicle Maintenance etc,Transport-Contract Hire,J01374,Transport Related Expenditure ,Contract Hire and Op Leasing  ,CC64,CSF - SEN CABS (RK02)                   ,"1,253.00",30/04/2016,R,SNA TRANSPORT LTD             
518,CS -Oth Operating Inc & Expend,T/A Vehicle Maintenance etc,Transport-Contract Hire,J01374,Transport Related Expenditure ,Contract Hire and Op Leasing  ,CC64,CSF - SEN CABS (RK02)                   ,"1,350.00",30/04/2016,R,SNA TRANSPORT LTD             
519,CS -Oth Operating Inc & Expend,T/A Vehicle Maintenance etc,Transport-Contract Hire,J01374,Transport Related Expenditure ,Contract Hire and Op Leasing  ,CC64,CSF - SEN CABS (RK02)                   ,"1,425.00",30/04/2016,R,SNA TRANSPORT LTD             
520,CS -Oth Operating Inc & Expend,T/A Vehicle Maintenance etc,Transport-Contract Hire,J01374,Transport Related Expenditure ,Contract Hire and Op Leasing  ,CC64,CSF - SEN CABS (RK02)                   ,"1,435.50",30/04/2016,R,SNA TRANSPORT LTD             
521,CS -Oth Operating Inc & Expend,T/A Vehicle Maintenance etc,Transport-Contract Hire,J01374,Transport Related Expenditure ,Contract Hire and Op Leasing  ,CC64,CSF - SEN CABS (RK02)                   ,"1,440.00",30/04/2016,R,SNA TRANSPORT LTD             
522,CS -Oth Operating Inc & Expend,T/A Vehicle Maintenance etc,Transport-Contract Hire,J01374,Transport Related Expenditure ,Contract Hire and Op Leasing  ,CC64,CSF - SEN CABS (RK02)                   ,"1,452.00",30/04/2016,R,SNA TRANSPORT LTD             
523,CS -Oth Operating Inc & Expend,T/A Vehicle Maintenance etc,Transport-Contract Hire,J01374,Transport Related Expenditure ,Contract Hire and Op Leasing  ,CC64,CSF - SEN CABS (RK02)                   ,"1,462.50",30/04/2016,R,SNA TRANSPORT LTD             
524,CS -Oth Operating Inc & Expend,T/A Vehicle Maintenance etc,Transport-Contract Hire,J01374,Transport Related Expenditure ,Contract Hire and Op Leasing  ,CC64,CSF - SEN CABS (RK02)                   ,"1,470.00",30/04/2016,R,SNA TRANSPORT LTD             
525,CS -Oth Operating Inc & Expend,T/A Vehicle Maintenance etc,Transport-Contract Hire,J01374,Transport Related Expenditure ,Contract Hire and Op Leasing  ,CC64,CSF - SEN CABS (RK02)                   ,"1,540.00",30/04/2016,R,SNA TRANSPORT LTD             
526,CS -Oth Operating Inc & Expend,T/A Vehicle Maintenance etc,Transport-Contract Hire,J01374,Transport Related Expenditure ,Contract Hire and Op Leasing  ,CC64,CSF - SEN CABS (RK02)                   ,"1,650.00",30/04/2016,R,SNA TRANSPORT LTD             
527,CS -Oth Operating Inc & Expend,T/A Vehicle Maintenance etc,Transport-Contract Hire,J01374,Transport Related Expenditure ,Contract Hire and Op Leasing  ,CC64,CSF - SEN CABS (RK02)                   ,"1,799.70",30/04/2016,R,SNA TRANSPORT LTD             
528,CS -Oth Operating Inc & Expend,T/A Vehicle Maintenance etc,Transport-Contract Hire,J01374,Transport Related Expenditure ,Contract Hire and Op Leasing  ,CC64,CSF - SEN CABS (RK02)                   ,"1,875.00",30/04/2016,R,SNA TRANSPORT LTD             
529,CS -Oth Operating Inc & Expend,T/A Vehicle Maintenance etc,Transport-Contract Hire,J01374,Transport Related Expenditure ,Contract Hire and Op Leasing  ,CC64,CSF - SEN CABS (RK02)                   ,"1,948.00",30/04/2016,R,SNA TRANSPORT LTD             
530,CS -Oth Operating Inc & Expend,T/A Vehicle Maintenance etc,Transport-Contract Hire,J01374,Transport Related Expenditure ,Contract Hire and Op Leasing  ,CC64,CSF - SEN CABS (RK02)                   ,"2,025.00",30/04/2016,R,SNA TRANSPORT LTD             
531,CS -Oth Operating Inc & Expend,T/A Vehicle Maintenance etc,Transport-Contract Hire,J01374,Transport Related Expenditure ,Contract Hire and Op Leasing  ,CC64,CSF - SEN CABS (RK02)                   ,"2,082.00",30/04/2016,R,SNA TRANSPORT LTD             
532,CS -Oth Operating Inc & Expend,T/A Vehicle Maintenance etc,Transport-Contract Hire,J01374,Transport Related Expenditure ,Contract Hire and Op Leasing  ,CC64,CSF - SEN CABS (RK02)                   ,"2,250.00",30/04/2016,R,SNA TRANSPORT LTD             
533,CS -Oth Operating Inc & Expend,T/A Vehicle Maintenance etc,Transport-Contract Hire,J01374,Transport Related Expenditure ,Contract Hire and Op Leasing  ,CC64,CSF - SEN CABS (RK02)                   ,"2,375.00",30/04/2016,R,SNA TRANSPORT LTD             
534,CS -Oth Operating Inc & Expend,T/A Vehicle Maintenance etc,Transport-Contract Hire,J01374,Transport Related Expenditure ,Contract Hire and Op Leasing  ,CC64,CSF - SEN CABS (RK02)                   ,"3,750.00",30/04/2016,R,SNA TRANSPORT LTD             
535,CS -Oth Operating Inc & Expend,T/A Vehicle Maintenance etc,Transport-Contract Hire,J01374,Transport Related Expenditure ,Contract Hire and Op Leasing  ,CC64,CSF - SEN CABS (RK02)                   ,"1,932.00",28/04/2016,R,WALLINGTON CARS & COURIERS LTD
536,CS -Oth Operating Inc & Expend,T/A Vehicle Maintenance etc,Transport-Contract Hire,J01374,Transport Related Expenditure ,Contract Hire and Op Leasing  ,CC66,CSF - CHILDREN CABS (RK09)              ,"1,436.70",30/04/2016,R,KAT TRANSPORT LTD             
537,CS -Oth Operating Inc & Expend,T/A Vehicle Maintenance etc,Transport-Contract Hire,J01374,Transport Related Expenditure ,Contract Hire and Op Leasing  ,CC66,CSF - CHILDREN CABS (RK09)              ,"1,069.64",01/04/2016,R,SILVERBURN FINANCE (UK) LTD   
538,CS -Oth Operating Inc & Expend,T/A Vehicle Maintenance etc,Transport-Contract Hire,J01374,Transport Related Expenditure ,Contract Hire and Op Leasing  ,CC67,C&H - ADULTS CABS (RK08)                ,639.00,30/04/2016,R,A STAR TRANSPORT LIMITED      
539,CS -Oth Operating Inc & Expend,T/A Vehicle Maintenance etc,Transport-Contract Hire,J01374,Transport Related Expenditure ,Contract Hire and Op Leasing  ,CC67,C&H - ADULTS CABS (RK08)                ,832.00,30/04/2016,R,A STAR TRANSPORT LIMITED      
540,CS -Oth Operating Inc & Expend,T/A Vehicle Maintenance etc,Transport-Contract Hire,J01374,Transport Related Expenditure ,Contract Hire and Op Leasing  ,CC67,C&H - ADULTS CABS (RK08)                ,"1,182.00",29/04/2016,R,BRUNSWICK CARS LTD            
541,CS -Oth Operating Inc & Expend,T/A Vehicle Maintenance etc,Transport-Contract Hire,J01374,Transport Related Expenditure ,Contract Hire and Op Leasing  ,CC67,C&H - ADULTS CABS (RK08)                ,"1,216.00",30/04/2016,R,CHEAM STATION CARS            
542,CS -Oth Operating Inc & Expend,T/A Vehicle Maintenance etc,Transport-Contract Hire,J01374,Transport Related Expenditure ,Contract Hire and Op Leasing  ,CC67,C&H - ADULTS CABS (RK08)                ,"1,112.60",30/04/2016,R,KAT TRANSPORT LTD             
543,CS -Oth Operating Inc & Expend,T/A Vehicle Maintenance etc,Transport-Contract Hire,J01374,Transport Related Expenditure ,Contract Hire and Op Leasing  ,CC67,C&H - ADULTS CABS (RK08)                ,"1,169.82",30/04/2016,R,KAT TRANSPORT LTD             
544,CS -Oth Operating Inc & Expend,T/A Vehicle Maintenance etc,Transport-Contract Hire,J01374,Transport Related Expenditure ,Contract Hire and Op Leasing  ,CC67,C&H - ADULTS CABS (RK08)                ,"1,339.60",30/04/2016,R,KAT TRANSPORT LTD             
545,CS -Oth Operating Inc & Expend,T/A Vehicle Maintenance etc,Transport-Contract Hire,J01374,Transport Related Expenditure ,Contract Hire and Op Leasing  ,CC67,C&H - ADULTS CABS (RK08)                ,"1,936.30",30/04/2016,R,KAT TRANSPORT LTD             
546,CS -Oth Operating Inc & Expend,T/A Vehicle Maintenance etc,Transport-Contract Hire,J01374,Transport Related Expenditure ,Contract Hire and Op Leasing  ,CC67,C&H - ADULTS CABS (RK08)                ,525.00,30/04/2016,R,PREMIER MINICAB SER.(SURBITON)
547,CS -Oth Operating Inc & Expend,T/A Vehicle Maintenance etc,Transport-Contract Hire,J01374,Transport Related Expenditure ,Contract Hire and Op Leasing  ,CC67,C&H - ADULTS CABS (RK08)                ,594.00,30/04/2016,R,PREMIER MINICAB SER.(SURBITON)
548,CS -Oth Operating Inc & Expend,T/A Vehicle Maintenance etc,Transport-Contract Hire,J01374,Transport Related Expenditure ,Contract Hire and Op Leasing  ,CC67,C&H - ADULTS CABS (RK08)                ,"1,160.82",30/04/2016,R,PREMIER MINICAB SER.(SURBITON)
549,CS -Oth Operating Inc & Expend,T/A Vehicle Maintenance etc,Transport-Contract Hire,J01374,Transport Related Expenditure ,Contract Hire and Op Leasing  ,CC67,C&H - ADULTS CABS (RK08)                ,"1,280.00",30/04/2016,R,PREMIER MINICAB SER.(SURBITON)
550,CS -Oth Operating Inc & Expend,T/A Vehicle Maintenance etc,Transport-Contract Hire,J01374,Transport Related Expenditure ,Contract Hire and Op Leasing  ,CC67,C&H - ADULTS CABS (RK08)                ,"1,925.00",30/04/2016,R,SNA TRANSPORT LTD             
551,CS -Oth Operating Inc & Expend,T/A Vehicle Maintenance etc,Transport-Contract Hire,J01374,Transport Related Expenditure ,Contract Hire and Op Leasing  ,CC68,CSF - COLLEGES CABS (RK03)              ,684.00,30/04/2016,R,CHEAM STATION CARS            
552,CS -Oth Operating Inc & Expend,T/A Vehicle Maintenance etc,Transport-Contract Hire,J01374,Transport Related Expenditure ,Contract Hire and Op Leasing  ,CC68,CSF - COLLEGES CABS (RK03)              ,615.00,30/04/2016,R,PREMIER MINICAB SER.(SURBITON)
553,CS -Oth Operating Inc & Expend,T/A Vehicle Maintenance etc,Transport-Contract Hire,J01374,Transport Related Expenditure ,Contract Hire and Op Leasing  ,CC68,CSF - COLLEGES CABS (RK03)              ,770.00,30/04/2016,R,PREMIER MINICAB SER.(SURBITON)
554,CS -Oth Operating Inc & Expend,T/A Vehicle Maintenance etc,Transport-Contract Hire,J01374,Transport Related Expenditure ,Contract Hire and Op Leasing  ,CC68,CSF - COLLEGES CABS (RK03)              ,"1,448.00",30/04/2016,R,PREMIER MINICAB SER.(SURBITON)
555,CS -Oth Operating Inc & Expend,T/A Vehicle Maintenance etc,Transport-Workshop,J01376,Employees                     ,Indirect Employee Expenses    ,AB02,Recruitment Adverts                     ,553.99,09/05/2016,R,NEWSQUEST MEDIA GROUP LTD     
556,CS -Oth Operating Inc & Expend,T/A Vehicle Maintenance etc,Transport-Workshop,J01376,Transport Related Expenditure ,Contract Hire and Op Leasing  ,CC65,Vehicle Hire for Education              ,"1,400.00",30/04/2016,R,BARCLAYS ASSET & SALES FINANCE
557,CS -Oth Operating Inc & Expend,T/A Vehicle Maintenance etc,Transport-Workshop,J01376,Transport Related Expenditure ,Contract Hire and Op Leasing  ,CC65,Vehicle Hire for Education              ,"2,016.00",24/05/2016,R,BARCLAYS ASSET & SALES FINANCE
558,CS -Oth Operating Inc & Expend,T/A Vehicle Maintenance etc,Transport-Workshop,J01376,Transport Related Expenditure ,Contract Hire and Op Leasing  ,CC65,Vehicle Hire for Education              ,620.00,23/05/2016,R,FREEWAY COACH SERVICES LTD    
559,CS -Oth Operating Inc & Expend,T/A Vehicle Maintenance etc,Transport-Workshop,J01376,Transport Related Expenditure ,Contract Hire and Op Leasing  ,CC65,Vehicle Hire for Education              ,520.00,28/04/2016,R,G T INTERNATIONAL             
560,CS -Oth Operating Inc & Expend,T/A Vehicle Maintenance etc,Transport-Workshop,J01376,Transport Related Expenditure ,Contract Hire and Op Leasing  ,CC65,Vehicle Hire for Education              ,570.00,27/04/2016,R,GOLDEN SOVEREIGN COACHES      
561,CS -Oth Operating Inc & Expend,T/A Vehicle Maintenance etc,Vehicle Workshops,J01378,Employees                     ,Direct Employee Expenses      ,AA17,Agency Staff & Casual Paymts            ,513.00,18/05/2016,R,REDACTED
562,CS -Oth Operating Inc & Expend,T/A Vehicle Maintenance etc,Vehicle Workshops,J01378,Employees                     ,Direct Employee Expenses      ,AA17,Agency Staff & Casual Paymts            ,532.00,24/05/2016,R,REDACTED
563,CS -Oth Operating Inc & Expend,T/A Vehicle Maintenance etc,Vehicle Workshops,J01378,Transport Related Expenditure ,Direct Transport Costs        ,CA02,Tyres                                   ,"5,856.12",30/04/2016,R,DIRECT TYRE MANAGEMENT LTD    
564,CS -Oth Operating Inc & Expend,T/A Vehicle Maintenance etc,Vehicle Workshops,J01378,Transport Related Expenditure ,Direct Transport Costs        ,CA55,Specialist Maint. (Off Site)            ,"1,967.37",29/04/2016,R,DENNIS EAGLE LIMITED          
565,CS -Oth Operating Inc & Expend,T/A Vehicle Maintenance etc,Vehicle Workshops,J01378,Transport Related Expenditure ,Direct Transport Costs        ,CA55,Specialist Maint. (Off Site)            ,"1,643.16",11/05/2016,R,FLEETSPEED COACHWORKS LTD.    
566,CS -Oth Operating Inc & Expend,T/A Vehicle Maintenance etc,Vehicle Workshops,J01378,Transport Related Expenditure ,Direct Transport Costs        ,CA55,Specialist Maint. (Off Site)            ,"2,465.70",11/05/2016,R,FLEETSPEED COACHWORKS LTD.    
567,CS -Oth Operating Inc & Expend,T/A Vehicle Maintenance etc,Vehicle Workshops,J01378,Transport Related Expenditure ,Direct Transport Costs        ,CA55,Specialist Maint. (Off Site)            ,"2,535.50",11/05/2016,R,FLEETSPEED COACHWORKS LTD.    
568,CS -Oth Operating Inc & Expend,T/A Vehicle Maintenance etc,Vehicle Workshops,J01378,Transport Related Expenditure ,Direct Transport Costs        ,CA55,Specialist Maint. (Off Site)            ,"5,690.77",22/04/2016,R,GEESINK NORBA                 
569,CS -Oth Operating Inc & Expend,T/A Vehicle Maintenance etc,Vehicle Workshops,J01378,Transport Related Expenditure ,Direct Transport Costs        ,CA55,Specialist Maint. (Off Site)            ,"5,851.65",22/04/2016,R,GEESINK NORBA                 
570,CS -Oth Operating Inc & Expend,T/A Vehicle Maintenance etc,Vehicle Workshops,J01378,Transport Related Expenditure ,Direct Transport Costs        ,CA55,Specialist Maint. (Off Site)            ,"1,058.14",27/04/2016,R,HTC CROYDON                   
571,CS -Oth Operating Inc & Expend,T/A Vehicle Maintenance etc,Vehicle Workshops,J01378,Transport Related Expenditure ,Direct Transport Costs        ,CA55,Specialist Maint. (Off Site)            ,909.10,04/05/2016,R,P D VEHICLE SERVICES          
572,CS -Oth Operating Inc & Expend,T/A Vehicle Maintenance etc,Vehicle Workshops,J01378,Transport Related Expenditure ,Direct Transport Costs        ,CA56,Specialist Maint. (On Site)             ,"3,841.17",24/05/2016,R,FLEETSPEED COACHWORKS LTD.    
573,CS -Oth Operating Inc & Expend,T/A Vehicle Maintenance etc,Vehicle Workshops,J01378,Transport Related Expenditure ,Direct Transport Costs        ,CA56,Specialist Maint. (On Site)             ,898.40,29/04/2016,R,GEESINK NORBA                 
574,CS -Oth Operating Inc & Expend,T/A Vehicle Maintenance etc,Vehicle Workshops,J01378,Transport Related Expenditure ,Direct Transport Costs        ,CA56,Specialist Maint. (On Site)             ,"1,185.02",29/04/2016,R,GEESINK NORBA                 
575,CS -Oth Operating Inc & Expend,T/A Vehicle Maintenance etc,Vehicle Workshops,J01378,Transport Related Expenditure ,Direct Transport Costs        ,CA56,Specialist Maint. (On Site)             ,"1,683.46",25/04/2016,R,GEESINK NORBA                 
576,CS -Oth Operating Inc & Expend,T/A Vehicle Maintenance etc,Vehicle Workshops,J01378,Transport Related Expenditure ,Direct Transport Costs        ,CA56,Specialist Maint. (On Site)             ,585.16,04/05/2016,R,GVS HIRE LTD                  
577,CS -Oth Operating Inc & Expend,T/A Vehicle Maintenance etc,Vehicle Workshops,J01378,Transport Related Expenditure ,Direct Transport Costs        ,CA56,Specialist Maint. (On Site)             ,606.85,04/05/2016,R,GVS HIRE LTD                  
578,CS -Oth Operating Inc & Expend,T/A Vehicle Maintenance etc,Vehicle Workshops,J01378,Transport Related Expenditure ,Direct Transport Costs        ,CA56,Specialist Maint. (On Site)             ,505.99,02/05/2016,R,HEIL FARID EUROPEAN CO LTD    
579,CS -Oth Operating Inc & Expend,T/A Vehicle Maintenance etc,Vehicle Workshops,J01378,Transport Related Expenditure ,Direct Transport Costs        ,CA56,Specialist Maint. (On Site)             ,948.94,11/05/2016,R,HEIL FARID EUROPEAN CO LTD    
580,CS -Oth Operating Inc & Expend,T/A Vehicle Maintenance etc,Vehicle Workshops,J01378,Transport Related Expenditure ,Direct Transport Costs        ,CA56,Specialist Maint. (On Site)             ,"1,060.94",17/05/2016,R,MITCHELL POWER SYSTEMS        
581,CS -Oth Operating Inc & Expend,T/A Vehicle Maintenance etc,Vehicle Workshops,J01378,Transport Related Expenditure ,Direct Transport Costs        ,CA56,Specialist Maint. (On Site)             ,515.70,05/05/2016,R,R.J.H.WELDING                 
582,CS -Oth Operating Inc & Expend,T/A Vehicle Maintenance etc,Vehicle Workshops,J01378,Transport Related Expenditure ,Direct Transport Costs        ,CA56,Specialist Maint. (On Site)             ,597.75,05/05/2016,R,R.J.H.WELDING                 
583,CS -Oth Operating Inc & Expend,T/A Vehicle Maintenance etc,Vehicle Workshops,J01378,Transport Related Expenditure ,Direct Transport Costs        ,CA56,Specialist Maint. (On Site)             ,777.61,05/05/2016,R,R.J.H.WELDING                 
584,CS -Oth Operating Inc & Expend,T/A Vehicle Maintenance etc,Vehicle Workshops,J01378,Transport Related Expenditure ,Direct Transport Costs        ,CA56,Specialist Maint. (On Site)             ,907.40,05/05/2016,R,R.J.H.WELDING                 
585,CS -Oth Operating Inc & Expend,T/A Vehicle Maintenance etc,Vehicle Workshops,J01378,Transport Related Expenditure ,Direct Transport Costs        ,CA56,Specialist Maint. (On Site)             ,"1,345.70",05/05/2016,R,R.J.H.WELDING                 
586,CS -Oth Operating Inc & Expend,T/A Vehicle Maintenance etc,Vehicle Workshops,J01378,Transport Related Expenditure ,Direct Transport Costs        ,CA56,Specialist Maint. (On Site)             ,"2,169.75",05/05/2016,R,R.J.H.WELDING                 
587,CS -Oth Operating Inc & Expend,T/A Vehicle Maintenance etc,Vehicle Workshops,J01378,Transport Related Expenditure ,Direct Transport Costs        ,CA56,Specialist Maint. (On Site)             ,672.35,24/05/2016,R,REDACTED
588,CS -Oth Operating Inc & Expend,T/A Vehicle Maintenance etc,Vehicle Workshops,J01378,Transport Related Expenditure ,Direct Transport Costs        ,CA56,Specialist Maint. (On Site)             ,822.50,18/05/2016,R,REDACTED
589,CS -Oth Operating Inc & Expend,T/A Vehicle Maintenance etc,Vehicle Workshops,J01378,Transport Related Expenditure ,Direct Transport Costs        ,CA56,Specialist Maint. (On Site)             ,896.95,24/05/2016,R,REDACTED
590,CS -Oth Operating Inc & Expend,T/A Vehicle Maintenance etc,Vehicle Workshops,J01378,Transport Related Expenditure ,Direct Transport Costs        ,CA56,Specialist Maint. (On Site)             ,975.10,28/04/2016,R,REDACTED
591,CS -Oth Operating Inc & Expend,T/A Vehicle Maintenance etc,Vehicle Workshops,J01378,Transport Related Expenditure ,Direct Transport Costs        ,CA56,Specialist Maint. (On Site)             ,"1,409.55",28/04/2016,R,REDACTED
592,CS -Oth Operating Inc & Expend,T/A Vehicle Maintenance etc,Vehicle Workshops,J01378,Transport Related Expenditure ,Direct Transport Costs        ,CA56,Specialist Maint. (On Site)             ,"2,427.70",10/05/2016,R,REDACTED
593,CS -Oth Operating Inc & Expend,T/A Vehicle Maintenance etc,Vehicle Workshops,J01378,Transport Related Expenditure ,Direct Transport Costs        ,CA72,Vehicle Parts                           ,589.42,24/05/2016,R,COMMERCIAL & PLANT LTD        
594,CS -Oth Operating Inc & Expend,T/A Vehicle Maintenance etc,Vehicle Workshops,J01378,Transport Related Expenditure ,Direct Transport Costs        ,CA72,Vehicle Parts                           ,676.49,21/04/2016,R,DENNIS EAGLE LIMITED          
595,CS -Oth Operating Inc & Expend,T/A Vehicle Maintenance etc,Vehicle Workshops,J01378,Transport Related Expenditure ,Direct Transport Costs        ,CA72,Vehicle Parts                           ,"2,460.00",27/04/2016,R,GEESINK NORBA                 
596,CS -Oth Operating Inc & Expend,T/A Vehicle Maintenance etc,Vehicle Workshops,J01378,Transport Related Expenditure ,Direct Transport Costs        ,CA72,Vehicle Parts                           ,668.37,05/05/2016,R,JD ASSOCIATES                 
597,CS -Oth Operating Inc & Expend,T/A Vehicle Maintenance etc,Vehicle Workshops,J01378,Transport Related Expenditure ,Direct Transport Costs        ,CA72,Vehicle Parts                           ,964.78,06/05/2016,R,JOHNSTON SWEEPERS LIMITED     
598,CS -Oth Operating Inc & Expend,T/A Vehicle Maintenance etc,Vehicle Workshops,J01378,Transport Related Expenditure ,Direct Transport Costs        ,CA72,Vehicle Parts                           ,558.21,18/05/2016,R,SCANIA(GREAT BRITAIN)LIMITED  
599,CS -Oth Operating Inc & Expend,T/A Vehicle Maintenance etc,Vehicle Workshops,J01378,Transport Related Expenditure ,Direct Transport Costs        ,CA72,Vehicle Parts                           ,642.00,18/05/2016,R,SCANIA(GREAT BRITAIN)LIMITED  
600,CS -Oth Operating Inc & Expend,T/A Vehicle Maintenance etc,Vehicle Workshops,J01378,Transport Related Expenditure ,Direct Transport Costs        ,CA72,Vehicle Parts                           ,830.63,28/04/2016,R,SCANIA(GREAT BRITAIN)LIMITED  
601,CS -Oth Operating Inc & Expend,T/A Vehicle Maintenance etc,Vehicle Workshops,J01378,Supplies & Services           ,Equip Furniture/Materials     ,DA01,Equipment - R & M                       ,894.74,12/05/2016,R,EUROCAR PARTS                 
602,CS -Oth Operating Inc & Expend,T/A Vehicle Maintenance etc,Vehicle Workshops,J01378,Supplies & Services           ,Clothing Unfrms Laundry       ,DC01,Laundry                                 ,879.70,30/04/2016,R,BERENDSEN UK LTD              
603,CS -Oth Operating Inc & Expend,T/A Vehicle Maintenance etc,Vehicle Workshops,J01378,Supplies & Services           ,Clothing Unfrms Laundry       ,DC02,Clothing & Uniforms                     ,785.36,05/05/2016,R,SMI GROUP                     
604,CS -Oth Operating Inc & Expend,Extraordinary Items & PY Adj.,Housing Shops,J01533,Premises Related Expenditure  ,RepairsAlterations&MtceOfBldgs,BA01,DDM - General Building                  ,"4,000.00",19/04/2016,R,T MCKEOWN & SON FENCING       
605,CS -Oth Operating Inc & Expend,Extraordinary Items & PY Adj.,Housing Shops,J01533,Premises Related Expenditure  ,RepairsAlterations&MtceOfBldgs,BA05,DDM - ELECTRICAL                        ,"1,974.00",05/04/2016,R,ENERGY SAVING LIGHTING (UK) LT
606,CS -Oth Operating Inc & Expend,Extraordinary Items & PY Adj.,Housing Shops,J01533,Supplies & Services           ,Services                      ,DF96,LBM Legal Services                      ,750.00,18/05/2016,R,SURREY COUNTY COUNCIL         
607,CS -Oth Operating Inc & Expend,Extraordinary Items & PY Adj.,Durnsford Rd Budget,J01580,Premises Related Expenditure  ,RepairsAlterations&MtceOfBldgs,BA01,DDM - General Building                  ,598.11,17/05/2016,R,JRT SIGNS                     
608,,,South Wimbledon Comm Centre,J08073,Premises Related Expenditure  ,RepairsAlterations&MtceOfBldgs,BA01,DDM - General Building                  ,790.00,10/05/2016,R,LA BELLE ROOFING CO LTD       
609,Childrens & Education Services,Statutory & Regulatory Duties,Senior Mngt & Support Services,K01005,Supplies & Services           ,Services                      ,DF11,Counsel's Fees                          ,675.00,15/04/2016,R,REDACTED
610,Childrens & Education Services,Statutory & Regulatory Duties,Senior Mngt & Support Services,K01005,Supplies & Services           ,Services                      ,DF11,Counsel's Fees                          ,510.00,26/04/2016,R,REDACTED
611,Childrens & Education Services,Statutory & Regulatory Duties,Senior Mngt & Support Services,K01005,Supplies & Services           ,Services                      ,DF11,Counsel's Fees                          ,520.00,19/04/2016,R,REDACTED
612,Childrens & Education Services,Statutory & Regulatory Duties,Central Administration,K01008,Supplies & Services           ,Expenses                      ,DH02,Conferences                             ,780.00,12/05/2016,R,ADCS                          
613,Childrens & Education Services,Statutory & Regulatory Duties,Central Administration,K01008,Supplies & Services           ,Grants and Subscriptions      ,DJ04,Subscriptions                           ,"1,567.50",24/05/2016,R,ADCS                          
614,Childrens & Education Services,Statutory & Regulatory Duties,Pension and Redundancy Costs,K01010,Employees                     ,Indirect Employee Expenses    ,AB19,Severance-Creditors,"4,166.00",15/02/2016,R,BATES WELLS & BRAITHWAITE SOL.
615,Childrens & Education Services,Statutory & Regulatory Duties,Schools IT Support,K02008,Supplies & Services           ,Comms and Computing           ,DG50,Other IT Expenditure                    ,725.00,08/04/2016,R,ATOMWIDE LTD                  
616,Childrens & Education Services,Statutory & Regulatory Duties,Schools IT Support,K02008,Supplies & Services           ,Comms and Computing           ,DG50,Other IT Expenditure                    ,875.00,12/05/2016,R,ATOMWIDE LTD                  
617,Childrens & Education Services,Statutory & Regulatory Duties,Schools IT Support,K02008,Supplies & Services           ,Comms and Computing           ,DG50,Other IT Expenditure                    ,"1,249.00",12/05/2016,R,ATOMWIDE LTD                  
618,Childrens & Education Services,Statutory & Regulatory Duties,Schools IT Support,K02008,Supplies & Services           ,Comms and Computing           ,DG50,Other IT Expenditure                    ,"1,249.00",08/04/2016,R,ATOMWIDE LTD                  
619,Childrens & Education Services,Statutory & Regulatory Duties,Research and Statistics,K03016,Supplies & Services           ,Comms and Computing           ,DG07,Computer Software                       ,"3,044.69",04/05/2016,R,NCER CIC                      
620,Childrens & Education Services,Education Psychology Service,Education Psychology.,K04018,Employees                     ,Direct Employee Expenses      ,AA17,Agency Staff & Casual Paymts            ,"1,200.00",10/05/2016,R,REDACTED
621,Childrens & Education Services,Education Psychology Service,Education Psychology.,K04018,Employees                     ,Direct Employee Expenses      ,AA17,Agency Staff & Casual Paymts            ,"1,200.00",16/05/2016,R,REDACTED
622,Childrens & Education Services,Education Psychology Service,Education Psychology.,K04018,Employees                     ,Direct Employee Expenses      ,AA17,Agency Staff & Casual Paymts            ,"2,400.00",10/05/2016,R,REDACTED
623,Childrens & Education Services,Education Psychology Service,Education Psychology.,K04018,Employees                     ,Direct Employee Expenses      ,AA17,Agency Staff & Casual Paymts            ,500.00,10/05/2016,R,REDACTED
624,Childrens & Education Services,Education Psychology Service,Education Psychology.,K04018,Employees                     ,Direct Employee Expenses      ,AA17,Agency Staff & Casual Paymts            ,500.00,18/04/2016,R,REDACTED
625,Childrens & Education Services,Education Psychology Service,Education Psychology.,K04018,Employees                     ,Direct Employee Expenses      ,AA17,Agency Staff & Casual Paymts            ,"3,600.00",06/05/2016,R,REDACTED
626,Childrens & Education Services,Support for SEN Pupils,Statementing-Transport,K04023,Transport Related Expenditure ,Public Transport              ,CD50,Home Sch/Coll Trans(Trav Exps)          ,604.80,20/05/2016,R,CROYDON COUNCIL               
627,Childrens & Education Services,Support for SEN Pupils,Statementing-Transport,K04023,Transport Related Expenditure ,Public Transport              ,CD50,Home Sch/Coll Trans(Trav Exps)          ,716.40,11/05/2016,R,CROYDON COUNCIL               
628,Childrens & Education Services,Support for SEN Pupils,Statementing-Transport,K04023,Transport Related Expenditure ,Public Transport              ,CD50,Home Sch/Coll Trans(Trav Exps)          ,620.00,30/04/2016,R,REDACTED
629,Childrens & Education Services,Support for SEN Pupils,Statementing-Transport,K04023,Transport Related Expenditure ,Public Transport              ,CD50,Home Sch/Coll Trans(Trav Exps)          ,562.50,21/04/2016,R,WISDOM SUPPORT SERVICES LTD   
630,Childrens & Education Services,Support for SEN Pupils,Statementing-Transport,K04023,Transport Related Expenditure ,Public Transport              ,CD50,Home Sch/Coll Trans(Trav Exps)          ,"1,125.00",12/05/2016,R,WISDOM SUPPORT SERVICES LTD   
631,Childrens & Education Services,GENERATED ACCOUNT,Children's centres,K05137,Premises Related Expenditure  ,RepairsAlterations&MtceOfBldgs,BA79,Security of Premises                    ,"2,575.80",01/05/2016,R,SIGHT & SOUND                 
632,Childrens & Education Services,GENERATED ACCOUNT,Children's centres,K05137,Supplies & Services           ,Services                      ,DF30,Activities Programme                    ,875.00,02/05/2016,R,WIMBLEDON PARK COMMUNITY TRUST
633,Childrens & Education Services,Nursery schools,GSSG Recruitment,K05401,Premises Related Expenditure  ,Cleaning and Domestic Supplies,BH03,Cleaning Services                       ,545.67,30/04/2016,R,JULIUS RUTHERFOORD & CO LTD   
634,Childrens & Education Services,GENERATED ACCOUNT,Mitcham MAT (Premises),K05412,Premises Related Expenditure  ,Cleaning and Domestic Supplies,BH03,Cleaning Services                       ,"1,564.45",30/04/2016,R,BIRKIN CLEANING SERVICES LTD  
635,Childrens & Education Services,GENERATED ACCOUNT,Mitcham MAT (Premises),K05412,Premises Related Expenditure  ,Cleaning and Domestic Supplies,BH06,Clinical Waste                          ,949.04,14/04/2016,R,PHS GROUP                     
636,Childrens & Education Services,GENERATED ACCOUNT,Morden MAT,K05413,Premises Related Expenditure  ,Cleaning and Domestic Supplies,BH03,Cleaning Services                       ,"1,312.19",30/04/2016,R,BIRKIN CLEANING SERVICES LTD  
637,Childrens & Education Services,GENERATED ACCOUNT,Morden MAT,K05413,Premises Related Expenditure  ,Cleaning and Domestic Supplies,BH06,Clinical Waste                          ,"1,020.45",14/04/2016,R,PHS GROUP                     
638,Childrens & Education Services,GENERATED ACCOUNT,Wimbledon MAT,K05414,Supplies & Services           ,Equip Furniture/Materials     ,DA09,Equip-Purchases                         ,765.14,19/05/2016,R,REDACTED
639,Childrens & Education Services,Nursery schools,E.Years-Intergenerational Cntr,K05416,Premises Related Expenditure  ,RepairsAlterations&MtceOfBldgs,BA06,REPAIRS & MAINTENANCE GENERAL           ,560.00,26/04/2016,R,SUNA COMMUNICATION            
640,Childrens & Education Services,Nursery schools,E.Years-Intergenerational Cntr,K05416,Premises Related Expenditure  ,Cleaning and Domestic Supplies,BH03,Cleaning Services                       ,911.55,30/04/2016,R,BIRKIN CLEANING SERVICES LTD  
641,Childrens & Education Services,Nursery schools,EY-Support Separating Parents,K05417,Employees                     ,Direct Employee Expenses      ,AA96,SALARY SACRIFICE (TEACHERS)             ,833.33,18/04/2016,R,F.W.EVANS CYCLES (UK) LTD.    
642,Childrens & Education Services,Pre-School Ed (inc Nursery),Abbey Pre-School                        ,K05424,Supplies & Services           ,Equip Furniture/Materials     ,DA09,Equip-Purchases                         ,703.00,27/04/2016,R,COMMUNITY PRODUCTS (UK) LTD.  
643,Childrens & Education Services,Pre-School Ed (inc Nursery),Abbey Pre-School                        ,K05424,Supplies & Services           ,Equip Furniture/Materials     ,DA09,Equip-Purchases                         ,554.96,26/04/2016,R,TTS LTD                       
644,Childrens & Education Services,Vocational - Adult Education,AE-additional learner SF,K06046,Supplies & Services           ,Services                      ,DF07,Bought in Teaching Services             ,872.50,25/04/2016,R,REDACTED
645,Childrens & Education Services,Vocational - Adult Education,AE-additional learner SF,K06046,Supplies & Services           ,Services                      ,DF09,Miscellaneous Fees                      ,720.00,21/04/2016,R,BUMBLE BEES'S DAY NURSERY-COCC
646,Childrens & Education Services,Vocational - Adult Education,AE-additional learner SF,K06046,Supplies & Services           ,Services                      ,DF09,Miscellaneous Fees                      ,869.20,03/05/2016,R,JK CARE T/A DEES DAY NURSERY  
647,Childrens & Education Services,Vocational - Adult Education,AE-Adult Education Main,K06049,Premises Related Expenditure  ,Energy Costs                  ,BB03,Gas (incl. Butane)                      ,878.15,10/05/2016,R,GAZPROM MARKETING&TRADING LTD 
648,Childrens & Education Services,Vocational - Adult Education,AE-Adult Education Main,K06049,Premises Related Expenditure  ,Water Services                ,BE01,Use of Water (Metered)                  ,716.46,18/04/2016,R,THAMES WATER UTILITIES LTD.   
649,Childrens & Education Services,Vocational - Adult Education,AE-Adult Education Main,K06049,Premises Related Expenditure  ,Water Services                ,BE01,Use of Water (Metered)                  ,"1,849.79",18/04/2016,R,THAMES WATER UTILITIES LTD.   
650,Childrens & Education Services,Vocational - Adult Education,AE-Adult Education Main,K06049,Premises Related Expenditure  ,Cleaning and Domestic Supplies,BH03,Cleaning Services                       ,"3,551.58",30/04/2016,R,JULIUS RUTHERFOORD & CO LTD   
651,Childrens & Education Services,Vocational - Adult Education,AE-Adult Education Main,K06049,Supplies & Services           ,Services                      ,DF03,Consultants                             ,"3,145.10",18/05/2016,R,TCMD LTD                      
652,Childrens & Education Services,Vocational - Adult Education,AE-Adult Education Main,K06049,Supplies & Services           ,Services                      ,DF07,Bought in Teaching Services             ,818.70,25/04/2016,R,REDACTED
653,Childrens & Education Services,Vocational - Adult Education,AE-Adult Education Main,K06049,Supplies & Services           ,Services                      ,DF27,Examination Fees                        ,872.00,10/05/2016,R,ASCENTIS                      
654,Childrens & Education Services,Vocational - Adult Education,AE-Adult Education Main,K06049,Supplies & Services           ,Services                      ,DF27,Examination Fees                        ,"1,800.00",28/04/2016,R,CITY & GUILDS                 
655,Childrens & Education Services,Vocational - Adult Education,AE-Adult Education Main,K06049,Supplies & Services           ,Services                      ,DF30,Activities Programme                    ,"2,550.00",22/04/2016,R,KNOWLEDGE WISE                
656,Childrens & Education Services,Vocational - Adult Education,AE-Adult Education Main,K06049,Supplies & Services           ,Services                      ,DF30,Activities Programme                    ,680.00,20/04/2016,R,ST MARKS FAMILY CENTRE        
657,Childrens & Education Services,Vocational - Adult Education,AE-Adult Education Main,K06049,Supplies & Services           ,Grants and Subscriptions      ,DJ04,Subscriptions                           ,"1,000.00",25/04/2016,R,TCMD LTD                      
658,Childrens & Education Services,Youth Centres (Residential),Leyton Rd Premises Costs.,K06054,Premises Related Expenditure  ,Cleaning and Domestic Supplies,BH03,Cleaning Services                       ,573.87,30/04/2016,R,BIRKIN CLEANING SERVICES LTD  
659,Childrens & Education Services,Youth Centres (Residential),Duke of Edinburgh Awrds,K06055,Premises Related Expenditure  ,Rents                         ,BC03,Room/venue rental hire                  ,"1,500.00",19/05/2016,R,YMCA LONDON SOUTH WEST        
660,Childrens & Education Services,Youth Centres (Residential),Pollards Hll Yth Ctre,K06065,Supplies & Services           ,Expenses                      ,DH12,Young Peoples Expenses                  ,"2,739.42",19/05/2016,R,CENTER PARCS LTD              
661,Childrens & Education Services,Youth Centres (Residential),Pollards Hll Yth Ctre,K06065,Supplies & Services           ,Expenses                      ,DH12,Young Peoples Expenses                  ,840.00,20/05/2016,R,PGL TRAVEL LTD                
662,Childrens & Education Services,Youth Centres (Residential),Pollards Hll Yth Ctre,K06065,Supplies & Services           ,Expenses                      ,DH12,Young Peoples Expenses                  ,"3,424.00",20/05/2016,R,PGL TRAVEL LTD                
663,Childrens & Education Services,Youth Centres (Residential),PAYP Moving Forward in Life,K06092,Supplies & Services           ,Expenses                      ,DH50,Special Projects                        ,"1,100.00",11/04/2016,R,KARISMATIC MINDS LTD          
664,Childrens & Education Services,Vocational - Adult Education,AE-Mind & Body,K06104,Supplies & Services           ,Equip Furniture/Materials     ,DA04,Materials                               ,"1,083.00",21/04/2016,R,LONDON SCHOOL OF FIRST AID    
665,Childrens & Education Services,Pupil Support,Young Person Substance Misuse,K06114,Supplies & Services           ,Equip Furniture/Materials     ,DA04,Materials                               ,"1,525.40",24/05/2016,R,THE CREATIVE TEAM             
666,Childrens & Education Services,Pupil Support,Young Person Substance Misuse,K06114,Third Party Payments          ,Private Contractors           ,EH01,Miscellaneous Agency Services           ,"77,041.00",22/04/2016,R,CATCH 22                      
667,Childrens & Education Services,Facilitating School Improvemnt,Virtual Schools (Balance),K07109,Supplies & Services           ,Grants and Subscriptions      ,DJ01,Grants                                  ,"1,800.00",09/05/2016,R,AERODROME PRIMARY ACADEMY     
668,Childrens & Education Services,Asset Management,Centre Commissioned Servs,K08078,Supplies & Services           ,Grants and Subscriptions      ,DJ01,Grants                                  ,"18,750.00",28/04/2016,R,CARERS SUPPORT MERTON         
669,Childrens & Education Services,Asset Management,Centre Commissioned Servs,K08078,Supplies & Services           ,Grants and Subscriptions      ,DJ01,Grants                                  ,"12,500.00",03/05/2016,R,JIGSAW4U                      
670,Childrens & Education Services,Asset Management,Centre Commissioned Servs,K08078,Supplies & Services           ,Grants and Subscriptions      ,DJ01,Grants                                  ,"12,500.00",03/05/2016,R,JIGSAW4U                      
671,Childrens & Education Services,Facilitating School Improvemnt,SSQ,K09077,Supplies & Services           ,Expenses                      ,DH02,Conferences                             ,585.00,08/05/2016,R,HAPSFORD ASSOCIATES           
672,Childrens & Education Services,Facilitating School Improvemnt,SSQ,K09077,Supplies & Services           ,Expenses                      ,DH02,Conferences                             ,585.00,08/05/2016,R,HAPSFORD ASSOCIATES           
673,Childrens & Education Services,Asset Management,Stouthall,K09082,Premises Related Expenditure  ,Ground Maintenance Costs      ,BL03,Maintenance of Grounds                  ,"1,000.00",30/04/2016,R,A Y LANDSCAPES LTD            
674,Childrens & Education Services,Ensuring Attendance At School,Behaviour Support,K90004,Supplies & Services           ,Equip Furniture/Materials     ,DA58,Education Materials                     ,"2,525.00",17/03/2016,R,CPI EU /CRISIS PREVENTION INST
675,Childrens & Education Services,Facilitating School Improvemnt,Virtual Schools - Home Tutors,K90015,Employees                     ,Direct Employee Expenses      ,AA17,Agency Staff & Casual Paymts            ,"3,361.67",29/04/2016,R,REDACTED
676,Childrens & Education Services,Facilitating School Improvemnt,Virtual Schools - PEA's,K90016,Employees                     ,Direct Employee Expenses      ,AA17,Agency Staff & Casual Paymts            ,"1,827.50",29/04/2016,R,REDACTED
677,Childrens & Education Services,Facilitating School Improvemnt,Virtual Schools - PEA's,K90016,Supplies & Services           ,Expenses                      ,DH12,Young Peoples Expenses                  ,"10,000.00",31/03/2016,R,CONTACT GROUP                 
678,Childrens & Education Services,Support for SEN Pupils,Non-Delegated Statements,K90024,Employees                     ,Direct Employee Expenses      ,AA17,Agency Staff & Casual Paymts            ,"1,800.00",03/05/2016,R,REDACTED
679,Childrens & Education Services,Support for SEN Pupils,Non-Delegated Statements,K90024,Supplies & Services           ,Services                      ,DF09,Miscellaneous Fees                      ,"3,783.00",09/03/2016,R,PERSEID SCHOOL                
680,Childrens & Education Services,Support for SEN Pupils,Non-Delegated Statements,K90024,Supplies & Services           ,Services                      ,DF09,Miscellaneous Fees                      ,"1,040.00",01/03/2016,R,REDACTED
681,Childrens & Education Services,Support for SEN Pupils,Non-Delegated Statements,K90024,Supplies & Services           ,Services                      ,DF09,Miscellaneous Fees                      ,"3,622.18",11/05/2016,R,SUTTON HIGH SCHOOL            
682,Childrens & Education Services,Support for SEN Pupils,Non-Delegated Statements,K90024,Third Party Payments          ,Other Local Authorities       ,EB48,OLA PAYMENTS-STATEMENTS                 ,"1,346.00",25/05/2016,R,BRIT SCHOOL                 
683,Childrens & Education Services,Support for SEN Pupils,Non-Delegated Statements,K90024,Third Party Payments          ,Other Local Authorities       ,EB48,OLA PAYMENTS-STATEMENTS                 ,"2,178.00",25/05/2016,R,BRIT SCHOOL                 
684,Childrens & Education Services,Support for SEN Pupils,Non-Delegated Statements,K90024,Third Party Payments          ,Other Local Authorities       ,EB48,OLA PAYMENTS-STATEMENTS                 ,"1,553.00",07/05/2016,R,CHEAM HIGH SCHOOL             
685,Childrens & Education Services,Support for SEN Pupils,Non-Delegated Statements,K90024,Third Party Payments          ,Other Local Authorities       ,EB48,OLA PAYMENTS-STATEMENTS                 ,"2,660.84",07/05/2016,R,ST LEONARD'S CS SCHOOL        
686,Childrens & Education Services,Support for SEN Pupils,Non-Delegated Statements,K90024,Third Party Payments          ,Other Local Authorities       ,EB48,OLA PAYMENTS-STATEMENTS                 ,"6,773.48",17/05/2016,R,SUTTON GRAMMAR SCHOOL         
687,Childrens & Education Services,Support for SEN Pupils,Non-Delegated Statements,K90024,Third Party Payments          ,Other Local Authorities       ,EB48,OLA PAYMENTS-STATEMENTS                 ,"4,319.00",26/05/2016,R,THE LONDON ORATORY SCHOOL     
688,Childrens & Education Services,Support for SEN Pupils,Non-Delegated Statements,K90024,Third Party Payments          ,Other Local Authorities       ,EB48,OLA PAYMENTS-STATEMENTS                 ,"8,064.00",24/05/2016,R,WOODMANSTERNE PRIMARY SCHOOL  
689,Childrens & Education Services,Support for SEN Pupils,Non-Delegated Statements,K90024,Third Party Payments          ,Other Local Authorities       ,EB48,OLA PAYMENTS-STATEMENTS                 ,"21,449.40",24/05/2016,R,WOODMANSTERNE PRIMARY SCHOOL  
690,Childrens & Education Services,Support for SEN Pupils,Non-Delegated Statements,K90024,Third Party Payments          ,Other Local Authorities       ,EB50,OLA-Payments - Day Schools              ,"2,768.00",05/04/2016,R,HAMPSHIRE COUNTY COUNCIL      
691,Childrens & Education Services,Support for SEN Pupils,Non-Delegated Statements,K90024,Third Party Payments          ,Other Local Authorities       ,EB50,OLA-Payments - Day Schools              ,"3,711.00",18/02/2016,R,HAMPSHIRE COUNTY COUNCIL      
692,Childrens & Education Services,Support for SEN Pupils,Non-Delegated Statements,K90024,Third Party Payments          ,Other Local Authorities       ,EB50,OLA-Payments - Day Schools              ,"2,641.66",05/01/2016,R,WANDLE VALLEY SCHOOL          
693,Childrens & Education Services,Support for SEN Pupils,Non-Delegated Statements,K90024,Third Party Payments          ,Other Local Authorities       ,EB50,OLA-Payments - Day Schools              ,"2,641.66",02/11/2015,R,WANDLE VALLEY SCHOOL          
694,Childrens & Education Services,Support for SEN Pupils,Non-Delegated Statements,K90024,Third Party Payments          ,Other Local Authorities       ,EB50,OLA-Payments - Day Schools              ,"2,641.66",01/12/2015,R,WANDLE VALLEY SCHOOL          
695,Childrens & Education Services,Support for SEN Pupils,Non-Delegated Statements,K90024,Third Party Payments          ,Other Local Authorities       ,EB50,OLA-Payments - Day Schools              ,"2,641.66",03/03/2016,R,WANDLE VALLEY SCHOOL          
696,Childrens & Education Services,Support for SEN Pupils,Non-Delegated Statements,K90024,Third Party Payments          ,Other Local Authorities       ,EB50,OLA-Payments - Day Schools              ,"2,641.66",30/04/2016,R,WANDLE VALLEY SCHOOL          
697,Childrens & Education Services,Support for SEN Pupils,Non-Delegated Statements,K90024,Third Party Payments          ,Other Local Authorities       ,EB51,OLA Payments - Special Units            ,"3,554.00",07/05/2016,R,CHEAM HIGH SCHOOL             
698,Childrens & Education Services,Support for SEN Pupils,Non-Delegated Statements,K90024,Third Party Payments          ,Other Local Authorities       ,EB51,OLA Payments - Special Units            ,"26,483.00",06/05/2016,R,LONDON BOROUGH OF CROYDON     
699,Childrens & Education Services,Support for SEN Pupils,Non-Delegated Statements,K90024,Third Party Payments          ,Other Establishments          ,EG01,Alternative SEN Provision               ,530.00,29/04/2016,R,HA TUTORS LTD                 
700,Childrens & Education Services,Support for SEN Pupils,Non-Delegated Statements,K90024,Third Party Payments          ,Other Establishments          ,EG01,Alternative SEN Provision               ,580.00,29/04/2016,R,HA TUTORS LTD                 
701,Childrens & Education Services,Support for SEN Pupils,Non-Delegated Statements,K90024,Third Party Payments          ,Other Establishments          ,EG01,Alternative SEN Provision               ,692.50,29/04/2016,R,HA TUTORS LTD                 
702,Childrens & Education Services,Support for SEN Pupils,Non-Delegated Statements,K90024,Third Party Payments          ,Other Establishments          ,EG01,Alternative SEN Provision               ,"1,140.00",29/04/2016,R,HA TUTORS LTD                 
703,Childrens & Education Services,Support for SEN Pupils,Non-Delegated Statements,K90024,Third Party Payments          ,Other Establishments          ,EG01,Alternative SEN Provision               ,"1,255.00",29/04/2016,R,HA TUTORS LTD                 
704,Childrens & Education Services,Support for SEN Pupils,Non-Delegated Statements,K90024,Third Party Payments          ,Other Establishments          ,EG01,Alternative SEN Provision               ,"1,330.00",29/04/2016,R,HA TUTORS LTD                 
705,Childrens & Education Services,Support for SEN Pupils,Non-Delegated Statements,K90024,Third Party Payments          ,Other Establishments          ,EG01,Alternative SEN Provision               ,"1,697.50",29/04/2016,R,HA TUTORS LTD                 
706,Childrens & Education Services,Support for SEN Pupils,Non-Delegated Statements,K90024,Third Party Payments          ,Other Establishments          ,EG01,Alternative SEN Provision               ,"2,072.50",29/04/2016,R,HA TUTORS LTD                 
707,Childrens & Education Services,Support for SEN Pupils,Non-Delegated Statements,K90024,Third Party Payments          ,Other Establishments          ,EG01,Alternative SEN Provision               ,"2,710.00",03/05/2016,R,REDACTED
708,Childrens & Education Services,Support for SEN Pupils,Non-Delegated Statements,K90024,Third Party Payments          ,Other Establishments          ,EG01,Alternative SEN Provision               ,"2,100.00",30/04/2016,R,THE COMPLETE WORKS LTD        
709,Childrens & Education Services,Support for SEN Pupils,Non-Delegated Statements,K90024,Third Party Payments          ,Other Establishments          ,EG50,Ind Day Schs Payments                   ,"5,220.00",06/04/2016,R,CANBURY SCHOOL LIMITED        
710,Childrens & Education Services,Support for SEN Pupils,Non-Delegated Statements,K90024,Third Party Payments          ,Other Establishments          ,EG50,Ind Day Schs Payments                   ,"5,319.00",09/03/2016,R,LVS HASSOCKS                  
711,Childrens & Education Services,Support for SEN Pupils,Non-Delegated Statements,K90024,Third Party Payments          ,Other Establishments          ,EG50,Ind Day Schs Payments                   ,"15,136.00",13/04/2016,R,PAPILLON HOUSE SCHOOL         
712,Childrens & Education Services,Support for SEN Pupils,Non-Delegated Statements,K90024,Third Party Payments          ,Other Establishments          ,EG50,Ind Day Schs Payments                   ,"15,136.00",13/04/2016,R,PAPILLON HOUSE SCHOOL         
713,Childrens & Education Services,Support for SEN Pupils,Non-Delegated Statements,K90024,Third Party Payments          ,Other Establishments          ,EG50,Ind Day Schs Payments                   ,"16,519.00",13/04/2016,R,PAPILLON HOUSE SCHOOL         
714,Childrens & Education Services,Support for SEN Pupils,Non-Delegated Statements,K90024,Third Party Payments          ,Other Establishments          ,EG50,Ind Day Schs Payments                   ,"17,538.00",13/04/2016,R,PAPILLON HOUSE SCHOOL         
715,Childrens & Education Services,Support for SEN Pupils,Non-Delegated Statements,K90024,Third Party Payments          ,Other Establishments          ,EG50,Ind Day Schs Payments                   ,"5,847.00",11/04/2016,R,PARAYHOUSE SCHOOL             
716,Childrens & Education Services,Support for SEN Pupils,Non-Delegated Statements,K90024,Third Party Payments          ,Other Establishments          ,EG50,Ind Day Schs Payments                   ,"6,692.00",29/04/2016,R,THE LINK PRIMARY DAY SCHOOL   
717,Childrens & Education Services,Support for SEN Pupils,Non-Delegated Statements,K90024,Third Party Payments          ,Other Establishments          ,EG50,Ind Day Schs Payments                   ,"10,559.00",29/04/2016,R,THE LINK PRIMARY DAY SCHOOL   
718,Childrens & Education Services,Support for SEN Pupils,Non-Delegated Statements,K90024,Third Party Payments          ,Other Establishments          ,EG50,Ind Day Schs Payments                   ,"14,307.00",29/04/2016,R,THE LINK PRIMARY DAY SCHOOL   
719,Childrens & Education Services,Support for SEN Pupils,Non-Delegated Statements,K90024,Third Party Payments          ,Other Establishments          ,EG50,Ind Day Schs Payments                   ,"9,600.00",01/04/2016,R,THE MOAT SCHOOL               
720,Childrens & Education Services,Admissions & Planning Sch Prov,Retained Schools Budgets,K90030,Supplies & Services           ,Comms and Computing           ,DG02,Software Licences                       ,"114,428.95",24/05/2016,R,CAPITA BUSINESS SERVICES LTD  
721,Childrens & Education Services,Support for SEN Pupils,ART SEN Residential (DSG),K90050,Third Party Payments          ,Other Establishments          ,EG51,Ind Resid Schs Payments                 ,"13,592.08",24/05/2016,R,MOOR HOUSE SCHOOL             
722,Childrens & Education Services,Support for SEN Pupils,ART SEN Residential (DSG),K90050,Third Party Payments          ,Other Establishments          ,EG51,Ind Resid Schs Payments                 ,"20,053.00",17/03/2016,R,ST JOSEPHS SCHOOL             
723,Childrens & Education Services,Support for SEN Pupils,ART SEN Residential (DSG),K90050,Third Party Payments          ,Other Establishments          ,EG51,Ind Resid Schs Payments                 ,"16,400.00",24/05/2016,R,ST MARY'S WRESTWOOD CHILDRENS 
724,Childrens & Education Services,Support for SEN Pupils,ART SEN Residential (DSG),K90050,Third Party Payments          ,Other Establishments          ,EG51,Ind Resid Schs Payments                 ,"51,783.33",31/03/2016,R,YOUNG EPILEPSY                
725,Childrens & Education Services,Support for SEN Pupils,ART SEN Residential (DSG),K90050,Third Party Payments          ,Other Establishments          ,EG51,Ind Resid Schs Payments                 ,"59,658.33",31/03/2016,R,YOUNG EPILEPSY                
726,Childrens & Education Services,Support for SEN Pupils,Non-Maintained Post 16 SEN              ,K90052,Third Party Payments          ,Other Establishments          ,EG50,Ind Day Schs Payments                   ,"6,290.00",09/04/2016,R,COLLINGHAM COLLEGE            
727,Childrens & Education Services,Support for SEN Pupils,Non-Maintained Post 16 SEN              ,K90052,Third Party Payments          ,Other Establishments          ,EG53,Ind Specialist Providers                ,"230,666.79",01/04/2016,R,ORCHARD HILL COLLEGE          
728,Childrens & Education Services,Support for SEN Pupils,Non-Maintained Post 16 SEN              ,K90052,Third Party Payments          ,Other Establishments          ,EG53,Ind Specialist Providers                ,"22,904.26",31/03/2016,R,YOUNG EPILEPSY                
729,Childrens & Education Services,Support for SEN Pupils,Non-Maintained Post 16 SEN              ,K90052,Third Party Payments          ,Other Establishments          ,EG54,FE Colleges                             ,"7,681.30",15/04/2016,R,CAPEL MANOR COLLEGE           
730,Cultural Env Reg&Plan Services,Library DoS not split,Libraries Service-Civic Centre,L50001,Premises Related Expenditure  ,RepairsAlterations&MtceOfBldgs,BA79,Security of Premises                    ,"7,850.42",01/05/2016,R,SIGHT & SOUND                 
731,Cultural Env Reg&Plan Services,Library DoS not split,Libraries Service-Civic Centre,L50001,Premises Related Expenditure  ,Rents                         ,BC01,Miscellaneous Rents                     ,513.55,01/09/2014,R,FIRST PORT RETIREMENT PROPERTY
732,Cultural Env Reg&Plan Services,Library DoS not split,Libraries Service-Civic Centre,L50001,Premises Related Expenditure  ,Rents                         ,BC01,Miscellaneous Rents                     ,545.04,01/09/2013,R,FIRST PORT RETIREMENT PROPERTY
733,Cultural Env Reg&Plan Services,Library DoS not split,Libraries Service-Civic Centre,L50001,Premises Related Expenditure  ,Rents                         ,BC01,Miscellaneous Rents                     ,572.38,01/09/2012,R,FIRST PORT RETIREMENT PROPERTY
734,Cultural Env Reg&Plan Services,Library DoS not split,Libraries Service-Civic Centre,L50001,Premises Related Expenditure  ,Rents                         ,BC01,Miscellaneous Rents                     ,675.00,01/03/2012,R,FIRST PORT RETIREMENT PROPERTY
735,Cultural Env Reg&Plan Services,Library DoS not split,Libraries Service-Civic Centre,L50001,Premises Related Expenditure  ,Rents                         ,BC01,Miscellaneous Rents                     ,679.50,01/03/2015,R,FIRST PORT RETIREMENT PROPERTY
736,Cultural Env Reg&Plan Services,Library DoS not split,Libraries Service-Civic Centre,L50001,Premises Related Expenditure  ,Rents                         ,BC01,Miscellaneous Rents                     ,697.00,01/03/2013,R,FIRST PORT RETIREMENT PROPERTY
737,Cultural Env Reg&Plan Services,Library DoS not split,Libraries Service-Civic Centre,L50001,Premises Related Expenditure  ,Rents                         ,BC01,Miscellaneous Rents                     ,743.50,01/03/2016,R,FIRST PORT RETIREMENT PROPERTY
738,Cultural Env Reg&Plan Services,Library DoS not split,MITCHAM LIBRARY,L83071,Premises Related Expenditure  ,Cleaning and Domestic Supplies,BH03,Cleaning Services                       ,"1,109.48",30/04/2016,R,BIRKIN CLEANING SERVICES LTD  
739,Cultural Env Reg&Plan Services,Library DoS not split,Donald Hope Library,L83072,Premises Related Expenditure  ,Rents                         ,BC03,Room/venue rental hire                  ,"1,427.60",16/12/2015,R,MERTON VISION                 
740,Cultural Env Reg&Plan Services,Library DoS not split,Pollards Hill Library,L83073,Premises Related Expenditure  ,Cleaning and Domestic Supplies,BH03,Cleaning Services                       ,"1,320.92",30/04/2016,R,BIRKIN CLEANING SERVICES LTD  
741,Cultural Env Reg&Plan Services,Library DoS not split,Media Fund,L83081,Supplies & Services           ,Equip Furniture/Materials     ,DA59,Reference                               ,838.00,21/04/2016,R,KOMPASS (UK) LTD              
742,Cultural Env Reg&Plan Services,Library DoS not split,Media Fund,L83081,Supplies & Services           ,Prntng Stnry Gen Off Exp      ,DE51,Newspapers and Magazines                ,559.40,10/05/2016,R,CHASE NEWSAGENTS              
743,Cultural Env Reg&Plan Services,Library DoS not split,Media Fund,L83081,Supplies & Services           ,Comms and Computing           ,DG04,Postage - General                       ,"1,227.20",30/04/2016,R,EXCEL GROUP SERVICES          
744,Cultural Env Reg&Plan Services,Library DoS not split,Media Fund,L83081,Supplies & Services           ,Comms and Computing           ,DG72,On Line Resources                       ,"2,100.00",26/04/2016,R,ENCYCLOPAEDIA BRITANNICA      
745,Cultural Env Reg&Plan Services,Library DoS not split,Morden Library,L84081,Premises Related Expenditure  ,Cleaning and Domestic Supplies,BH03,Cleaning Services                       ,"1,044.61",30/04/2016,R,BIRKIN CLEANING SERVICES LTD  
746,Cultural Env Reg&Plan Services,Library DoS not split,Raynes Park Library,L84083,Premises Related Expenditure  ,Cleaning and Domestic Supplies,BH03,Cleaning Services                       ,772.14,30/04/2016,R,BIRKIN CLEANING SERVICES LTD  
747,Cultural Env Reg&Plan Services,Library DoS not split,Wimbledon Library,L85091,Premises Related Expenditure  ,Energy Costs                  ,BB03,Gas (incl. Butane)                      ,809.59,05/04/2016,R,GAZPROM MARKETING&TRADING LTD 
748,Cultural Env Reg&Plan Services,Library DoS not split,Wimbledon Library,L85091,Premises Related Expenditure  ,Water Services                ,BE01,Use of Water (Metered)                  ,549.21,21/04/2016,R,THAMES WATER UTILITIES LTD    
749,Cultural Env Reg&Plan Services,Library DoS not split,Wimbledon Library,L85091,Premises Related Expenditure  ,Cleaning and Domestic Supplies,BH03,Cleaning Services                       ,"1,791.82",30/04/2016,R,BIRKIN CLEANING SERVICES LTD  
750,Cultural Env Reg&Plan Services,Cultural Codes No Longer Used,Description lookup failed,L85093,Supplies & Services           ,Equip Furniture/Materials     ,DA09,Equip-Purchases                         ,"1,365.00",22/04/2016,R,REDACTED
751,Cultural Env Reg&Plan Services,Cultural Codes No Longer Used,Description lookup failed,L85093,Supplies & Services           ,Comms and Computing           ,DG02,Software Licences                       ,750.00,24/05/2016,R,THE NATIONAL ARCHIVES         
752,Housing Services,Bed / breakfast accommodation,TEMPORARY ACCOMMODATION,N47160,Third Party Payments          ,Private Contractors           ,EH01,Miscellaneous Agency Services           ,"4,299.70",01/04/2016,R,APEX HOUSING SOLUTIONS        
753,Housing Services,Bed / breakfast accommodation,TEMPORARY ACCOMMODATION,N47160,Third Party Payments          ,Private Contractors           ,EH01,Miscellaneous Agency Services           ,940.00,29/04/2016,R,ASSETGROVE LETTINGS LTD       
754,Housing Services,Bed / breakfast accommodation,TEMPORARY ACCOMMODATION,N47160,Third Party Payments          ,Private Contractors           ,EH01,Miscellaneous Agency Services           ,"1,128.00",29/04/2016,R,ASSETGROVE LETTINGS LTD       
755,Housing Services,Bed / breakfast accommodation,TEMPORARY ACCOMMODATION,N47160,Third Party Payments          ,Private Contractors           ,EH01,Miscellaneous Agency Services           ,"1,410.00",29/04/2016,R,ASSETGROVE LETTINGS LTD       
756,Housing Services,Bed / breakfast accommodation,TEMPORARY ACCOMMODATION,N47160,Third Party Payments          ,Private Contractors           ,EH01,Miscellaneous Agency Services           ,"1,410.00",29/04/2016,R,ASSETGROVE LETTINGS LTD       
757,Housing Services,Bed / breakfast accommodation,TEMPORARY ACCOMMODATION,N47160,Third Party Payments          ,Private Contractors           ,EH01,Miscellaneous Agency Services           ,"1,410.00",29/04/2016,R,ASSETGROVE LETTINGS LTD       
758,Housing Services,Bed / breakfast accommodation,TEMPORARY ACCOMMODATION,N47160,Third Party Payments          ,Private Contractors           ,EH01,Miscellaneous Agency Services           ,"1,410.00",29/04/2016,R,ASSETGROVE LETTINGS LTD       
759,Housing Services,Bed / breakfast accommodation,TEMPORARY ACCOMMODATION,N47160,Third Party Payments          ,Private Contractors           ,EH01,Miscellaneous Agency Services           ,"1,950.00",29/04/2016,R,ASSETGROVE LETTINGS LTD       
760,Housing Services,Bed / breakfast accommodation,TEMPORARY ACCOMMODATION,N47160,Third Party Payments          ,Private Contractors           ,EH01,Miscellaneous Agency Services           ,"20,394.90",01/04/2016,R,CREST MANOR LTD               
761,Housing Services,Bed / breakfast accommodation,TEMPORARY ACCOMMODATION,N47160,Third Party Payments          ,Private Contractors           ,EH01,Miscellaneous Agency Services           ,"1,705.00",31/03/2016,R,CROMWOOD HOUSING              
762,Housing Services,Bed / breakfast accommodation,TEMPORARY ACCOMMODATION,N47160,Third Party Payments          ,Private Contractors           ,EH01,Miscellaneous Agency Services           ,"1,929.00",31/03/2016,R,E HOMES AND SHELTERS          
763,Housing Services,Bed / breakfast accommodation,TEMPORARY ACCOMMODATION,N47160,Third Party Payments          ,Private Contractors           ,EH01,Miscellaneous Agency Services           ,528.00,31/03/2016,R,EURO HOTEL (LEYTON) LTD       
764,Housing Services,Bed / breakfast accommodation,TEMPORARY ACCOMMODATION,N47160,Third Party Payments          ,Private Contractors           ,EH01,Miscellaneous Agency Services           ,540.00,29/02/2016,R,EURO HOTEL (LEYTON) LTD       
765,Housing Services,Bed / breakfast accommodation,TEMPORARY ACCOMMODATION,N47160,Third Party Payments          ,Private Contractors           ,EH01,Miscellaneous Agency Services           ,700.00,29/02/2016,R,EURO HOTEL (LEYTON) LTD       
766,Housing Services,Bed / breakfast accommodation,TEMPORARY ACCOMMODATION,N47160,Third Party Payments          ,Private Contractors           ,EH01,Miscellaneous Agency Services           ,"1,160.00",29/02/2016,R,EURO HOTEL (LEYTON) LTD       
767,Housing Services,Bed / breakfast accommodation,TEMPORARY ACCOMMODATION,N47160,Third Party Payments          ,Private Contractors           ,EH01,Miscellaneous Agency Services           ,"1,200.00",30/04/2016,R,EURO HOTEL (LEYTON) LTD       
768,Housing Services,Bed / breakfast accommodation,TEMPORARY ACCOMMODATION,N47160,Third Party Payments          ,Private Contractors           ,EH01,Miscellaneous Agency Services           ,"1,215.00",30/04/2016,R,EURO HOTEL (LEYTON) LTD       
769,Housing Services,Bed / breakfast accommodation,TEMPORARY ACCOMMODATION,N47160,Third Party Payments          ,Private Contractors           ,EH01,Miscellaneous Agency Services           ,"1,240.00",31/03/2016,R,EURO HOTEL (LEYTON) LTD       
770,Housing Services,Bed / breakfast accommodation,TEMPORARY ACCOMMODATION,N47160,Third Party Payments          ,Private Contractors           ,EH01,Miscellaneous Agency Services           ,"1,350.00",30/04/2016,R,EURO HOTEL (LEYTON) LTD       
771,Housing Services,Bed / breakfast accommodation,TEMPORARY ACCOMMODATION,N47160,Third Party Payments          ,Private Contractors           ,EH01,Miscellaneous Agency Services           ,"1,550.00",31/03/2016,R,EURO HOTEL (LEYTON) LTD       
772,Housing Services,Bed / breakfast accommodation,TEMPORARY ACCOMMODATION,N47160,Third Party Payments          ,Private Contractors           ,EH01,Miscellaneous Agency Services           ,507.00,30/04/2016,R,EURO HOTELS ( WEMBLEY) LTD    
773,Housing Services,Bed / breakfast accommodation,TEMPORARY ACCOMMODATION,N47160,Third Party Payments          ,Private Contractors           ,EH01,Miscellaneous Agency Services           ,629.00,30/04/2016,R,EURO HOTELS ( WEMBLEY) LTD    
774,Housing Services,Bed / breakfast accommodation,TEMPORARY ACCOMMODATION,N47160,Third Party Payments          ,Private Contractors           ,EH01,Miscellaneous Agency Services           ,850.00,30/04/2016,R,EURO HOTELS ( WEMBLEY) LTD    
775,Housing Services,Bed / breakfast accommodation,TEMPORARY ACCOMMODATION,N47160,Third Party Payments          ,Private Contractors           ,EH01,Miscellaneous Agency Services           ,525.00,31/03/2016,R,EURO HOTELS (HOUNSLOW)        
776,Housing Services,Bed / breakfast accommodation,TEMPORARY ACCOMMODATION,N47160,Third Party Payments          ,Private Contractors           ,EH01,Miscellaneous Agency Services           ,630.00,30/04/2016,R,EURO HOTELS (HOUNSLOW)        
777,Housing Services,Bed / breakfast accommodation,TEMPORARY ACCOMMODATION,N47160,Third Party Payments          ,Private Contractors           ,EH01,Miscellaneous Agency Services           ,870.00,29/02/2016,R,EURO HOTELS (HOUNSLOW)        
778,Housing Services,Bed / breakfast accommodation,TEMPORARY ACCOMMODATION,N47160,Third Party Payments          ,Private Contractors           ,EH01,Miscellaneous Agency Services           ,900.00,30/04/2016,R,EURO HOTELS (HOUNSLOW)        
779,Housing Services,Bed / breakfast accommodation,TEMPORARY ACCOMMODATION,N47160,Third Party Payments          ,Private Contractors           ,EH01,Miscellaneous Agency Services           ,930.00,31/03/2016,R,EURO HOTELS (HOUNSLOW)        
780,Housing Services,Bed / breakfast accommodation,TEMPORARY ACCOMMODATION,N47160,Third Party Payments          ,Private Contractors           ,EH01,Miscellaneous Agency Services           ,975.00,29/02/2016,R,EURO HOTELS (HOUNSLOW)        
781,Housing Services,Bed / breakfast accommodation,TEMPORARY ACCOMMODATION,N47160,Third Party Payments          ,Private Contractors           ,EH01,Miscellaneous Agency Services           ,"1,015.00",29/02/2016,R,EURO HOTELS (HOUNSLOW)        
782,Housing Services,Bed / breakfast accommodation,TEMPORARY ACCOMMODATION,N47160,Third Party Payments          ,Private Contractors           ,EH01,Miscellaneous Agency Services           ,"1,020.00",30/04/2016,R,EURO HOTELS (HOUNSLOW)        
783,Housing Services,Bed / breakfast accommodation,TEMPORARY ACCOMMODATION,N47160,Third Party Payments          ,Private Contractors           ,EH01,Miscellaneous Agency Services           ,"1,050.00",30/04/2016,R,EURO HOTELS (HOUNSLOW)        
784,Housing Services,Bed / breakfast accommodation,TEMPORARY ACCOMMODATION,N47160,Third Party Payments          ,Private Contractors           ,EH01,Miscellaneous Agency Services           ,"1,050.00",30/04/2016,R,EURO HOTELS (HOUNSLOW)        
785,Housing Services,Bed / breakfast accommodation,TEMPORARY ACCOMMODATION,N47160,Third Party Payments          ,Private Contractors           ,EH01,Miscellaneous Agency Services           ,"1,050.00",30/04/2016,R,EURO HOTELS (HOUNSLOW)        
786,Housing Services,Bed / breakfast accommodation,TEMPORARY ACCOMMODATION,N47160,Third Party Payments          ,Private Contractors           ,EH01,Miscellaneous Agency Services           ,"1,050.00",30/04/2016,R,EURO HOTELS (HOUNSLOW)        
787,Housing Services,Bed / breakfast accommodation,TEMPORARY ACCOMMODATION,N47160,Third Party Payments          ,Private Contractors           ,EH01,Miscellaneous Agency Services           ,"1,050.00",30/04/2016,R,EURO HOTELS (HOUNSLOW)        
788,Housing Services,Bed / breakfast accommodation,TEMPORARY ACCOMMODATION,N47160,Third Party Payments          ,Private Contractors           ,EH01,Miscellaneous Agency Services           ,"1,085.00",31/03/2016,R,EURO HOTELS (HOUNSLOW)        
789,Housing Services,Bed / breakfast accommodation,TEMPORARY ACCOMMODATION,N47160,Third Party Payments          ,Private Contractors           ,EH01,Miscellaneous Agency Services           ,"1,085.00",31/03/2016,R,EURO HOTELS (HOUNSLOW)        
790,Housing Services,Bed / breakfast accommodation,TEMPORARY ACCOMMODATION,N47160,Third Party Payments          ,Private Contractors           ,EH01,Miscellaneous Agency Services           ,"1,360.00",31/03/2016,R,EURO HOTELS (HOUNSLOW)        
791,Housing Services,Bed / breakfast accommodation,TEMPORARY ACCOMMODATION,N47160,Third Party Payments          ,Private Contractors           ,EH01,Miscellaneous Agency Services           ,"1,950.00",30/04/2016,R,EURO HOTELS (HOUNSLOW)        
792,Housing Services,Bed / breakfast accommodation,TEMPORARY ACCOMMODATION,N47160,Third Party Payments          ,Private Contractors           ,EH01,Miscellaneous Agency Services           ,"2,015.00",31/03/2016,R,EURO HOTELS (HOUNSLOW)        
793,Housing Services,Bed / breakfast accommodation,TEMPORARY ACCOMMODATION,N47160,Third Party Payments          ,Private Contractors           ,EH01,Miscellaneous Agency Services           ,"1,240.00",31/03/2016,R,FINEFAIR LTD                  
794,Housing Services,Bed / breakfast accommodation,TEMPORARY ACCOMMODATION,N47160,Third Party Payments          ,Private Contractors           ,EH01,Miscellaneous Agency Services           ,"6,638.00",01/04/2016,R,QUARTZ PROPERTIES             
795,Housing Services,Bed / breakfast accommodation,TEMPORARY ACCOMMODATION,N47160,Third Party Payments          ,Private Contractors           ,EH01,Miscellaneous Agency Services           ,"5,601.00",01/11/2015,R,RENT CONNECT LLP              
796,Housing Services,Bed / breakfast accommodation,TEMPORARY ACCOMMODATION,N47160,Third Party Payments          ,Private Contractors           ,EH01,Miscellaneous Agency Services           ,"10,234.00",01/04/2016,R,RENT CONNECT LLP              
797,Housing Services,Bed / breakfast accommodation,TEMPORARY ACCOMMODATION,N47160,Third Party Payments          ,Private Contractors           ,EH01,Miscellaneous Agency Services           ,"80,472.30",30/04/2016,R,ROOMS & STUDIOS MANAGEMENT    
798,Housing Services,Bed / breakfast accommodation,TEMPORARY ACCOMMODATION,N47160,Third Party Payments          ,Private Contractors           ,EH01,Miscellaneous Agency Services           ,"84,243.10",31/03/2016,R,ROOMS & STUDIOS MANAGEMENT    
799,Housing Services,Bed / breakfast accommodation,TEMPORARY ACCOMMODATION,N47160,Third Party Payments          ,Private Contractors           ,EH01,Miscellaneous Agency Services           ,"4,410.00",01/05/2016,R,SK HOUSING LTD                
800,Housing Services,Bed / breakfast accommodation,TEMPORARY ACCOMMODATION,N47160,Third Party Payments          ,Private Contractors           ,EH01,Miscellaneous Agency Services           ,540.00,31/03/2016,R,SW LONDON LETTINGS LTD        
801,Housing Services,Bed / breakfast accommodation,TEMPORARY ACCOMMODATION,N47160,Third Party Payments          ,Private Contractors           ,EH01,Miscellaneous Agency Services           ,"1,023.00",31/03/2016,R,SW LONDON LETTINGS LTD        
802,Housing Services,Bed / breakfast accommodation,TEMPORARY ACCOMMODATION,N47160,Third Party Payments          ,Private Contractors           ,EH01,Miscellaneous Agency Services           ,"1,116.00",31/03/2016,R,SW LONDON LETTINGS LTD        
803,Housing Services,Bed / breakfast accommodation,TEMPORARY ACCOMMODATION,N47160,Third Party Payments          ,Private Contractors           ,EH01,Miscellaneous Agency Services           ,"1,116.00",31/03/2016,R,SW LONDON LETTINGS LTD        
804,Housing Services,Bed / breakfast accommodation,TEMPORARY ACCOMMODATION,N47160,Third Party Payments          ,Private Contractors           ,EH01,Miscellaneous Agency Services           ,"1,148.00",31/03/2016,R,SW LONDON LETTINGS LTD        
805,Housing Services,Bed / breakfast accommodation,TEMPORARY ACCOMMODATION,N47160,Third Party Payments          ,Private Contractors           ,EH01,Miscellaneous Agency Services           ,"1,271.00",31/03/2016,R,SW LONDON LETTINGS LTD        
806,Housing Services,Bed / breakfast accommodation,TEMPORARY ACCOMMODATION,N47160,Third Party Payments          ,Private Contractors           ,EH01,Miscellaneous Agency Services           ,"1,271.00",31/03/2016,R,SW LONDON LETTINGS LTD        
807,Housing Services,Bed / breakfast accommodation,TEMPORARY ACCOMMODATION,N47160,Third Party Payments          ,Private Contractors           ,EH01,Miscellaneous Agency Services           ,"1,658.50",31/03/2016,R,SW LONDON LETTINGS LTD        
808,Housing Services,Bed / breakfast accommodation,TEMPORARY ACCOMMODATION,N47160,Third Party Payments          ,Private Contractors           ,EH01,Miscellaneous Agency Services           ,"1,658.50",31/03/2016,R,SW LONDON LETTINGS LTD        
809,Housing Services,Bed / breakfast accommodation,TEMPORARY ACCOMMODATION,N47160,Third Party Payments          ,Private Contractors           ,EH01,Miscellaneous Agency Services           ,"1,658.50",31/03/2016,R,SW LONDON LETTINGS LTD        
810,Housing Services,Bed / breakfast accommodation,TEMPORARY ACCOMMODATION,N47160,Third Party Payments          ,Private Contractors           ,EH01,Miscellaneous Agency Services           ,"1,658.50",31/03/2016,R,SW LONDON LETTINGS LTD        
811,Housing Services,Bed / breakfast accommodation,TEMPORARY ACCOMMODATION,N47160,Third Party Payments          ,Private Contractors           ,EH01,Miscellaneous Agency Services           ,"2,077.00",31/03/2016,R,SW LONDON LETTINGS LTD        
812,Housing Services,Bed / breakfast accommodation,TEMPORARY ACCOMMODATION,N47160,Third Party Payments          ,Private Contractors           ,EH01,Miscellaneous Agency Services           ,"50,415.30",30/04/2016,R,VENTURE HOUSING(LONDON)LTD    
813,Housing Services,Bed / breakfast accommodation,TEMPORARY ACCOMMODATION,N47160,Third Party Payments          ,Private Contractors           ,EH01,Miscellaneous Agency Services           ,"51,099.06",31/03/2016,R,VENTURE HOUSING(LONDON)LTD    
814,Housing Services,Bed / breakfast accommodation,TEMPORARY ACCOMMODATION,N47160,Transfer Payments             ,Housing Benefits              ,FA12,Rent Deposits                           ,"1,116.00",31/03/2016,R,SW LONDON LETTINGS LTD        
815,Housing Services,Bed / breakfast accommodation,Homelessness Prevention,N47171,Transfer Payments             ,Housing Benefits              ,FA11,Sanctuary Scheme Rent Rescue            ,"1,504.92",12/05/2016,R,HAIG HOUSING                  
816,Housing Services,Bed / breakfast accommodation,Homelessness Prevention,N47171,Transfer Payments             ,Housing Benefits              ,FA11,Sanctuary Scheme Rent Rescue            ,"1,100.00",17/05/2016,R,REDACTED
817,Housing Services,Bed / breakfast accommodation,Homelessness Prevention,N47171,Transfer Payments             ,Housing Benefits              ,FA12,Rent Deposits                           ,"1,209.61",09/05/2016,R,HARPER AND TWEEDIE            
818,Housing Services,Bed / breakfast accommodation,Homelessness Prevention,N47171,Transfer Payments             ,Housing Benefits              ,FA12,Rent Deposits                           ,"4,000.00",16/05/2016,R,HORIZON PROJECTS              
819,Housing Services,Bed / breakfast accommodation,Homelessness Prevention,N47171,Transfer Payments             ,Housing Benefits              ,FA12,Rent Deposits                           ,847.69,09/05/2016,R,REDACTED
820,Housing Services,Bed / breakfast accommodation,Homelessness Prevention,N47171,Transfer Payments             ,Housing Benefits              ,FA12,Rent Deposits                           ,"4,000.00",23/05/2016,R,REDACTED
821,Housing Services,Bed / breakfast accommodation,Homelessness Prevention,N47171,Transfer Payments             ,Housing Benefits              ,FA12,Rent Deposits                           ,"1,310.10",16/05/2016,R,TIME2MOVE - T2M SW LONDON LTD 
822,Housing Services,Bed / breakfast accommodation,Homelessness Prevention,N47171,Transfer Payments             ,Housing Benefits              ,FA12,Rent Deposits                           ,500.00,29/01/2016,R,VISION HOUSING                
823,Housing Services,Bed / breakfast accommodation,Homelessness Prevention,N47171,Transfer Payments             ,Housing Benefits              ,FA12,Rent Deposits                           ,"1,350.00",16/05/2016,R,WILSON INDEPENDANT            
824,Housing Services,Hsg Dept Supp Staff & Costs,Housing Needs & Enablg-central,N51000,Supplies & Services           ,Comms and Computing           ,DG02,Software Licences                       ,"12,071.84",08/03/2016,R,CAPITA BUSINESS SERVICES LTD  
825,Highways & Transport Services,Saf mtc prin/oth rds not split,Highways GM Contract                    ,P04006,Premises Related Expenditure  ,Ground Maintenance Costs      ,BL03,Maintenance of Grounds                  ,650.00,19/05/2016,R,REDACTED
826,Highways & Transport Services,Saf mtc prin/oth rds not split,Highways GM Contract                    ,P04006,Third Party Payments          ,Private Contractors           ,EH74,Weed Spraying Contract,"13,263.90",29/04/2016,R,COMPLETE WEED CONTROL         
827,Cultural Env Reg&Plan Services,Parks & Open Spaces,Park Utilities                          ,P04007,Premises Related Expenditure  ,Energy Costs                  ,BB03,Gas (incl. Butane)                      ,678.58,10/05/2016,R,GAZPROM MARKETING&TRADING LTD 
828,Cultural Env Reg&Plan Services,Parks & Open Spaces,Park Utilities                          ,P04007,Premises Related Expenditure  ,Water Services                ,BE01,Use of Water (Metered)                  ,505.96,21/04/2016,R,THAMES WATER UTILITIES LTD    
829,Cultural Env Reg&Plan Services,Parks & Open Spaces,Park Utilities                          ,P04007,Premises Related Expenditure  ,Water Services                ,BE01,Use of Water (Metered)                  ,556.88,25/04/2016,R,THAMES WATER UTILITIES LTD    
830,Cultural Env Reg&Plan Services,Parks & Open Spaces,Park Utilities                          ,P04007,Premises Related Expenditure  ,Water Services                ,BE01,Use of Water (Metered)                  ,578.35,13/05/2016,R,THAMES WATER UTILITIES LTD    
831,Cultural Env Reg&Plan Services,Parks & Open Spaces,Park Utilities                          ,P04007,Premises Related Expenditure  ,Water Services                ,BE01,Use of Water (Metered)                  ,653.92,16/05/2016,R,THAMES WATER UTILITIES LTD    
832,Cultural Env Reg&Plan Services,Parks & Open Spaces,Park Utilities                          ,P04007,Premises Related Expenditure  ,Water Services                ,BE01,Use of Water (Metered)                  ,794.45,11/04/2016,R,THAMES WATER UTILITIES LTD    
